BODY,BODY NAME,SUPPLIER CODE,SUPPLIER NAME,TRANSACTION NUMBER,INVOICE DATE,THEIR REF,NARR1,PAID DATE,VAT AMOUNT,EXCLUSIVE AMOUNT,INCLUSIVE AMOUNT,EXPENSE AREA,EXPENSE TYPE,EXPENSE CODE
http://statistics.data.gov.uk/id/local-authority/12UE,Huntingdonshire District Council,202959,5Day (Norwich) Ltd,67359,13/07/2022,PE-P9BGP,Driving Course/DVSA Theory,18/07/2022,246.67,1233.33,1480,Waste Minimisation,Staff Development And Training,60115
http://statistics.data.gov.uk/id/local-authority/12UE,Huntingdonshire District Council,202959,5Day (Norwich) Ltd,67359,13/07/2022,PE-P9BGP,Driving Course/DVSA Theory,18/07/2022,0,23,23,Waste Minimisation,Staff Development And Training,60115
http://statistics.data.gov.uk/id/local-authority/12UE,Huntingdonshire District Council,201106,A & C ENERGY SURVEYS LTD,68917,27/07/2022,2915,EPC Oak Tree Med Centre Hunts,25/08/2022,0,699,699,Oak Tree Health Centre,Consultancy Fees,62400
http://statistics.data.gov.uk/id/local-authority/12UE,Huntingdonshire District Council,200000,A C COMMERCIALS A C COMMERCIALS,68621,05/08/2022,INV0018352,OPSSCREENWASH,01/09/2022,0.01,0,0.01,Finance,Over/Under VAT Rounding,68350
http://statistics.data.gov.uk/id/local-authority/12UE,Huntingdonshire District Council,200000,A C COMMERCIALS A C COMMERCIALS,67766,10/06/2022,INV0017529,AdBlue,28/07/2022,160,800,960,Domestic Waste Collection,Vehicle Repairs And Maintenance,60904
http://statistics.data.gov.uk/id/local-authority/12UE,Huntingdonshire District Council,200000,A C COMMERCIALS A C COMMERCIALS,67766,10/06/2022,INV0017529,AdBlue,28/07/2022,160,800,960,Green Waste Collection,Vehicle Repairs And Maintenance,60904
http://statistics.data.gov.uk/id/local-authority/12UE,Huntingdonshire District Council,200000,A C COMMERCIALS A C COMMERCIALS,67766,10/06/2022,INV0017529,AdBlue,28/07/2022,64,320,384,Grounds Maintenance,Vehicle Repairs And Maintenance,60904
http://statistics.data.gov.uk/id/local-authority/12UE,Huntingdonshire District Council,200000,A C COMMERCIALS A C COMMERCIALS,67766,10/06/2022,INV0017529,AdBlue,28/07/2022,160,800,960,Recycling Collections,Vehicle Repairs And Maintenance,60904
http://statistics.data.gov.uk/id/local-authority/12UE,Huntingdonshire District Council,200000,A C COMMERCIALS A C COMMERCIALS,67766,10/06/2022,INV0017529,AdBlue,28/07/2022,96,480,576,Street Cleansing,Vehicle Repairs And Maintenance,60904
http://statistics.data.gov.uk/id/local-authority/12UE,Huntingdonshire District Council,200000,A C COMMERCIALS A C COMMERCIALS,67781,22/06/2022,INV0017709,Oil Sw / 30 205 Litres,28/07/2022,190.04,950.18,1140.22,Street Cleansing,Vehicle Repairs And Maintenance,60904
http://statistics.data.gov.uk/id/local-authority/12UE,Huntingdonshire District Council,200000,A C COMMERCIALS A C COMMERCIALS,67782,23/06/2022,INV0017724,Oil Sw / 30 205 Litres,28/07/2022,190.04,950.18,1140.22,Grounds Maintenance,Vehicle Repairs And Maintenance,60904
http://statistics.data.gov.uk/id/local-authority/12UE,Huntingdonshire District Council,200000,A C COMMERCIALS A C COMMERCIALS,68621,05/08/2022,INV0018352,OPSSCREENWASH,01/09/2022,15.68,78.38,94.06,Domestic Waste Collection,Vehicle Repairs And Maintenance,60904
http://statistics.data.gov.uk/id/local-authority/12UE,Huntingdonshire District Council,200000,A C COMMERCIALS A C COMMERCIALS,68621,05/08/2022,INV0018352,OPSSCREENWASH,01/09/2022,13.06,65.31,78.37,Green Waste Collection,Vehicle Repairs And Maintenance,60904
http://statistics.data.gov.uk/id/local-authority/12UE,Huntingdonshire District Council,200000,A C COMMERCIALS A C COMMERCIALS,68621,05/08/2022,INV0018352,OPSSCREENWASH,01/09/2022,2.61,13.06,15.67,Grounds Maintenance,Vehicle Repairs And Maintenance,60904
http://statistics.data.gov.uk/id/local-authority/12UE,Huntingdonshire District Council,200000,A C COMMERCIALS A C COMMERCIALS,68621,05/08/2022,INV0018352,OPSSCREENWASH,01/09/2022,2.61,13.06,15.67,Pool Cars,Vehicle Repairs And Maintenance,60904
http://statistics.data.gov.uk/id/local-authority/12UE,Huntingdonshire District Council,200000,A C COMMERCIALS A C COMMERCIALS,68621,05/08/2022,INV0018352,OPSSCREENWASH,01/09/2022,15.67,78.37,94.04,Recycling Collections,Vehicle Repairs And Maintenance,60904
http://statistics.data.gov.uk/id/local-authority/12UE,Huntingdonshire District Council,200000,A C COMMERCIALS A C COMMERCIALS,68621,05/08/2022,INV0018352,OPSSCREENWASH,01/09/2022,2.61,13.06,15.67,Street Cleansing,Vehicle Repairs And Maintenance,60904
http://statistics.data.gov.uk/id/local-authority/12UE,Huntingdonshire District Council,200000,A C COMMERCIALS A C COMMERCIALS,69531,25/08/2022,INV0018603,Anti Freeze,22/09/2022,67.5,337.5,405,Domestic Waste Collection,Vehicle Repairs And Maintenance,60904
http://statistics.data.gov.uk/id/local-authority/12UE,Huntingdonshire District Council,200000,A C COMMERCIALS A C COMMERCIALS,69531,25/08/2022,INV0018603,Anti Freeze,22/09/2022,67.5,337.5,405,Green Waste Collection,Vehicle Repairs And Maintenance,60904
http://statistics.data.gov.uk/id/local-authority/12UE,Huntingdonshire District Council,200000,A C COMMERCIALS A C COMMERCIALS,69531,25/08/2022,INV0018603,Anti Freeze,22/09/2022,27,135,162,Grounds Maintenance,Vehicle Repairs And Maintenance,60904
http://statistics.data.gov.uk/id/local-authority/12UE,Huntingdonshire District Council,200000,A C COMMERCIALS A C COMMERCIALS,69531,25/08/2022,INV0018603,Anti Freeze,22/09/2022,13.5,67.5,81,Pool Cars,Vehicle Repairs And Maintenance,60904
http://statistics.data.gov.uk/id/local-authority/12UE,Huntingdonshire District Council,200000,A C COMMERCIALS A C COMMERCIALS,69531,25/08/2022,INV0018603,Anti Freeze,22/09/2022,67.5,337.5,405,Recycling Collections,Vehicle Repairs And Maintenance,60904
http://statistics.data.gov.uk/id/local-authority/12UE,Huntingdonshire District Council,200000,A C COMMERCIALS A C COMMERCIALS,69531,25/08/2022,INV0018603,Anti Freeze,22/09/2022,27,135,162,Street Cleansing,Vehicle Repairs And Maintenance,60904
http://statistics.data.gov.uk/id/local-authority/12UE,Huntingdonshire District Council,200000,A C COMMERCIALS A C COMMERCIALS,69549,05/09/2022,INV0018727,AdBlue Bulk Delivery,29/09/2022,190.95,954.75,1145.7,Domestic Waste Collection,Vehicle Repairs And Maintenance,60904
http://statistics.data.gov.uk/id/local-authority/12UE,Huntingdonshire District Council,200000,A C COMMERCIALS A C COMMERCIALS,69549,05/09/2022,INV0018727,AdBlue Bulk Delivery,29/09/2022,190.95,954.75,1145.7,Green Waste Collection,Vehicle Repairs And Maintenance,60904
http://statistics.data.gov.uk/id/local-authority/12UE,Huntingdonshire District Council,200000,A C COMMERCIALS A C COMMERCIALS,69549,05/09/2022,INV0018727,AdBlue Bulk Delivery,29/09/2022,76.38,381.9,458.28,Grounds Maintenance,Vehicle Repairs And Maintenance,60904
http://statistics.data.gov.uk/id/local-authority/12UE,Huntingdonshire District Council,200000,A C COMMERCIALS A C COMMERCIALS,69549,05/09/2022,INV0018727,AdBlue Bulk Delivery,29/09/2022,190.95,954.75,1145.7,Recycling Collections,Vehicle Repairs And Maintenance,60904
http://statistics.data.gov.uk/id/local-authority/12UE,Huntingdonshire District Council,200000,A C COMMERCIALS A C COMMERCIALS,69549,05/09/2022,INV0018727,AdBlue Bulk Delivery,29/09/2022,114.57,572.85,687.42,Street Cleansing,Vehicle Repairs And Maintenance,60904
http://statistics.data.gov.uk/id/local-authority/12UE,Huntingdonshire District Council,203008,REDACTED,67365,23/06/2022,HCP 002,HCP Responsive Repairs 23.06.22,18/07/2022,0,1600,1600,Hinchingbrooke Park Management,Maintenance - Building,60201
http://statistics.data.gov.uk/id/local-authority/12UE,Huntingdonshire District Council,203008,REDACTED,67365,23/06/2022,HCP 002,HCP Responsive Repairs 23.06.22,18/07/2022,0,1050,1050,Hinchingbrooke Park Management,Maintenance - Building,60201
http://statistics.data.gov.uk/id/local-authority/12UE,Huntingdonshire District Council,203008,REDACTED,66844,04/07/2022,HCP 001,HCP Responsive Repairs 04.07.22,28/07/2022,0,2650,2650,Hinchingbrooke Park Management,Responsive Repairs - Building,60267
http://statistics.data.gov.uk/id/local-authority/12UE,Huntingdonshire District Council,200004,AAA INFLATABLES LTD AAA INFLATABLES LTD,68861,23/08/2022,INV-2201,OLH Pool Inflatable Service/Inspect,15/09/2022,50,250,300,OLH - Site & Centre Management,"Maintenance - Equipment, Furniture And Materials",61702
http://statistics.data.gov.uk/id/local-authority/12UE,Huntingdonshire District Council,200038,ABBOTT TOXICOLOGY LTD ALERE TOXICOLOGY PLC,66155,17/06/2022,826991,Annual On Call Retainer Fee 22/23,14/07/2022,80,400,480,HR Services,Laboratory Services,62406
http://statistics.data.gov.uk/id/local-authority/12UE,Huntingdonshire District Council,200017,ACCESS & AUTOMATION LTD ACCESS & AUTOMATION LTD,68242,02/08/2022,7572,REDACTED,25/08/2022,0,3520,3520,Disables Facilities Grants,Mandatory Grants,64601
http://statistics.data.gov.uk/id/local-authority/12UE,Huntingdonshire District Council,202528,Ace Interiors (Cambs) LTD,68355,01/06/2022,1419,PFH Various Works,11/08/2022,0,0,0,Pathfinder House,Maintenance - Building,60201
http://statistics.data.gov.uk/id/local-authority/12UE,Huntingdonshire District Council,202528,Ace Interiors (Cambs) LTD,68355,01/06/2022,1419,PFH Various Works,11/08/2022,434.5,2172.5,2607,Pathfinder House,Maintenance - Building,60201
http://statistics.data.gov.uk/id/local-authority/12UE,Huntingdonshire District Council,202528,Ace Interiors (Cambs) LTD,68355,01/06/2022,1419,PFH Various Works,11/08/2022,547.8,2739,3286.8,Pathfinder House,Maintenance - Building,60201
http://statistics.data.gov.uk/id/local-authority/12UE,Huntingdonshire District Council,202528,Ace Interiors (Cambs) LTD,68355,01/06/2022,1419,PFH Various Works,11/08/2022,196.8,984,1180.8,Pathfinder House,Maintenance - Building,60201
http://statistics.data.gov.uk/id/local-authority/12UE,Huntingdonshire District Council,202528,Ace Interiors (Cambs) LTD,68355,01/06/2022,1419,PFH Various Works,11/08/2022,0,0,0,Pathfinder House,Maintenance - Building,60201
http://statistics.data.gov.uk/id/local-authority/12UE,Huntingdonshire District Council,202528,Ace Interiors (Cambs) LTD,68748,18/08/2022,1425,FACILITIES MDF AND DOOR PANEL,15/09/2022,51,255,306,Pathfinder House,Maintenance - Building,60201
http://statistics.data.gov.uk/id/local-authority/12UE,Huntingdonshire District Council,200021,ACTIVE IN TIME LTD ACTIVE IN TIME LTD,66838,01/07/2022,2000463,OL Licenses Jul22-Jun23,28/07/2022,72,360,432,One Leisure Support Team,Licences,60410
http://statistics.data.gov.uk/id/local-authority/12UE,Huntingdonshire District Council,200021,ACTIVE IN TIME LTD ACTIVE IN TIME LTD,66838,01/07/2022,2000463,OL Licenses Jul22-Jun23,28/07/2022,72,360,432,One Leisure Support Team,Licences,60410
http://statistics.data.gov.uk/id/local-authority/12UE,Huntingdonshire District Council,200021,ACTIVE IN TIME LTD ACTIVE IN TIME LTD,66838,01/07/2022,2000463,OL Licenses Jul22-Jun23,28/07/2022,72,360,432,One Leisure Support Team,Licences,60410
http://statistics.data.gov.uk/id/local-authority/12UE,Huntingdonshire District Council,200021,ACTIVE IN TIME LTD ACTIVE IN TIME LTD,66838,01/07/2022,2000463,OL Licenses Jul22-Jun23,28/07/2022,72,360,432,One Leisure Support Team,Licences,60410
http://statistics.data.gov.uk/id/local-authority/12UE,Huntingdonshire District Council,202988,Addleisure Ltd t/a Leisure DB,65679,09/06/2022,23037 SOI,OL FITNESS INDUSTRY REPORT,07/07/2022,125,625,750,One Leisure Management Team,Consultancy Fees,62400
http://statistics.data.gov.uk/id/local-authority/12UE,Huntingdonshire District Council,202988,Addleisure Ltd t/a Leisure DB,68739,19/08/2022,23087E,OLH  DEMOGRAPHIC ANALYSIS,15/09/2022,950,4750,5700,One Leisure Support Team,Consultancy Fees,62400
http://statistics.data.gov.uk/id/local-authority/12UE,Huntingdonshire District Council,202239,ADT FIRE AND SECURITY PLC,67722,01/06/2022,50142431,Fire Alarm Maint Jun22-May23,28/07/2022,195,975,1170,Commercial Properties,Maintenance - Building,60201
http://statistics.data.gov.uk/id/local-authority/12UE,Huntingdonshire District Council,202239,ADT FIRE AND SECURITY PLC,67726,01/06/2022,50142432,Maple Centre Emergency Light Maint,28/07/2022,56,280,336,Commercial Properties,Maintenance - Building,60201
http://statistics.data.gov.uk/id/local-authority/12UE,Huntingdonshire District Council,200028,AEBI SCHMIDT AEBI SCHMIDT,67868,20/07/2022,60281354,AF16HJG Brake Pads,11/08/2022,51.63,258.17,309.8,Street Cleansing,Vehicle Repairs And Maintenance,60904
http://statistics.data.gov.uk/id/local-authority/12UE,Huntingdonshire District Council,200028,AEBI SCHMIDT AEBI SCHMIDT,68983,01/07/2022,60280888,AJ66AVV Engine Repairs,01/09/2022,1077.18,5385.88,6463.06,Street Cleansing,Vehicle Repairs And Maintenance,60904
http://statistics.data.gov.uk/id/local-authority/12UE,Huntingdonshire District Council,200028,AEBI SCHMIDT AEBI SCHMIDT,69802,07/09/2022,CN60282660,OPS Parts Discount,29/09/2022,-96.95,-484.75,-581.7,Street Cleansing,Vehicle Repairs And Maintenance,60904
http://statistics.data.gov.uk/id/local-authority/12UE,Huntingdonshire District Council,200028,AEBI SCHMIDT AEBI SCHMIDT,69804,06/09/2022,60282643,AJ66AVV Mirror Arm/Bracket,29/09/2022,135.52,677.6,813.12,Street Cleansing,Vehicle Repairs And Maintenance,60904
http://statistics.data.gov.uk/id/local-authority/12UE,Huntingdonshire District Council,202924,AGA Print Ltd T/A Solopress,67158,06/07/2022,3062318,OL flyers and leaflets,28/07/2022,0,260.33,260.33,One Leisure Support Team,"Advertising, Publicity And Marketing",62005
http://statistics.data.gov.uk/id/local-authority/12UE,Huntingdonshire District Council,202924,AGA Print Ltd T/A Solopress,67159,06/07/2022,3062326,ol flyers,28/07/2022,0,260.33,260.33,One Leisure Support Team,"Advertising, Publicity And Marketing",62005
http://statistics.data.gov.uk/id/local-authority/12UE,Huntingdonshire District Council,200034,AIRWAVE SOLUTIONS LTD AIRWAVE SOLUTIONS LTD,67357,14/07/2022,0900000307-052,CCTV Cameras,11/08/2022,98.01,490.05,588.06,Cctv Shared Service Hosting,Line Rental,64075
http://statistics.data.gov.uk/id/local-authority/12UE,Huntingdonshire District Council,201059,ALCONBURY & ELLINGTON IDB,67666,20/01/2022,AE 01-2022/23. 2,Special Levy 22/23 Second Installment,25/07/2022,0,42647.5,42647.5,Alconbury & Ellington,Levies Paid,69110
http://statistics.data.gov.uk/id/local-authority/12UE,Huntingdonshire District Council,200924,ALCONBURY PARISH COUNCIL,69732,15/09/2022,PARISH PRECEPT SEP 22,Parish Precept - September 2022,22/09/2022,0,19500,19500,P C Precept Alconbury,Precepts,66301
http://statistics.data.gov.uk/id/local-authority/12UE,Huntingdonshire District Council,200042,ALFA TAIL LIFTS LTD ALFA TAIL LIFTS LTD,67257,24/06/2022,554211,op labour and travel costs,21/07/2022,72.67,363.33,436,Street Cleansing,Vehicle Repairs And Maintenance,60904
http://statistics.data.gov.uk/id/local-authority/12UE,Huntingdonshire District Council,202832,ALLIANCE LEISURE SERVICES LTD,68504,08/07/2022,10127,TA6 Marketing Support Jul22,15/08/2022,336.67,1683.33,2020,OLSIO - Training Shed,"Advertising, Publicity And Marketing",62005
http://statistics.data.gov.uk/id/local-authority/12UE,Huntingdonshire District Council,202237,AMICUS TRUST LTD,68950,18/08/2022,REDACTED,REDACTED,01/09/2022,0,364.15,364.15,Homelessness,Homeless Prevention Payments,64403
http://statistics.data.gov.uk/id/local-authority/12UE,Huntingdonshire District Council,201124,ANDY KNOTT CONSTRUCTION,67236,04/07/2022,4622,REDACTED,28/07/2022,0,2856,2856,Disables Facilities Grants,Mandatory Grants,64601
http://statistics.data.gov.uk/id/local-authority/12UE,Huntingdonshire District Council,201124,ANDY KNOTT CONSTRUCTION,68089,24/06/2022,4616,REDACTED,04/08/2022,0,2640,2640,Disables Facilities Grants,Mandatory Grants,64601
http://statistics.data.gov.uk/id/local-authority/12UE,Huntingdonshire District Council,200050,ANTALIS LTD ANTALIS LTD,66798,27/06/2022,2423577,EFH Paper,21/07/2022,167.8,839,1006.8,Printing,Paper,62803
http://statistics.data.gov.uk/id/local-authority/12UE,Huntingdonshire District Council,201474,APEX TRAINING CENTRES (UK) LTD,67395,14/07/2022,21773,LGV Cat C Training/Test Fee,11/08/2022,46,230,276,Domestic Waste Collection,Staff Development And Training,60115
http://statistics.data.gov.uk/id/local-authority/12UE,Huntingdonshire District Council,201474,APEX TRAINING CENTRES (UK) LTD,67395,14/07/2022,21773,LGV Cat C Training/Test Fee,11/08/2022,0,115,115,Domestic Waste Collection,Staff Development And Training,60115
http://statistics.data.gov.uk/id/local-authority/12UE,Huntingdonshire District Council,201474,APEX TRAINING CENTRES (UK) LTD,67395,14/07/2022,21773,LGV Cat C Training/Test Fee,11/08/2022,0.5,2.5,3,Domestic Waste Collection,Staff Development And Training,60115
http://statistics.data.gov.uk/id/local-authority/12UE,Huntingdonshire District Council,201474,APEX TRAINING CENTRES (UK) LTD,68826,23/08/2022,22135,LGV TRAINING,15/09/2022,46,230,276,Domestic Waste Collection,Staff Development And Training,60115
http://statistics.data.gov.uk/id/local-authority/12UE,Huntingdonshire District Council,201474,APEX TRAINING CENTRES (UK) LTD,68826,23/08/2022,22135,LGV TRAINING,15/09/2022,0,115,115,Domestic Waste Collection,Staff Development And Training,60115
http://statistics.data.gov.uk/id/local-authority/12UE,Huntingdonshire District Council,201474,APEX TRAINING CENTRES (UK) LTD,68826,23/08/2022,22135,LGV TRAINING,15/09/2022,0.5,2.5,3,Domestic Waste Collection,Staff Development And Training,60115
http://statistics.data.gov.uk/id/local-authority/12UE,Huntingdonshire District Council,203023,Approachable Certification Limited,67845,04/07/2022,5520,ISO 9001 Accreditation,28/07/2022,822,4110,4932,Domestic Waste Collection,Audit Fees,62100
http://statistics.data.gov.uk/id/local-authority/12UE,Huntingdonshire District Council,202059,AQUASERVE MANAGEMENT LTD,66722,16/05/2022,AQMAN22011,Awarded Watercourse Audit,04/07/2022,99.95,499.75,599.7,Watercourses,Site Alterations And Materials,60273
http://statistics.data.gov.uk/id/local-authority/12UE,Huntingdonshire District Council,202059,AQUASERVE MANAGEMENT LTD,68567,29/06/2022,AQMAN22018,OPS AUDIT REFERENCE,18/08/2022,15.99,79.96,95.95,Watercourses,Site Alterations And Materials,60273
http://statistics.data.gov.uk/id/local-authority/12UE,Huntingdonshire District Council,202059,AQUASERVE MANAGEMENT LTD,68567,29/06/2022,AQMAN22018,OPS AUDIT REFERENCE,18/08/2022,63.97,319.84,383.81,Watercourses,Site Alterations And Materials,60273
http://statistics.data.gov.uk/id/local-authority/12UE,Huntingdonshire District Council,202059,AQUASERVE MANAGEMENT LTD,69382,22/08/2022,AQMAN22022,Subcontractors,15/09/2022,157.26,786.3,943.56,Watercourses,Subcontractors,62401
http://statistics.data.gov.uk/id/local-authority/12UE,Huntingdonshire District Council,200058,ARCHANT HERTS AND CAMBS ARCHANT HERTS AND CAMBS,66961,25/06/2022,57032285,Public Notice,21/07/2022,55.8,279,334.8,Dm Application Processing,Statutory Advertising,62006
http://statistics.data.gov.uk/id/local-authority/12UE,Huntingdonshire District Council,200058,ARCHANT HERTS AND CAMBS ARCHANT HERTS AND CAMBS,66962,30/06/2022,57035146,Hunts Post/Paper&Energy Levy,28/07/2022,59.32,296.6,355.92,Dm Application Processing,Statutory Advertising,62006
http://statistics.data.gov.uk/id/local-authority/12UE,Huntingdonshire District Council,200060,ARTHUR IBBETT LTD ARTHUR IBBETT LTD,66789,28/04/2022,129284,Back Pack Blower,04/07/2022,73,365,438,Grounds Maintenance,Equipment,61713
http://statistics.data.gov.uk/id/local-authority/12UE,Huntingdonshire District Council,200060,ARTHUR IBBETT LTD ARTHUR IBBETT LTD,67907,30/06/2022,133480,Padlock Keyed Alike,01/08/2022,67.86,339.3,407.16,Grounds Maintenance,Equipment,61713
http://statistics.data.gov.uk/id/local-authority/12UE,Huntingdonshire District Council,200060,ARTHUR IBBETT LTD ARTHUR IBBETT LTD,67907,30/06/2022,133480,Padlock Keyed Alike,01/08/2022,67.86,339.3,407.16,Street Cleansing,Equipment,61713
http://statistics.data.gov.uk/id/local-authority/12UE,Huntingdonshire District Council,200060,ARTHUR IBBETT LTD ARTHUR IBBETT LTD,68530,10/08/2022,135962,Q243Nav Replace Pinion Seal,01/09/2022,-0.02,0,-0.02,Finance,Over/Under VAT Rounding,68350
http://statistics.data.gov.uk/id/local-authority/12UE,Huntingdonshire District Council,200060,ARTHUR IBBETT LTD ARTHUR IBBETT LTD,68397,31/07/2022,135401,Tine/Bolts P8009,25/08/2022,86.18,430.92,517.1,Grounds Maintenance,Vehicle Repairs And Maintenance,60904
http://statistics.data.gov.uk/id/local-authority/12UE,Huntingdonshire District Council,200060,ARTHUR IBBETT LTD ARTHUR IBBETT LTD,68530,10/08/2022,135962,Q243Nav Replace Pinion Seal,01/09/2022,294.31,1471.53,1765.84,Grounds Maintenance,Vehicle Repairs And Maintenance,60904
http://statistics.data.gov.uk/id/local-authority/12UE,Huntingdonshire District Council,201006,ASHCO BUILDING & MAINTENANCE SERVICES LTD,66869,26/05/2022,AC0215607A,Contract Work - Clarke,07/07/2022,0,5700,5700,Disables Facilities Grants,Mandatory Grants,64601
http://statistics.data.gov.uk/id/local-authority/12UE,Huntingdonshire District Council,201006,ASHCO BUILDING & MAINTENANCE SERVICES LTD,67231,30/04/2022,AC0215589,REDACTED,14/07/2022,0,18826.4,18826.4,Disables Facilities Grants,Mandatory Grants,64601
http://statistics.data.gov.uk/id/local-authority/12UE,Huntingdonshire District Council,201006,ASHCO BUILDING & MAINTENANCE SERVICES LTD,67714,28/03/2022,AC0215571,REDACTED,26/07/2022,0,7498,7498,Disables Facilities Grants,Mandatory Grants,64601
http://statistics.data.gov.uk/id/local-authority/12UE,Huntingdonshire District Council,200065,ASP ASP,68443,04/08/2022,15369,2 Way Console For Entry Turnstiles,01/09/2022,312.51,1562.57,1875.08,Leisure Cents - Future Improve,Maintenance - Building,60201
http://statistics.data.gov.uk/id/local-authority/12UE,Huntingdonshire District Council,200065,ASP ASP,69115,25/08/2022,15393,RHS Entry Turnstile Board,22/09/2022,211.28,1056.4,1267.68,Leisure Cents - Future Improve,Maintenance - Building,60201
http://statistics.data.gov.uk/id/local-authority/12UE,Huntingdonshire District Council,200065,ASP ASP,68206,04/08/2022,15364,OL Goldstar Maint 02.09.22,01/09/2022,119,595,714,OLH - Site & Centre Management,"Maintenance - Equipment, Furniture And Materials",61702
http://statistics.data.gov.uk/id/local-authority/12UE,Huntingdonshire District Council,200065,ASP ASP,68206,04/08/2022,15364,OL Goldstar Maint 02.09.22,01/09/2022,119,595,714,OLSI - Site & Centre Management,"Maintenance - Equipment, Furniture And Materials",61702
http://statistics.data.gov.uk/id/local-authority/12UE,Huntingdonshire District Council,200065,ASP ASP,68206,04/08/2022,15364,OL Goldstar Maint 02.09.22,01/09/2022,119,595,714,OLSN - Site & Centre Management,"Maintenance - Equipment, Furniture And Materials",61702
http://statistics.data.gov.uk/id/local-authority/12UE,Huntingdonshire District Council,201026,ASSOCIATION OF ELECTORAL ADMINISTRATORS AEA BOOKINGS,68433,09/08/2022,31275,AEA Certificate Qualification,25/08/2022,158.5,792.5,951,Electoral Registration,Staff Development And Training,60115
http://statistics.data.gov.uk/id/local-authority/12UE,Huntingdonshire District Council,201026,ASSOCIATION OF ELECTORAL ADMINISTRATORS AEA BOOKINGS,68433,09/08/2022,31275,AEA Certificate Qualification,25/08/2022,158.5,792.5,951,HR Services,Staff Development And Training,60115
http://statistics.data.gov.uk/id/local-authority/12UE,Huntingdonshire District Council,200742,ASTREA ACADEMY TRUST - ST IVO ACADEMY ST IVO SCHOOL,66898,30/06/2022,3751 68,OLSI Recharge 17.03-20.06.22,28/07/2022,0,1669.18,1669.18,OLSI - Site & Centre Management,Water And Sewerage,60302
http://statistics.data.gov.uk/id/local-authority/12UE,Huntingdonshire District Council,200742,ASTREA ACADEMY TRUST - ST IVO ACADEMY ST IVO SCHOOL,69227,31/08/2022,37SI 70,OLSI Re-Charge Jun-Jul22,22/09/2022,0,631.18,631.18,OLSI - Site & Centre Management,Water And Sewerage,60302
http://statistics.data.gov.uk/id/local-authority/12UE,Huntingdonshire District Council,200069,ATKINS GREGORY ATKINS GREGORY,66963,30/06/2022,INV52294,CPCA Deep Cleans,28/07/2022,165.8,829,994.8,Pathfinder House,Cleaning Services,60501
http://statistics.data.gov.uk/id/local-authority/12UE,Huntingdonshire District Council,200811,ATOS IT SERVICES UK LTD UNIFY,66931,21/06/2022,5584393530,CCC Landline Rental/Call Charge,14/07/2022,2462.24,12311.2,14773.44,Cambridge City Business Case ,Land Line Rental,64077
http://statistics.data.gov.uk/id/local-authority/12UE,Huntingdonshire District Council,200811,ATOS IT SERVICES UK LTD UNIFY,67424,14/07/2022,5584395264,CCC Landline Rental/Call Charge,11/08/2022,1231.12,6155.6,7386.72,Cambridge City Business Case ,Land Line Rental,64077
http://statistics.data.gov.uk/id/local-authority/12UE,Huntingdonshire District Council,200811,ATOS IT SERVICES UK LTD UNIFY,66931,21/06/2022,5584393530,CCC Landline Rental/Call Charge,14/07/2022,0.09,0.45,0.54,Cambridge City Business Case ,Landline Call Charges,64082
http://statistics.data.gov.uk/id/local-authority/12UE,Huntingdonshire District Council,200811,ATOS IT SERVICES UK LTD UNIFY,67424,14/07/2022,5584395264,CCC Landline Rental/Call Charge,11/08/2022,0,0,0,Cambridge City Business Case ,Landline Call Charges,64082
http://statistics.data.gov.uk/id/local-authority/12UE,Huntingdonshire District Council,200072,B & H DIGITAL LTD B & H DIGITAL LTD,69254,31/08/2022,39140,OL Materials,22/09/2022,169.96,849.8,1019.76,OLSI - Site & Centre Management,"Advertising, Publicity And Marketing",62005
http://statistics.data.gov.uk/id/local-authority/12UE,Huntingdonshire District Council,200072,B & H DIGITAL LTD B & H DIGITAL LTD,69268,31/08/2022,39151,Health Walks Leaflets Print/Design,22/09/2022,50.5,252.5,303,Healthy Walks,"Advertising, Publicity And Marketing",62005
http://statistics.data.gov.uk/id/local-authority/12UE,Huntingdonshire District Council,200072,B & H DIGITAL LTD B & H DIGITAL LTD,69268,31/08/2022,39151,Health Walks Leaflets Print/Design,22/09/2022,144.6,723,867.6,Healthy Walks,"Advertising, Publicity And Marketing",62005
http://statistics.data.gov.uk/id/local-authority/12UE,Huntingdonshire District Council,200072,B & H DIGITAL LTD B & H DIGITAL LTD,67693,26/07/2022,38931,Portal Development,18/08/2022,756,3780,4536,Printing,Consultancy Fees,62400
http://statistics.data.gov.uk/id/local-authority/12UE,Huntingdonshire District Council,200072,B & H DIGITAL LTD B & H DIGITAL LTD,67693,26/07/2022,38931,Portal Development,18/08/2022,0,0,0,Printing,Hire - Equipment Furniture And Materials,61700
http://statistics.data.gov.uk/id/local-authority/12UE,Huntingdonshire District Council,200072,B & H DIGITAL LTD B & H DIGITAL LTD,67693,26/07/2022,38931,Portal Development,18/08/2022,0,0,0,Printing,Hire - Equipment Furniture And Materials,61700
http://statistics.data.gov.uk/id/local-authority/12UE,Huntingdonshire District Council,200072,B & H DIGITAL LTD B & H DIGITAL LTD,67922,29/07/2022,38982,Maintenance Equipment,18/08/2022,87.95,439.74,527.69,Printing,"Maintenance - Equipment, Furniture And Materials",61702
http://statistics.data.gov.uk/id/local-authority/12UE,Huntingdonshire District Council,200072,B & H DIGITAL LTD B & H DIGITAL LTD,66868,30/06/2022,38825,Rejected Bin Hangers,28/07/2022,327,1635,1962,Waste Minimisation,Printing,62001
http://statistics.data.gov.uk/id/local-authority/12UE,Huntingdonshire District Council,200072,B & H DIGITAL LTD B & H DIGITAL LTD,67694,26/07/2022,38932,Blue Bin Stickers,18/08/2022,244.6,1223,1467.6,Waste Minimisation,Printing,62001
http://statistics.data.gov.uk/id/local-authority/12UE,Huntingdonshire District Council,200072,B & H DIGITAL LTD B & H DIGITAL LTD,66144,10/06/2022,38684,Local Plan Printing,07/07/2022,0,319.32,319.32,Planning Policy,Printing (Internal),69301
http://statistics.data.gov.uk/id/local-authority/12UE,Huntingdonshire District Council,200072,B & H DIGITAL LTD B & H DIGITAL LTD,67681,24/06/2022,38741,Print Book Of Condolence,26/07/2022,0,411.25,411.25,Emergency Planning,Printing (Internal),69301
http://statistics.data.gov.uk/id/local-authority/12UE,Huntingdonshire District Council,200075,B S GRAVES ELECTRICAL LTD B S GRAVES ELECTRICAL LTD,67652,22/07/2022,30764,HCP Replace Lights,18/08/2022,44.71,223.55,268.26,Hinchingbrooke Park Management,Maintenance - Building,60201
http://statistics.data.gov.uk/id/local-authority/12UE,Huntingdonshire District Council,200075,B S GRAVES ELECTRICAL LTD B S GRAVES ELECTRICAL LTD,67652,22/07/2022,30764,HCP Replace Lights,18/08/2022,54,270,324,Hinchingbrooke Park Management,Maintenance - Building,60201
http://statistics.data.gov.uk/id/local-authority/12UE,Huntingdonshire District Council,200075,B S GRAVES ELECTRICAL LTD B S GRAVES ELECTRICAL LTD,68600,16/08/2022,30795,facilities pfh,08/09/2022,92.7,463.5,556.2,Pathfinder House,Maintenance - Building,60201
http://statistics.data.gov.uk/id/local-authority/12UE,Huntingdonshire District Council,200075,B S GRAVES ELECTRICAL LTD B S GRAVES ELECTRICAL LTD,68824,18/08/2022,30800,mhp defective lamp,15/09/2022,81.06,405.29,486.35,Mobile Home Park,Maintenance - Building,60201
http://statistics.data.gov.uk/id/local-authority/12UE,Huntingdonshire District Council,201029,BACPR EDUCATION,67686,22/07/2022,INV9342,BACPR Training Oct22,18/08/2022,0,675,675,HR Services,Staff Development And Training,60115
http://statistics.data.gov.uk/id/local-authority/12UE,Huntingdonshire District Council,200077,BADGEMASTER BADGEMASTER,66862,30/06/2022,1780299,OL Badges,28/07/2022,6.66,33.29,39.95,OLH - Site & Centre Management,"Clothes, Uniform And Laundry",62000
http://statistics.data.gov.uk/id/local-authority/12UE,Huntingdonshire District Council,200077,BADGEMASTER BADGEMASTER,66862,30/06/2022,1780299,OL Badges,28/07/2022,16.56,82.79,99.35,OLR - Site & Centre Management,"Clothes, Uniform And Laundry",62000
http://statistics.data.gov.uk/id/local-authority/12UE,Huntingdonshire District Council,200077,BADGEMASTER BADGEMASTER,66862,30/06/2022,1780299,OL Badges,28/07/2022,23.16,115.79,138.95,OLSI - Burgess Hall,"Clothes, Uniform And Laundry",62000
http://statistics.data.gov.uk/id/local-authority/12UE,Huntingdonshire District Council,200077,BADGEMASTER BADGEMASTER,66862,30/06/2022,1780299,OL Badges,28/07/2022,7.32,36.59,43.91,OLSIO - Site & Centre Management,"Clothes, Uniform And Laundry",62000
http://statistics.data.gov.uk/id/local-authority/12UE,Huntingdonshire District Council,200077,BADGEMASTER BADGEMASTER,66862,30/06/2022,1780299,OL Badges,28/07/2022,19.2,95.99,115.19,OLSN - Site & Centre Management,"Clothes, Uniform And Laundry",62000
http://statistics.data.gov.uk/id/local-authority/12UE,Huntingdonshire District Council,200077,BADGEMASTER BADGEMASTER,66862,30/06/2022,1780299,OL Badges,28/07/2022,-0.01,0,-0.01,Finance,Over/Under VAT Rounding,68350
http://statistics.data.gov.uk/id/local-authority/12UE,Huntingdonshire District Council,201155,BALFOUR BEATTY LIVING PLACES LTD,67797,27/07/2022,CSUK OU/INV/128152,CCTV Installation Cambs Sq,18/08/2022,57.96,289.78,347.74,Cctv Huntingdonshire,"Maintenance - Equipment, Furniture And Materials",61702
http://statistics.data.gov.uk/id/local-authority/12UE,Huntingdonshire District Council,201155,BALFOUR BEATTY LIVING PLACES LTD,67809,22/07/2022,CSUK OU/INV/127968,New Camera Deployment,18/08/2022,134.9,674.52,809.42,Cctv Huntingdonshire,"Purchase - Equipment, Furniture And Materials",61703
http://statistics.data.gov.uk/id/local-authority/12UE,Huntingdonshire District Council,200079,BANDVULC TRUCK TYRES BANDVULC TRUCK TYRES,69269,30/08/2022,174210,Tyres P:8 W:0,22/09/2022,-0.01,0,-0.01,Finance,Over/Under VAT Rounding,68350
http://statistics.data.gov.uk/id/local-authority/12UE,Huntingdonshire District Council,200079,BANDVULC TRUCK TYRES BANDVULC TRUCK TYRES,67393,29/06/2022,171928,Tyres P:6 W:0,21/07/2022,35.95,179.75,215.7,Domestic Waste Collection,Tyres,62926
http://statistics.data.gov.uk/id/local-authority/12UE,Huntingdonshire District Council,200079,BANDVULC TRUCK TYRES BANDVULC TRUCK TYRES,67393,29/06/2022,171928,Tyres P:6 W:0,21/07/2022,250.93,1254.64,1505.57,Domestic Waste Collection,Tyres,62926
http://statistics.data.gov.uk/id/local-authority/12UE,Huntingdonshire District Council,200079,BANDVULC TRUCK TYRES BANDVULC TRUCK TYRES,67393,29/06/2022,171928,Tyres P:6 W:0,21/07/2022,20.33,101.63,121.96,Domestic Waste Collection,Tyres,62926
http://statistics.data.gov.uk/id/local-authority/12UE,Huntingdonshire District Council,200079,BANDVULC TRUCK TYRES BANDVULC TRUCK TYRES,67393,29/06/2022,171928,Tyres P:6 W:0,21/07/2022,55.12,275.62,330.74,Domestic Waste Collection,Tyres,62926
http://statistics.data.gov.uk/id/local-authority/12UE,Huntingdonshire District Council,200079,BANDVULC TRUCK TYRES BANDVULC TRUCK TYRES,67393,29/06/2022,171928,Tyres P:6 W:0,21/07/2022,51.2,256,307.2,Domestic Waste Collection,Tyres,62926
http://statistics.data.gov.uk/id/local-authority/12UE,Huntingdonshire District Council,200079,BANDVULC TRUCK TYRES BANDVULC TRUCK TYRES,67393,29/06/2022,171928,Tyres P:6 W:0,21/07/2022,28.8,144.01,172.81,Domestic Waste Collection,Tyres,62926
http://statistics.data.gov.uk/id/local-authority/12UE,Huntingdonshire District Council,200079,BANDVULC TRUCK TYRES BANDVULC TRUCK TYRES,67393,29/06/2022,171928,Tyres P:6 W:0,21/07/2022,155.28,776.4,931.68,Green Waste Collection,Tyres,62926
http://statistics.data.gov.uk/id/local-authority/12UE,Huntingdonshire District Council,200079,BANDVULC TRUCK TYRES BANDVULC TRUCK TYRES,67393,29/06/2022,171928,Tyres P:6 W:0,21/07/2022,14.68,73.38,88.06,Recycling Collections,Tyres,62926
http://statistics.data.gov.uk/id/local-authority/12UE,Huntingdonshire District Council,200079,BANDVULC TRUCK TYRES BANDVULC TRUCK TYRES,67393,29/06/2022,171928,Tyres P:6 W:0,21/07/2022,107.83,539.16,646.99,Recycling Collections,Tyres,62926
http://statistics.data.gov.uk/id/local-authority/12UE,Huntingdonshire District Council,200079,BANDVULC TRUCK TYRES BANDVULC TRUCK TYRES,67393,29/06/2022,171928,Tyres P:6 W:0,21/07/2022,16.7,83.5,100.2,Recycling Collections,Tyres,62926
http://statistics.data.gov.uk/id/local-authority/12UE,Huntingdonshire District Council,200079,BANDVULC TRUCK TYRES BANDVULC TRUCK TYRES,67393,29/06/2022,171928,Tyres P:6 W:0,21/07/2022,44.03,220.14,264.17,Recycling Collections,Tyres,62926
http://statistics.data.gov.uk/id/local-authority/12UE,Huntingdonshire District Council,200079,BANDVULC TRUCK TYRES BANDVULC TRUCK TYRES,67393,29/06/2022,171928,Tyres P:6 W:0,21/07/2022,19.17,95.87,115.04,Weekly Bags,Tyres,62926
http://statistics.data.gov.uk/id/local-authority/12UE,Huntingdonshire District Council,200079,BANDVULC TRUCK TYRES BANDVULC TRUCK TYRES,68241,28/07/2022,173294,Tyres P:7 W:0,18/08/2022,120.7,603.51,724.21,Domestic Waste Collection,Tyres,62926
http://statistics.data.gov.uk/id/local-authority/12UE,Huntingdonshire District Council,200079,BANDVULC TRUCK TYRES BANDVULC TRUCK TYRES,68241,28/07/2022,173294,Tyres P:7 W:0,18/08/2022,75.8,379.01,454.81,Domestic Waste Collection,Tyres,62926
http://statistics.data.gov.uk/id/local-authority/12UE,Huntingdonshire District Council,200079,BANDVULC TRUCK TYRES BANDVULC TRUCK TYRES,68241,28/07/2022,173294,Tyres P:7 W:0,18/08/2022,27.2,136,163.2,Green Waste Collection,Tyres,62926
http://statistics.data.gov.uk/id/local-authority/12UE,Huntingdonshire District Council,200079,BANDVULC TRUCK TYRES BANDVULC TRUCK TYRES,68241,28/07/2022,173294,Tyres P:7 W:0,18/08/2022,33.93,169.63,203.56,Green Waste Collection,Tyres,62926
http://statistics.data.gov.uk/id/local-authority/12UE,Huntingdonshire District Council,200079,BANDVULC TRUCK TYRES BANDVULC TRUCK TYRES,68241,28/07/2022,173294,Tyres P:7 W:0,18/08/2022,10.95,54.75,65.7,Green Waste Collection,Tyres,62926
http://statistics.data.gov.uk/id/local-authority/12UE,Huntingdonshire District Council,200079,BANDVULC TRUCK TYRES BANDVULC TRUCK TYRES,68241,28/07/2022,173294,Tyres P:7 W:0,18/08/2022,73.26,366.3,439.56,Recycling Collections,Tyres,62926
http://statistics.data.gov.uk/id/local-authority/12UE,Huntingdonshire District Council,200079,BANDVULC TRUCK TYRES BANDVULC TRUCK TYRES,68241,28/07/2022,173294,Tyres P:7 W:0,18/08/2022,76.2,381,457.2,Recycling Collections,Tyres,62926
http://statistics.data.gov.uk/id/local-authority/12UE,Huntingdonshire District Council,200079,BANDVULC TRUCK TYRES BANDVULC TRUCK TYRES,68241,28/07/2022,173294,Tyres P:7 W:0,18/08/2022,177.07,885.37,1062.44,Recycling Collections,Tyres,62926
http://statistics.data.gov.uk/id/local-authority/12UE,Huntingdonshire District Council,200079,BANDVULC TRUCK TYRES BANDVULC TRUCK TYRES,68241,28/07/2022,173294,Tyres P:7 W:0,18/08/2022,31.38,156.88,188.26,Recycling Collections,Tyres,62926
http://statistics.data.gov.uk/id/local-authority/12UE,Huntingdonshire District Council,200079,BANDVULC TRUCK TYRES BANDVULC TRUCK TYRES,69269,30/08/2022,174210,Tyres P:8 W:0,22/09/2022,51.2,256,307.2,Domestic Waste Collection,Vehicle Repairs And Maintenance,60904
http://statistics.data.gov.uk/id/local-authority/12UE,Huntingdonshire District Council,200079,BANDVULC TRUCK TYRES BANDVULC TRUCK TYRES,69269,30/08/2022,174210,Tyres P:8 W:0,22/09/2022,20.33,101.63,121.96,Domestic Waste Collection,Vehicle Repairs And Maintenance,60904
http://statistics.data.gov.uk/id/local-authority/12UE,Huntingdonshire District Council,200079,BANDVULC TRUCK TYRES BANDVULC TRUCK TYRES,69269,30/08/2022,174210,Tyres P:8 W:0,22/09/2022,102.4,512,614.4,Domestic Waste Collection,Vehicle Repairs And Maintenance,60904
http://statistics.data.gov.uk/id/local-authority/12UE,Huntingdonshire District Council,200079,BANDVULC TRUCK TYRES BANDVULC TRUCK TYRES,69269,30/08/2022,174210,Tyres P:8 W:0,22/09/2022,96.87,484.37,581.24,Domestic Waste Collection,Vehicle Repairs And Maintenance,60904
http://statistics.data.gov.uk/id/local-authority/12UE,Huntingdonshire District Council,200079,BANDVULC TRUCK TYRES BANDVULC TRUCK TYRES,69269,30/08/2022,174210,Tyres P:8 W:0,22/09/2022,68.35,341.75,410.1,Grounds Maintenance,Vehicle Repairs And Maintenance,60904
http://statistics.data.gov.uk/id/local-authority/12UE,Huntingdonshire District Council,200079,BANDVULC TRUCK TYRES BANDVULC TRUCK TYRES,69269,30/08/2022,174210,Tyres P:8 W:0,22/09/2022,41.7,208.5,250.2,Narrow Access,Vehicle Repairs And Maintenance,60904
http://statistics.data.gov.uk/id/local-authority/12UE,Huntingdonshire District Council,200079,BANDVULC TRUCK TYRES BANDVULC TRUCK TYRES,69269,30/08/2022,174210,Tyres P:8 W:0,22/09/2022,154.98,774.88,929.86,Recycling Collections,Vehicle Repairs And Maintenance,60904
http://statistics.data.gov.uk/id/local-authority/12UE,Huntingdonshire District Council,200079,BANDVULC TRUCK TYRES BANDVULC TRUCK TYRES,69269,30/08/2022,174210,Tyres P:8 W:0,22/09/2022,52.85,264.26,317.11,Recycling Collections,Vehicle Repairs And Maintenance,60904
http://statistics.data.gov.uk/id/local-authority/12UE,Huntingdonshire District Council,200079,BANDVULC TRUCK TYRES BANDVULC TRUCK TYRES,69269,30/08/2022,174210,Tyres P:8 W:0,22/09/2022,30.83,154.13,184.96,Trade Refuse,Vehicle Repairs And Maintenance,60904
http://statistics.data.gov.uk/id/local-authority/12UE,Huntingdonshire District Council,202841,REDACTED,67599,16/07/2022,2,HCP Supply & Fit Flush Unit,25/07/2022,58.33,291.67,350,Hinchingbrooke Park Management,Maintenance - Building,60201
http://statistics.data.gov.uk/id/local-authority/12UE,Huntingdonshire District Council,200090,BDO LLP BDO LLP,66720,30/06/2022,INV-00209921,BDO IT Audit 2021-22,28/07/2022,990,4950,5940,Audit,Audit Fees,62100
http://statistics.data.gov.uk/id/local-authority/12UE,Huntingdonshire District Council,200092,BEEBYS LIMITED BEEBYS LIMITED,68765,15/08/2022,INV-69828,PFH WINDOW CLEANING,08/09/2022,30.9,154.5,185.4,Eastfield House,Cleaning Contract,60502
http://statistics.data.gov.uk/id/local-authority/12UE,Huntingdonshire District Council,200092,BEEBYS LIMITED BEEBYS LIMITED,68765,15/08/2022,INV-69828,PFH WINDOW CLEANING,08/09/2022,198.28,991.38,1189.66,Pathfinder House,Cleaning Contract,60502
http://statistics.data.gov.uk/id/local-authority/12UE,Huntingdonshire District Council,200092,BEEBYS LIMITED BEEBYS LIMITED,68765,15/08/2022,INV-69828,PFH WINDOW CLEANING,08/09/2022,49.44,247.2,296.64,Pathfinder House,Cleaning Contract,60502
http://statistics.data.gov.uk/id/local-authority/12UE,Huntingdonshire District Council,200092,BEEBYS LIMITED BEEBYS LIMITED,68765,15/08/2022,INV-69828,PFH WINDOW CLEANING,08/09/2022,84.98,424.88,509.86,Pathfinder House,Cleaning Contract,60502
http://statistics.data.gov.uk/id/local-authority/12UE,Huntingdonshire District Council,203046,Berry bpi recycled products,68807,23/08/2022,CIN368570,3CICT ACCESS TABLE,15/09/2022,88.38,441.9,530.28,Hinchingbrooke Country Park,Amounts Paid,10009
http://statistics.data.gov.uk/id/local-authority/12UE,Huntingdonshire District Council,203046,Berry bpi recycled products,68807,23/08/2022,CIN368570,3CICT ACCESS TABLE,15/09/2022,294.56,1472.8,1767.36,Hinchingbrooke Country Park,Amounts Paid,10009
http://statistics.data.gov.uk/id/local-authority/12UE,Huntingdonshire District Council,203046,Berry bpi recycled products,68807,23/08/2022,CIN368570,3CICT ACCESS TABLE,15/09/2022,279.2,1396,1675.2,Hinchingbrooke Country Park,Amounts Paid,10009
http://statistics.data.gov.uk/id/local-authority/12UE,Huntingdonshire District Council,203046,Berry bpi recycled products,68807,23/08/2022,CIN368570,3CICT ACCESS TABLE,15/09/2022,74,370,444,Hinchingbrooke Country Park,Amounts Paid,10009
http://statistics.data.gov.uk/id/local-authority/12UE,Huntingdonshire District Council,200101,BID HUNTINGDON BID HUNTINGDON,68557,06/07/2022,INV-1948,BID Levy,15/08/2022,1630.61,8153.05,9783.66,Bid Revenue Account,Payment Of Amount Due,23003
http://statistics.data.gov.uk/id/local-authority/12UE,Huntingdonshire District Council,200101,BID HUNTINGDON BID HUNTINGDON,68558,06/07/2022,INV-1949,BID Levy,15/08/2022,657.28,3286.42,3943.7,Bid Revenue Account,Payment Of Amount Due,23003
http://statistics.data.gov.uk/id/local-authority/12UE,Huntingdonshire District Council,202004,BLOOM PROCUREMENT SERVICES LTD,67919,18/07/2022,SIN035020,Payment Schedule Jun22,01/08/2022,317.47,1587.33,1904.8,Bridge Place Car Park Const,Consultancy Fees,62400
http://statistics.data.gov.uk/id/local-authority/12UE,Huntingdonshire District Council,202004,BLOOM PROCUREMENT SERVICES LTD,67919,18/07/2022,SIN035020,Payment Schedule Jun22,01/08/2022,317.47,1587.34,1904.81,Hinchingbrooke Country Park,Consultancy Fees,62400
http://statistics.data.gov.uk/id/local-authority/12UE,Huntingdonshire District Council,202004,BLOOM PROCUREMENT SERVICES LTD,67919,18/07/2022,SIN035020,Payment Schedule Jun22,01/08/2022,317.47,1587.33,1904.8,St Neots Riverside Park Path/Cycle Imps,Consultancy Fees,62400
http://statistics.data.gov.uk/id/local-authority/12UE,Huntingdonshire District Council,202004,BLOOM PROCUREMENT SERVICES LTD,68671,09/08/2022,SIN035593,OPS JULY 22,22/08/2022,532.53,2662.66,3195.19,Bridge Place Car Park Const,Consultancy Fees,62400
http://statistics.data.gov.uk/id/local-authority/12UE,Huntingdonshire District Council,202004,BLOOM PROCUREMENT SERVICES LTD,68671,09/08/2022,SIN035593,OPS JULY 22,22/08/2022,532.54,2662.68,3195.22,Hinchingbrooke Country Park,Consultancy Fees,62400
http://statistics.data.gov.uk/id/local-authority/12UE,Huntingdonshire District Council,202004,BLOOM PROCUREMENT SERVICES LTD,68671,09/08/2022,SIN035593,OPS JULY 22,22/08/2022,532.53,2662.66,3195.19,St Neots Riverside Park Path/Cycle Imps,Consultancy Fees,62400
http://statistics.data.gov.uk/id/local-authority/12UE,Huntingdonshire District Council,202004,BLOOM PROCUREMENT SERVICES LTD,67919,18/07/2022,SIN035020,Payment Schedule Jun22,01/08/2022,-0.01,0,-0.01,Finance,Over/Under VAT Rounding,68350
http://statistics.data.gov.uk/id/local-authority/12UE,Huntingdonshire District Council,201199,Bluntisham Parish Council,69732,15/09/2022,PARISH PRECEPT SEP 22/23,Parish Precept - September 2022,22/09/2022,0,48688,48688,P C Precept Bluntisham,Precepts,66301
http://statistics.data.gov.uk/id/local-authority/12UE,Huntingdonshire District Council,201138,BORNEY UK LTD,68761,19/08/2022,55818,OPS CORREX PANELS,15/09/2022,273.7,1368.5,1642.2,Emergency Planning,"Advertising, Publicity And Marketing",62005
http://statistics.data.gov.uk/id/local-authority/12UE,Huntingdonshire District Council,202981,Boxxe Limited,67102,08/07/2022,INV0014263,3CICT CONSULTANCY FEE,28/07/2022,2000,10000,12000,3CICT NON STAFF HOLDING ACCOUNT,Consultancy Fees,62400
http://statistics.data.gov.uk/id/local-authority/12UE,Huntingdonshire District Council,201490,BPHA LTD,68601,10/08/2022,REDACTED,REDACTED,18/08/2022,0,5773.94,5773.94,Homelessness,Homeless Prevention Payments,64403
http://statistics.data.gov.uk/id/local-authority/12UE,Huntingdonshire District Council,201490,BPHA LTD,70056,22/09/2022,REDACTED,REDACTED,26/09/2022,0,1062.53,1062.53,Homelessness,Homeless Prevention Payments,64403
http://statistics.data.gov.uk/id/local-authority/12UE,Huntingdonshire District Council,200117,BRAMBLE HUB LTD BRAMBLE HUB LTD,68647,17/08/2022,INV-12529,3CICT GLADSTONE GATEWAY,08/09/2022,1444.44,7222.22,8666.66,HDC Business Case ,Ict Software,64071
http://statistics.data.gov.uk/id/local-authority/12UE,Huntingdonshire District Council,200117,BRAMBLE HUB LTD BRAMBLE HUB LTD,69116,26/08/2022,INV-12558,Professional Services,22/09/2022,600,3000,3600,One Leisure Management Team,Professional Services - General,62402
http://statistics.data.gov.uk/id/local-authority/12UE,Huntingdonshire District Council,201200,Brampton Parish Council,69732,15/09/2022,PARISH PRECEPT SEP 22,Parish Precept - September 2022,22/09/2022,0,151895,151895,P C Precept Brampton,Precepts,66301
http://statistics.data.gov.uk/id/local-authority/12UE,Huntingdonshire District Council,201201,Brampton Parish Council,67663,21/07/2022,15/00368/OUT,Community Facility Contribution,25/07/2022,0,61017.2,61017.2,S106 Agreements Exp & Inc,S106 Community Facilities (Parish) Payment,66454
http://statistics.data.gov.uk/id/local-authority/12UE,Huntingdonshire District Council,201201,Brampton Parish Council,68441,11/08/2022,0801663FUL,Children's Play Facilities Grant,15/08/2022,0,15873.13,15873.13,S106 Agreements Exp & Inc,S106 Community Facilities (Parish) Payment,66454
http://statistics.data.gov.uk/id/local-authority/12UE,Huntingdonshire District Council,202381,BRAMPTON VILLAGE HUB,69100,31/08/2022,PRF HEALTH INEQUALITIES PROJEC,PRF HEALTH INEQUALITIES PROJECT,01/09/2022,0,2750,2750,Integrated Care System Project,Grants And Contributions,64600
http://statistics.data.gov.uk/id/local-authority/12UE,Huntingdonshire District Council,200119,BRENNTAG UK LTD BRENNTAG UK LTD,66258,15/06/2022,38SI 3962464,OLSN Chemicals,07/07/2022,186.2,931,1117.2,OLSN - Site & Centre Management,Chemicals,64000
http://statistics.data.gov.uk/id/local-authority/12UE,Huntingdonshire District Council,202936,Bridge Planning Ltd,66764,30/06/2022,INV-013,Planning Consultancy 27-30.06.22,04/07/2022,333,1665,1998,Development Management,Agency Staff,60011
http://statistics.data.gov.uk/id/local-authority/12UE,Huntingdonshire District Council,202936,Bridge Planning Ltd,67177,07/07/2022,14,consultant 040722-070722,14/07/2022,333,1665,1998,Development Management,Agency Staff,60011
http://statistics.data.gov.uk/id/local-authority/12UE,Huntingdonshire District Council,202936,Bridge Planning Ltd,67406,14/07/2022,INV-015,Planning Consultant 11-14.07.22,18/07/2022,333,1665,1998,Development Management,Agency Staff,60011
http://statistics.data.gov.uk/id/local-authority/12UE,Huntingdonshire District Council,202936,Bridge Planning Ltd,67814,21/07/2022,INV-016,Planning Consultant 18-21.07.22,28/07/2022,333,1665,1998,Development Management,Agency Staff,60011
http://statistics.data.gov.uk/id/local-authority/12UE,Huntingdonshire District Council,202936,Bridge Planning Ltd,67971,28/07/2022,INV-017,Planning Consultant 25-28.07.22,01/08/2022,333,1665,1998,Development Management,Agency Staff,60011
http://statistics.data.gov.uk/id/local-authority/12UE,Huntingdonshire District Council,202936,Bridge Planning Ltd,68534,05/08/2022,INV-018,Planning Consultant 01-04.08.22,15/08/2022,333,1665,1998,Development Management,Agency Staff,60011
http://statistics.data.gov.uk/id/local-authority/12UE,Huntingdonshire District Council,202936,Bridge Planning Ltd,68667,05/08/2022,INV -018`,PLANNING CONSULTANT 0108-040822,18/08/2022,333,1665,1998,Development Management,Agency Staff,60011
http://statistics.data.gov.uk/id/local-authority/12UE,Huntingdonshire District Council,202936,Bridge Planning Ltd,68738,18/08/2022,INV-020,CONSULTANT 15-180822,22/08/2022,333,1665,1998,Development Management,Agency Staff,60011
http://statistics.data.gov.uk/id/local-authority/12UE,Huntingdonshire District Council,202936,Bridge Planning Ltd,69029,26/08/2022,INV-021,Planning Consultant 22-25.08.22,01/09/2022,333,1665,1998,Development Management,Agency Staff,60011
http://statistics.data.gov.uk/id/local-authority/12UE,Huntingdonshire District Council,202936,Bridge Planning Ltd,69310,02/09/2022,INV-022,Planning Consultant 30.08-02.09.22,08/09/2022,333,1665,1998,Development Management,Agency Staff,60011
http://statistics.data.gov.uk/id/local-authority/12UE,Huntingdonshire District Council,202936,Bridge Planning Ltd,69892,15/09/2022,INV-023,REDACTED,22/09/2022,333,1665,1998,Development Management,Agency Staff,60011
http://statistics.data.gov.uk/id/local-authority/12UE,Huntingdonshire District Council,202936,Bridge Planning Ltd,70144,23/09/2022,INV-024,REDACTED,29/09/2022,333,1665,1998,Development Management,Agency Staff,60011
http://statistics.data.gov.uk/id/local-authority/12UE,Huntingdonshire District Council,203001,British Association Of Landscape Industries,66526,10/06/2022,INV-44037,Membership Fees,07/07/2022,61.8,309,370.8,Grounds Maintenance,Membership And Subscriptions,64800
http://statistics.data.gov.uk/id/local-authority/12UE,Huntingdonshire District Council,200126,BRITISH GAS BUSINESS BRITISH GAS BUSINESS,67022,05/07/2022,978637325,OLSI Jun22,14/07/2022,1008.15,5040.74,6048.89,OLSI - Site & Centre Management,Gas,60305
http://statistics.data.gov.uk/id/local-authority/12UE,Huntingdonshire District Council,200126,BRITISH GAS BUSINESS BRITISH GAS BUSINESS,67023,05/07/2022,978637323,OLSN WET Jun22,14/07/2022,505.59,2527.95,3033.54,OLSN - Swimming,Gas,60305
http://statistics.data.gov.uk/id/local-authority/12UE,Huntingdonshire District Council,200126,BRITISH GAS BUSINESS BRITISH GAS BUSINESS,67024,05/07/2022,978637324,OLH WET Jun22,14/07/2022,540.57,2702.86,3243.43,OLH - Swimming,Gas,60305
http://statistics.data.gov.uk/id/local-authority/12UE,Huntingdonshire District Council,200126,BRITISH GAS BUSINESS BRITISH GAS BUSINESS,67025,05/07/2022,978637322,OLH Dry Jun22,14/07/2022,116.24,581.18,697.42,OLH - Site & Centre Management,Gas,60305
http://statistics.data.gov.uk/id/local-authority/12UE,Huntingdonshire District Council,200126,BRITISH GAS BUSINESS BRITISH GAS BUSINESS,67189,05/07/2022,978637327,efh june charges,14/07/2022,80.46,402.3,482.76,Eastfield House,Gas,60305
http://statistics.data.gov.uk/id/local-authority/12UE,Huntingdonshire District Council,200126,BRITISH GAS BUSINESS BRITISH GAS BUSINESS,67190,05/07/2022,978637326,pfh june,14/07/2022,12.88,257.66,270.54,Pathfinder House,Gas,60305
http://statistics.data.gov.uk/id/local-authority/12UE,Huntingdonshire District Council,200126,BRITISH GAS BUSINESS BRITISH GAS BUSINESS,67331,11/07/2022,718067085,OLSN Dry Jun22,21/07/2022,14.54,290.76,305.3,OLSN - Site & Centre Management,Gas,60305
http://statistics.data.gov.uk/id/local-authority/12UE,Huntingdonshire District Council,200126,BRITISH GAS BUSINESS BRITISH GAS BUSINESS,67394,14/07/2022,718088237,OLSIO May-Jun22,21/07/2022,110.72,553.61,664.33,OLSIO - Site & Centre Management,Gas,60305
http://statistics.data.gov.uk/id/local-authority/12UE,Huntingdonshire District Council,200126,BRITISH GAS BUSINESS BRITISH GAS BUSINESS,68144,03/08/2022,977667356,OLSN Wet Jul22,11/08/2022,453.3,2266.48,2719.78,OLSN - Swimming,Gas,60305
http://statistics.data.gov.uk/id/local-authority/12UE,Huntingdonshire District Council,200126,BRITISH GAS BUSINESS BRITISH GAS BUSINESS,68145,03/08/2022,977667355,OLH Dry Jul22,11/08/2022,109.15,545.75,654.9,OLH - Site & Centre Management,Gas,60305
http://statistics.data.gov.uk/id/local-authority/12UE,Huntingdonshire District Council,200126,BRITISH GAS BUSINESS BRITISH GAS BUSINESS,68146,03/08/2022,977667357,OLH Wet Jul22,11/08/2022,610.26,3051.3,3661.56,OLH - Swimming,Gas,60305
http://statistics.data.gov.uk/id/local-authority/12UE,Huntingdonshire District Council,200126,BRITISH GAS BUSINESS BRITISH GAS BUSINESS,68147,03/08/2022,977667358,OLSI Jul22,11/08/2022,897.72,4488.59,5386.31,OLSI - Site & Centre Management,Gas,60305
http://statistics.data.gov.uk/id/local-authority/12UE,Huntingdonshire District Council,200126,BRITISH GAS BUSINESS BRITISH GAS BUSINESS,68361,03/08/2022,977667360,EFH Jul22,11/08/2022,80.7,403.51,484.21,Eastfield House,Gas,60305
http://statistics.data.gov.uk/id/local-authority/12UE,Huntingdonshire District Council,200126,BRITISH GAS BUSINESS BRITISH GAS BUSINESS,68362,03/08/2022,977667359,PFH Jul22,11/08/2022,13.23,264.59,277.82,Pathfinder House,Gas,60305
http://statistics.data.gov.uk/id/local-authority/12UE,Huntingdonshire District Council,200126,BRITISH GAS BUSINESS BRITISH GAS BUSINESS,68367,08/08/2022,251244279,OLSIO Jul22,18/08/2022,17.74,354.8,372.54,OLSIO - Site & Centre Management,Gas,60305
http://statistics.data.gov.uk/id/local-authority/12UE,Huntingdonshire District Council,200126,BRITISH GAS BUSINESS BRITISH GAS BUSINESS,68370,08/08/2022,251244278,OLSN Dry Jul22,18/08/2022,14.2,284.03,298.23,OLSN - Site & Centre Management,Gas,60305
http://statistics.data.gov.uk/id/local-authority/12UE,Huntingdonshire District Council,200126,BRITISH GAS BUSINESS BRITISH GAS BUSINESS,69278,05/09/2022,370823075,OLSI Indoor Aug22,15/09/2022,764.17,3820.85,4585.02,OLSI - Site & Centre Management,Gas,60305
http://statistics.data.gov.uk/id/local-authority/12UE,Huntingdonshire District Council,200126,BRITISH GAS BUSINESS BRITISH GAS BUSINESS,69279,05/09/2022,370823074,OLH Wet Aug22,15/09/2022,673.18,3365.88,4039.06,OLH - Swimming,Gas,60305
http://statistics.data.gov.uk/id/local-authority/12UE,Huntingdonshire District Council,200126,BRITISH GAS BUSINESS BRITISH GAS BUSINESS,69280,05/09/2022,370823072,OLH Dry Aug22,15/09/2022,106.95,534.75,641.7,OLH - Site & Centre Management,Gas,60305
http://statistics.data.gov.uk/id/local-authority/12UE,Huntingdonshire District Council,200126,BRITISH GAS BUSINESS BRITISH GAS BUSINESS,69281,05/09/2022,370823073,OLSN Wet Aug22,15/09/2022,440.84,2204.18,2645.02,OLSN - Swimming,Gas,60305
http://statistics.data.gov.uk/id/local-authority/12UE,Huntingdonshire District Council,200126,BRITISH GAS BUSINESS BRITISH GAS BUSINESS,69295,05/09/2022,370823076,OLSN Dry Jul-Aug22,15/09/2022,84.27,421.37,505.64,OLSN - Site & Centre Management,Gas,60305
http://statistics.data.gov.uk/id/local-authority/12UE,Huntingdonshire District Council,200126,BRITISH GAS BUSINESS BRITISH GAS BUSINESS,69468,05/09/2022,370823078,EFH Aug22,15/09/2022,18.21,364.15,382.36,Eastfield House,Gas,60305
http://statistics.data.gov.uk/id/local-authority/12UE,Huntingdonshire District Council,200126,BRITISH GAS BUSINESS BRITISH GAS BUSINESS,69470,06/09/2022,550567090,OLSIO Jul-Aug22,15/09/2022,81.63,408.16,489.79,OLSIO - Site & Centre Management,Gas,60305
http://statistics.data.gov.uk/id/local-authority/12UE,Huntingdonshire District Council,200126,BRITISH GAS BUSINESS BRITISH GAS BUSINESS,69675,05/09/2022,370823077,PFH Aug22,15/09/2022,13.23,264.59,277.82,Pathfinder House,Gas,60305
http://statistics.data.gov.uk/id/local-authority/12UE,Huntingdonshire District Council,200126,BRITISH GAS BUSINESS BRITISH GAS BUSINESS,67022,05/07/2022,978637325,OLSI Jun22,14/07/2022,-0.01,0,-0.01,Finance,Over/Under VAT Rounding,68350
http://statistics.data.gov.uk/id/local-authority/12UE,Huntingdonshire District Council,200126,BRITISH GAS BUSINESS BRITISH GAS BUSINESS,67025,05/07/2022,978637322,OLH Dry Jun22,14/07/2022,-0.01,0,-0.01,Finance,Over/Under VAT Rounding,68350
http://statistics.data.gov.uk/id/local-authority/12UE,Huntingdonshire District Council,200126,BRITISH GAS BUSINESS BRITISH GAS BUSINESS,67331,11/07/2022,718067085,OLSN Dry Jun22,21/07/2022,-0.01,0,-0.01,Finance,Over/Under VAT Rounding,68350
http://statistics.data.gov.uk/id/local-authority/12UE,Huntingdonshire District Council,200126,BRITISH GAS BUSINESS BRITISH GAS BUSINESS,68144,03/08/2022,977667356,OLSN Wet Jul22,11/08/2022,-0.01,0,-0.01,Finance,Over/Under VAT Rounding,68350
http://statistics.data.gov.uk/id/local-authority/12UE,Huntingdonshire District Council,200126,BRITISH GAS BUSINESS BRITISH GAS BUSINESS,68147,03/08/2022,977667358,OLSI Jul22,11/08/2022,-0.01,0,-0.01,Finance,Over/Under VAT Rounding,68350
http://statistics.data.gov.uk/id/local-authority/12UE,Huntingdonshire District Council,200126,BRITISH GAS BUSINESS BRITISH GAS BUSINESS,68362,03/08/2022,977667359,PFH Jul22,11/08/2022,-0.01,0,-0.01,Finance,Over/Under VAT Rounding,68350
http://statistics.data.gov.uk/id/local-authority/12UE,Huntingdonshire District Council,200126,BRITISH GAS BUSINESS BRITISH GAS BUSINESS,69279,05/09/2022,370823074,OLH Wet Aug22,15/09/2022,-0.01,0,-0.01,Finance,Over/Under VAT Rounding,68350
http://statistics.data.gov.uk/id/local-authority/12UE,Huntingdonshire District Council,200126,BRITISH GAS BUSINESS BRITISH GAS BUSINESS,69281,05/09/2022,370823073,OLSN Wet Aug22,15/09/2022,-0.01,0,-0.01,Finance,Over/Under VAT Rounding,68350
http://statistics.data.gov.uk/id/local-authority/12UE,Huntingdonshire District Council,200126,BRITISH GAS BUSINESS BRITISH GAS BUSINESS,69468,05/09/2022,370823078,EFH Aug22,15/09/2022,-0.01,0,-0.01,Finance,Over/Under VAT Rounding,68350
http://statistics.data.gov.uk/id/local-authority/12UE,Huntingdonshire District Council,200126,BRITISH GAS BUSINESS BRITISH GAS BUSINESS,69675,05/09/2022,370823077,PFH Aug22,15/09/2022,-0.01,0,-0.01,Finance,Over/Under VAT Rounding,68350
http://statistics.data.gov.uk/id/local-authority/12UE,Huntingdonshire District Council,202932,British Sugar Topsoil,66817,29/05/2022,51183091 RI,Hort Loam Topsoil,04/07/2022,114,570,684,Grounds Maintenance,Gardening Supplies,60506
http://statistics.data.gov.uk/id/local-authority/12UE,Huntingdonshire District Council,200129,BRITISH TELECOMMUNICATIONS PLC BRITISH TELECOMMUNICATIONS PLC,67827,10/06/2022,Q002 Y3,BT Bill,28/07/2022,188.48,942.38,1130.86,Cctv Huntingdonshire,Line Rental,64075
http://statistics.data.gov.uk/id/local-authority/12UE,Huntingdonshire District Council,201752,BROWN & CO PROPERY & BUSINESS CONSULTANTS LLP,67413,30/06/2022,35472,Rowley Centre - Reconcil Service Charge,18/07/2022,50,250,300,Commercial Investment Strategy,Consultancy Fees,62400
http://statistics.data.gov.uk/id/local-authority/12UE,Huntingdonshire District Council,202559,BUCHER MUNICIPAL LTD,67780,22/06/2022,62110481,LF71ZNK Suction Tube,28/07/2022,70.37,351.84,422.21,Street Cleansing,Vehicle Repairs And Maintenance,60904
http://statistics.data.gov.uk/id/local-authority/12UE,Huntingdonshire District Council,201207,Bury Parish Council,69732,15/09/2022,PARISH PRECEPT SEP 22,Parish Precept - September 2022,22/09/2022,0,30600,30600,P C Precept Bury,Precepts,66301
http://statistics.data.gov.uk/id/local-authority/12UE,Huntingdonshire District Council,203034,Butcher Bayley Architects (BBA),69991,29/08/2022,217-BBA-IN-001,Feasibility Study PaxPits VC Gar,22/09/2022,400,2000,2400,Paxton Pits,Consultancy Fees,62400
http://statistics.data.gov.uk/id/local-authority/12UE,Huntingdonshire District Council,202847,BUZZ SUPPLIES LTD,67826,01/02/2022,226284,Catering Equipment -Dishwasher,28/07/2022,165.8,829,994.8,Paxton Pits,Catering Equipment,61901
http://statistics.data.gov.uk/id/local-authority/12UE,Huntingdonshire District Council,200148,CALLCREDIT LTD CALLCREDIT LTD,66977,01/07/2022,929275,929275 Jun22,28/07/2022,187.49,937.44,1124.93,Benefits Management,Enquiries,63400
http://statistics.data.gov.uk/id/local-authority/12UE,Huntingdonshire District Council,200148,CALLCREDIT LTD CALLCREDIT LTD,66977,01/07/2022,929275,929275 Jun22,28/07/2022,3.35,16.74,20.09,Housing Needs & Resources,Enquiries,63400
http://statistics.data.gov.uk/id/local-authority/12UE,Huntingdonshire District Council,200148,CALLCREDIT LTD CALLCREDIT LTD,68161,01/08/2022,933862,P/E Jul-Aug22,25/08/2022,160.26,801.28,961.54,Benefits Management,Enquiries,63400
http://statistics.data.gov.uk/id/local-authority/12UE,Huntingdonshire District Council,200148,CALLCREDIT LTD CALLCREDIT LTD,68161,01/08/2022,933862,P/E Jul-Aug22,25/08/2022,3.57,17.86,21.43,Finance,Enquiries,63400
http://statistics.data.gov.uk/id/local-authority/12UE,Huntingdonshire District Council,200148,CALLCREDIT LTD CALLCREDIT LTD,68161,01/08/2022,933862,P/E Jul-Aug22,25/08/2022,1.12,5.58,6.7,Housing Needs & Resources,Enquiries,63400
http://statistics.data.gov.uk/id/local-authority/12UE,Huntingdonshire District Council,200148,CALLCREDIT LTD CALLCREDIT LTD,69402,01/09/2022,936612,,29/09/2022,93.97,469.83,563.8,Benefits Management,Enquiries,63400
http://statistics.data.gov.uk/id/local-authority/12UE,Huntingdonshire District Council,200148,CALLCREDIT LTD CALLCREDIT LTD,69402,01/09/2022,936612,,29/09/2022,2.9,14.51,17.41,Finance,Enquiries,63400
http://statistics.data.gov.uk/id/local-authority/12UE,Huntingdonshire District Council,200148,CALLCREDIT LTD CALLCREDIT LTD,69402,01/09/2022,936612,,29/09/2022,2.46,12.28,14.74,Housing Needs & Resources,Enquiries,63400
http://statistics.data.gov.uk/id/local-authority/12UE,Huntingdonshire District Council,200148,CALLCREDIT LTD CALLCREDIT LTD,68161,01/08/2022,933862,P/E Jul-Aug22,25/08/2022,-0.01,0,-0.01,Finance,Over/Under VAT Rounding,68350
http://statistics.data.gov.uk/id/local-authority/12UE,Huntingdonshire District Council,200148,CALLCREDIT LTD CALLCREDIT LTD,69402,01/09/2022,936612,,29/09/2022,-0.01,0,-0.01,Finance,Over/Under VAT Rounding,68350
http://statistics.data.gov.uk/id/local-authority/12UE,Huntingdonshire District Council,200149,CAMBRIDGE CITY COUNCIL CAMBRIDGE CITY COUNCIL,66558,23/06/2022,12077978,22/23 Quarter 1 Budget Fee Cambs HIA,14/07/2022,0,72898.8,72898.8,Disables Facilities Grants,Home Improvement Agency Fees,67200
http://statistics.data.gov.uk/id/local-authority/12UE,Huntingdonshire District Council,200149,CAMBRIDGE CITY COUNCIL CAMBRIDGE CITY COUNCIL,67100,31/03/2022,12075153,3cict refund excess phone charge 20-21,11/07/2022,609.03,3045.15,3654.18,City Recoverable,Ict Software,64071
http://statistics.data.gov.uk/id/local-authority/12UE,Huntingdonshire District Council,200149,CAMBRIDGE CITY COUNCIL CAMBRIDGE CITY COUNCIL,67103,29/03/2022,12075058,recharge hybrid mail/printing,11/07/2022,1117.9,5589.5,6707.4,Printing,Legal Fees,63200
http://statistics.data.gov.uk/id/local-authority/12UE,Huntingdonshire District Council,200149,CAMBRIDGE CITY COUNCIL CAMBRIDGE CITY COUNCIL,67100,31/03/2022,12075153,3cict refund excess phone charge 20-21,11/07/2022,68.4,342,410.4,City Recoverable,Telephone Equipment,64078
http://statistics.data.gov.uk/id/local-authority/12UE,Huntingdonshire District Council,200149,CAMBRIDGE CITY COUNCIL CAMBRIDGE CITY COUNCIL,67100,31/03/2022,12075153,3cict refund excess phone charge 20-21,11/07/2022,2004.88,10024.41,12029.29,City Recoverable,Telephone Equipment,64078
http://statistics.data.gov.uk/id/local-authority/12UE,Huntingdonshire District Council,200149,CAMBRIDGE CITY COUNCIL CAMBRIDGE CITY COUNCIL,67100,31/03/2022,12075153,3cict refund excess phone charge 20-21,11/07/2022,1516.82,7584.1,9100.92,City Recoverable,Telephone Equipment,64078
http://statistics.data.gov.uk/id/local-authority/12UE,Huntingdonshire District Council,200150,CAMBRIDGE CONSULTANCY IN COUNSELLING CAMBRIDGE CONSULTANCY IN COUNSELLING,66690,30/09/2021,103062,Monthly Plan Sep21,04/07/2022,0,666.5,666.5,HR Services,Occupational Health,60111
http://statistics.data.gov.uk/id/local-authority/12UE,Huntingdonshire District Council,203016,Cambridge Trees Ltd,68368,08/08/2022,INV-3603,REDACTED,18/08/2022,60,300,360,Arboricultural Team,Subcontractors,62401
http://statistics.data.gov.uk/id/local-authority/12UE,Huntingdonshire District Council,203016,Cambridge Trees Ltd,68797,23/08/2022,INV-3611,REDACTED,01/09/2022,75,375,450,Arboricultural Team,Subcontractors,62401
http://statistics.data.gov.uk/id/local-authority/12UE,Huntingdonshire District Council,200158,CAMBRIDGESHIRE CHAMBERS OF COMMERCE CAMBRIDGESHIRE CHAMBERS OF COMMERCE,69408,06/09/2022,200676,Hunts Membership 20/10/2023,29/09/2022,135.6,678,813.6,Business & Enterprise Support,Membership And Subscriptions,64800
http://statistics.data.gov.uk/id/local-authority/12UE,Huntingdonshire District Council,201033,CAMBRIDGESHIRE COUNTY COUNCIL,66712,23/06/2022,4.23003E+11,Trade/Food Waste Disposal Costs May22,14/07/2022,0,11176.11,11176.11,Trade Refuse,Waste Disposal Costs,64050
http://statistics.data.gov.uk/id/local-authority/12UE,Huntingdonshire District Council,201033,CAMBRIDGESHIRE COUNTY COUNCIL,66712,23/06/2022,4.23003E+11,Trade/Food Waste Disposal Costs May22,14/07/2022,0,124.98,124.98,Trade Refuse,Waste Disposal Costs,64050
http://statistics.data.gov.uk/id/local-authority/12UE,Huntingdonshire District Council,201033,CAMBRIDGESHIRE COUNTY COUNCIL,66714,23/06/2022,4.23003E+11,Trade/Food Waste Disposal Costs Apr22,14/07/2022,0,10250.38,10250.38,Trade Refuse,Waste Disposal Costs,64050
http://statistics.data.gov.uk/id/local-authority/12UE,Huntingdonshire District Council,201033,CAMBRIDGESHIRE COUNTY COUNCIL,66714,23/06/2022,4.23003E+11,Trade/Food Waste Disposal Costs Apr22,14/07/2022,0,111.35,111.35,Trade Refuse,Waste Disposal Costs,64050
http://statistics.data.gov.uk/id/local-authority/12UE,Huntingdonshire District Council,201033,CAMBRIDGESHIRE COUNTY COUNCIL,67531,16/07/2022,4.23003E+11,HDC Trade/Food Waste Jun22,11/08/2022,0,12438.37,12438.37,Trade Refuse,Waste Disposal Costs,64050
http://statistics.data.gov.uk/id/local-authority/12UE,Huntingdonshire District Council,201033,CAMBRIDGESHIRE COUNTY COUNCIL,67531,16/07/2022,4.23003E+11,HDC Trade/Food Waste Jun22,11/08/2022,0,152.25,152.25,Trade Refuse,Waste Disposal Costs,64050
http://statistics.data.gov.uk/id/local-authority/12UE,Huntingdonshire District Council,201033,CAMBRIDGESHIRE COUNTY COUNCIL,68948,19/08/2022,4.23003E+11,Trade/Food Waste Jul22,15/09/2022,0,10304.14,10304.14,Trade Refuse,Waste Disposal Costs,64050
http://statistics.data.gov.uk/id/local-authority/12UE,Huntingdonshire District Council,201033,CAMBRIDGESHIRE COUNTY COUNCIL,68948,19/08/2022,4.23003E+11,Trade/Food Waste Jul22,15/09/2022,0,102.26,102.26,Trade Refuse,Waste Disposal Costs,64050
http://statistics.data.gov.uk/id/local-authority/12UE,Huntingdonshire District Council,200159,CAMBRIDGESHIRE COUNTY COUNCIL CAMBRIDGESHIRE COUNTY COUNCIL,68768,20/07/2022,4.23003E+11,highway searches q1,25/08/2022,3440,17200,20640,Land Enquiry Con 29 Full,General Office Expenses,62004
http://statistics.data.gov.uk/id/local-authority/12UE,Huntingdonshire District Council,200159,CAMBRIDGESHIRE COUNTY COUNCIL CAMBRIDGESHIRE COUNTY COUNCIL,69096,30/08/2022,WINWICK CIL NON PARISH 300822,Winwick CIL Non Parish,22/09/2022,0,4242.09,4242.09,Community Infrastruct Levy Cil,Grants And Contributions,64600
http://statistics.data.gov.uk/id/local-authority/12UE,Huntingdonshire District Council,201054,Cambridgeshire Pension Fund,69369,07/09/2022,4.233E+11,REDACTED,29/09/2022,0,36990.93,36990.93,Non Distributed Costs,Pension Early Retirements,60103
http://statistics.data.gov.uk/id/local-authority/12UE,Huntingdonshire District Council,201054,Cambridgeshire Pension Fund,66933,17/03/2022,4.233E+11,Feb & Mar22 Unfunded Pensions,07/07/2022,0,27093.36,27093.36,Non Distributed Costs,Pension Increase Act Payments,60101
http://statistics.data.gov.uk/id/local-authority/12UE,Huntingdonshire District Council,201054,Cambridgeshire Pension Fund,68846,17/07/2022,4.233E+11,Unfunded Benefit 2022/23,25/08/2022,0,27651.22,27651.22,Non Distributed Costs,Pension Increase Act Payments,60101
http://statistics.data.gov.uk/id/local-authority/12UE,Huntingdonshire District Council,201054,Cambridgeshire Pension Fund,68847,12/08/2022,4.233E+11,Unfunded Benefit 2022/23,08/09/2022,0,13906.88,13906.88,Non Distributed Costs,Pension Increase Act Payments,60101
http://statistics.data.gov.uk/id/local-authority/12UE,Huntingdonshire District Council,201054,Cambridgeshire Pension Fund,68848,05/08/2022,4.233E+11,Unfunded Benefit 2022/23,01/09/2022,0,13906.88,13906.88,Non Distributed Costs,Pension Increase Act Payments,60101
http://statistics.data.gov.uk/id/local-authority/12UE,Huntingdonshire District Council,200169,CARE CHECK LTD CARE CHECK LTD,66688,31/05/2022,359904,DBS Enquiries,04/07/2022,0,162,162,Homes for Ukraine,Enquiries,63400
http://statistics.data.gov.uk/id/local-authority/12UE,Huntingdonshire District Council,200169,CARE CHECK LTD CARE CHECK LTD,66688,31/05/2022,359904,DBS Enquiries,04/07/2022,9,45,54,Homes for Ukraine,Enquiries,63400
http://statistics.data.gov.uk/id/local-authority/12UE,Huntingdonshire District Council,200169,CARE CHECK LTD CARE CHECK LTD,66688,31/05/2022,359904,DBS Enquiries,04/07/2022,0,1292,1292,Homes for Ukraine,Enquiries,63400
http://statistics.data.gov.uk/id/local-authority/12UE,Huntingdonshire District Council,200169,CARE CHECK LTD CARE CHECK LTD,66688,31/05/2022,359904,DBS Enquiries,04/07/2022,34,170,204,Homes for Ukraine,Enquiries,63400
http://statistics.data.gov.uk/id/local-authority/12UE,Huntingdonshire District Council,200169,CARE CHECK LTD CARE CHECK LTD,67692,30/06/2022,393043,DBS Check Fees,28/07/2022,0,522,522,Homes for Ukraine,Enquiries,63400
http://statistics.data.gov.uk/id/local-authority/12UE,Huntingdonshire District Council,200169,CARE CHECK LTD CARE CHECK LTD,67692,30/06/2022,393043,DBS Check Fees,28/07/2022,53,265,318,Homes for Ukraine,Enquiries,63400
http://statistics.data.gov.uk/id/local-authority/12UE,Huntingdonshire District Council,200169,CARE CHECK LTD CARE CHECK LTD,67692,30/06/2022,393043,DBS Check Fees,28/07/2022,0,912,912,Homes for Ukraine,Enquiries,63400
http://statistics.data.gov.uk/id/local-authority/12UE,Huntingdonshire District Council,200169,CARE CHECK LTD CARE CHECK LTD,67796,30/06/2022,393032,DBS Check/Fees,28/07/2022,0,262,262,HR Services,Enquiries,63400
http://statistics.data.gov.uk/id/local-authority/12UE,Huntingdonshire District Council,200169,CARE CHECK LTD CARE CHECK LTD,67796,30/06/2022,393032,DBS Check/Fees,28/07/2022,9,45,54,HR Services,Enquiries,63400
http://statistics.data.gov.uk/id/local-authority/12UE,Huntingdonshire District Council,200169,CARE CHECK LTD CARE CHECK LTD,68032,31/07/2022,400557,DBS Check/Fees,11/08/2022,0,302,302,HR Services,Enquiries,63400
http://statistics.data.gov.uk/id/local-authority/12UE,Huntingdonshire District Council,200169,CARE CHECK LTD CARE CHECK LTD,68032,31/07/2022,400557,DBS Check/Fees,11/08/2022,9,45,54,HR Services,Enquiries,63400
http://statistics.data.gov.uk/id/local-authority/12UE,Huntingdonshire District Council,200169,CARE CHECK LTD CARE CHECK LTD,68784,31/07/2022,400881,homes for Ukraine DBS checks,25/08/2022,0,380,380,Homes for Ukraine,Enquiries,63400
http://statistics.data.gov.uk/id/local-authority/12UE,Huntingdonshire District Council,200169,CARE CHECK LTD CARE CHECK LTD,68784,31/07/2022,400881,homes for Ukraine DBS checks,25/08/2022,0,144,144,Homes for Ukraine,Enquiries,63400
http://statistics.data.gov.uk/id/local-authority/12UE,Huntingdonshire District Council,200169,CARE CHECK LTD CARE CHECK LTD,68784,31/07/2022,400881,homes for Ukraine DBS checks,25/08/2022,18,90,108,Homes for Ukraine,Enquiries,63400
http://statistics.data.gov.uk/id/local-authority/12UE,Huntingdonshire District Council,200169,CARE CHECK LTD CARE CHECK LTD,69779,31/08/2022,407885,Basic DBS Check,22/09/2022,0,244,244,HR Services,Enquiries,63400
http://statistics.data.gov.uk/id/local-authority/12UE,Huntingdonshire District Council,200169,CARE CHECK LTD CARE CHECK LTD,69779,31/08/2022,407885,Basic DBS Check,22/09/2022,16,80,96,HR Services,Enquiries,63400
http://statistics.data.gov.uk/id/local-authority/12UE,Huntingdonshire District Council,202302,CARESCO LTD,68310,09/08/2022,PRF HEALTH INEQUALITIES PROJEC,PRF HEALTH INEQUALITIES PROJECT,11/08/2022,0,3000,3000,Integrated Care System Project,Grants And Contributions,64600
http://statistics.data.gov.uk/id/local-authority/12UE,Huntingdonshire District Council,202283,CAROLE COONEY CAROPAL HOMES LTD,68335,03/08/2022,REDACTED,REDACTED,11/08/2022,0,1500,1500,Homelessness,Homeless Prevention Payments,64403
http://statistics.data.gov.uk/id/local-authority/12UE,Huntingdonshire District Council,202458,CARRINGTON WEST LTD,65742,09/06/2022,205374,REDACTED,07/07/2022,372.6,1863,2235.6,Development Management,Agency Staff,60011
http://statistics.data.gov.uk/id/local-authority/12UE,Huntingdonshire District Council,202458,CARRINGTON WEST LTD,65775,09/06/2022,205373,REDACTED,07/07/2022,227.29,1136.43,1363.72,Development Management,Agency Staff,60011
http://statistics.data.gov.uk/id/local-authority/12UE,Huntingdonshire District Council,202458,CARRINGTON WEST LTD,66101,16/06/2022,206410,REDACTED,14/07/2022,275.72,1378.62,1654.34,Development Management,Agency Staff,60011
http://statistics.data.gov.uk/id/local-authority/12UE,Huntingdonshire District Council,202458,CARRINGTON WEST LTD,66124,16/06/2022,206411,REDACTED,14/07/2022,385.54,1927.69,2313.23,Development Management,Agency Staff,60011
http://statistics.data.gov.uk/id/local-authority/12UE,Huntingdonshire District Council,202458,CARRINGTON WEST LTD,66769,23/06/2022,207516,REDACTED,14/07/2022,382.95,1914.75,2297.7,Development Management,Agency Staff,60011
http://statistics.data.gov.uk/id/local-authority/12UE,Huntingdonshire District Council,202458,CARRINGTON WEST LTD,66775,30/06/2022,208797,REDACTED,28/07/2022,275.72,1378.62,1654.34,Development Management,Agency Staff,60011
http://statistics.data.gov.uk/id/local-authority/12UE,Huntingdonshire District Council,202458,CARRINGTON WEST LTD,67034,21/04/2022,198245,REDACTED,07/07/2022,390.71,1953.56,2344.27,Development Management,Agency Staff,60011
http://statistics.data.gov.uk/id/local-authority/12UE,Huntingdonshire District Council,202458,CARRINGTON WEST LTD,67400,14/07/2022,211032,REDACTED,11/08/2022,367.43,1837.13,2204.56,Development Management,Agency Staff,60011
http://statistics.data.gov.uk/id/local-authority/12UE,Huntingdonshire District Council,202458,CARRINGTON WEST LTD,67401,14/07/2022,211031,REDACTED,11/08/2022,393.3,1966.5,2359.8,Development Management,Agency Staff,60011
http://statistics.data.gov.uk/id/local-authority/12UE,Huntingdonshire District Council,202458,CARRINGTON WEST LTD,67756,14/07/2022,211030,REDACTED,11/08/2022,231.01,1155.06,1386.07,Development Management,Agency Staff,60011
http://statistics.data.gov.uk/id/local-authority/12UE,Huntingdonshire District Council,202458,CARRINGTON WEST LTD,67757,14/07/2022,211033,REDACTED,11/08/2022,63.34,316.71,380.05,Development Management,Agency Staff,60011
http://statistics.data.gov.uk/id/local-authority/12UE,Huntingdonshire District Council,202458,CARRINGTON WEST LTD,67815,21/07/2022,212222,REDACTED,18/08/2022,275.72,1378.62,1654.34,Development Management,Agency Staff,60011
http://statistics.data.gov.uk/id/local-authority/12UE,Huntingdonshire District Council,202458,CARRINGTON WEST LTD,67978,28/07/2022,213282,REDACTED,18/08/2022,275.72,1378.62,1654.34,Development Management,Agency Staff,60011
http://statistics.data.gov.uk/id/local-authority/12UE,Huntingdonshire District Council,202458,CARRINGTON WEST LTD,67980,28/07/2022,213280,REDACTED,18/08/2022,375.19,1875.94,2251.13,Development Management,Agency Staff,60011
http://statistics.data.gov.uk/id/local-authority/12UE,Huntingdonshire District Council,202458,CARRINGTON WEST LTD,67981,28/07/2022,213281,REDACTED,18/08/2022,382.95,1914.75,2297.7,Development Management,Agency Staff,60011
http://statistics.data.gov.uk/id/local-authority/12UE,Huntingdonshire District Council,202458,CARRINGTON WEST LTD,68386,04/08/2022,214312,REDACTED,01/09/2022,275.72,1378.62,1654.34,Development Management,Agency Staff,60011
http://statistics.data.gov.uk/id/local-authority/12UE,Huntingdonshire District Council,202458,CARRINGTON WEST LTD,68389,04/08/2022,214311,REDACTED,01/09/2022,382.95,1914.75,2297.7,Development Management,Agency Staff,60011
http://statistics.data.gov.uk/id/local-authority/12UE,Huntingdonshire District Council,202458,CARRINGTON WEST LTD,68745,18/08/2022,216397,REDACTED,15/09/2022,275.72,1378.62,1654.34,Development Management,Agency Staff,60011
http://statistics.data.gov.uk/id/local-authority/12UE,Huntingdonshire District Council,201074.01,CATALYST HOUSING LTD,67287,08/07/2022,REDACTED,REDACTED,14/07/2022,0,675,675,Homelessness,Homeless Prevention Payments,64403
http://statistics.data.gov.uk/id/local-authority/12UE,Huntingdonshire District Council,201011,CENTENNIAL PROPERTY LTD,66854,01/07/2022,CP-HDC133,TA 01-30.06.22,07/07/2022,12,60,72,Homelessness,B&B Accommodation,64401
http://statistics.data.gov.uk/id/local-authority/12UE,Huntingdonshire District Council,201011,CENTENNIAL PROPERTY LTD,66854,01/07/2022,CP-HDC133,TA 01-30.06.22,07/07/2022,270,1350,1620,Homelessness,B&B Accommodation,64401
http://statistics.data.gov.uk/id/local-authority/12UE,Huntingdonshire District Council,201011,CENTENNIAL PROPERTY LTD,66854,01/07/2022,CP-HDC133,TA 01-30.06.22,07/07/2022,228,1140,1368,Homelessness,B&B Accommodation,64401
http://statistics.data.gov.uk/id/local-authority/12UE,Huntingdonshire District Council,201011,CENTENNIAL PROPERTY LTD,66854,01/07/2022,CP-HDC133,TA 01-30.06.22,07/07/2022,330,1650,1980,Homelessness,B&B Accommodation,64401
http://statistics.data.gov.uk/id/local-authority/12UE,Huntingdonshire District Council,201011,CENTENNIAL PROPERTY LTD,66854,01/07/2022,CP-HDC133,TA 01-30.06.22,07/07/2022,76,380,456,Homelessness,B&B Accommodation,64401
http://statistics.data.gov.uk/id/local-authority/12UE,Huntingdonshire District Council,201011,CENTENNIAL PROPERTY LTD,66854,01/07/2022,CP-HDC133,TA 01-30.06.22,07/07/2022,270,1350,1620,Homelessness,B&B Accommodation,64401
http://statistics.data.gov.uk/id/local-authority/12UE,Huntingdonshire District Council,201011,CENTENNIAL PROPERTY LTD,66854,01/07/2022,CP-HDC133,TA 01-30.06.22,07/07/2022,121.6,608,729.6,Homelessness,B&B Accommodation,64401
http://statistics.data.gov.uk/id/local-authority/12UE,Huntingdonshire District Council,201011,CENTENNIAL PROPERTY LTD,66854,01/07/2022,CP-HDC133,TA 01-30.06.22,07/07/2022,270,1350,1620,Homelessness,B&B Accommodation,64401
http://statistics.data.gov.uk/id/local-authority/12UE,Huntingdonshire District Council,201011,CENTENNIAL PROPERTY LTD,66854,01/07/2022,CP-HDC133,TA 01-30.06.22,07/07/2022,108,540,648,Homelessness,B&B Accommodation,64401
http://statistics.data.gov.uk/id/local-authority/12UE,Huntingdonshire District Council,201011,CENTENNIAL PROPERTY LTD,66854,01/07/2022,CP-HDC133,TA 01-30.06.22,07/07/2022,252,1260,1512,Homelessness,B&B Accommodation,64401
http://statistics.data.gov.uk/id/local-authority/12UE,Huntingdonshire District Council,201011,CENTENNIAL PROPERTY LTD,66854,01/07/2022,CP-HDC133,TA 01-30.06.22,07/07/2022,90,450,540,Homelessness,B&B Accommodation,64401
http://statistics.data.gov.uk/id/local-authority/12UE,Huntingdonshire District Council,201011,CENTENNIAL PROPERTY LTD,68133,01/08/2022,CP-HDC134,TA- 01-31.07.22,04/08/2022,45.6,228,273.6,Homelessness,B&B Accommodation,64401
http://statistics.data.gov.uk/id/local-authority/12UE,Huntingdonshire District Council,201011,CENTENNIAL PROPERTY LTD,68133,01/08/2022,CP-HDC134,TA- 01-31.07.22,04/08/2022,279,1395,1674,Homelessness,B&B Accommodation,64401
http://statistics.data.gov.uk/id/local-authority/12UE,Huntingdonshire District Council,201011,CENTENNIAL PROPERTY LTD,68133,01/08/2022,CP-HDC134,TA- 01-31.07.22,04/08/2022,98.8,494,592.8,Homelessness,B&B Accommodation,64401
http://statistics.data.gov.uk/id/local-authority/12UE,Huntingdonshire District Council,201011,CENTENNIAL PROPERTY LTD,68133,01/08/2022,CP-HDC134,TA- 01-31.07.22,04/08/2022,341,1705,2046,Homelessness,B&B Accommodation,64401
http://statistics.data.gov.uk/id/local-authority/12UE,Huntingdonshire District Council,201011,CENTENNIAL PROPERTY LTD,68133,01/08/2022,CP-HDC134,TA- 01-31.07.22,04/08/2022,235.6,1178,1413.6,Homelessness,B&B Accommodation,64401
http://statistics.data.gov.uk/id/local-authority/12UE,Huntingdonshire District Council,201011,CENTENNIAL PROPERTY LTD,68133,01/08/2022,CP-HDC134,TA- 01-31.07.22,04/08/2022,279,1395,1674,Homelessness,B&B Accommodation,64401
http://statistics.data.gov.uk/id/local-authority/12UE,Huntingdonshire District Council,201011,CENTENNIAL PROPERTY LTD,68133,01/08/2022,CP-HDC134,TA- 01-31.07.22,04/08/2022,372,1860,2232,Homelessness,B&B Accommodation,64401
http://statistics.data.gov.uk/id/local-authority/12UE,Huntingdonshire District Council,201011,CENTENNIAL PROPERTY LTD,68133,01/08/2022,CP-HDC134,TA- 01-31.07.22,04/08/2022,279,1395,1674,Homelessness,B&B Accommodation,64401
http://statistics.data.gov.uk/id/local-authority/12UE,Huntingdonshire District Council,201011,CENTENNIAL PROPERTY LTD,68133,01/08/2022,CP-HDC134,TA- 01-31.07.22,04/08/2022,190,950,1140,Homelessness,B&B Accommodation,64401
http://statistics.data.gov.uk/id/local-authority/12UE,Huntingdonshire District Council,201011,CENTENNIAL PROPERTY LTD,68133,01/08/2022,CP-HDC134,TA- 01-31.07.22,04/08/2022,252,1260,1512,Homelessness,B&B Accommodation,64401
http://statistics.data.gov.uk/id/local-authority/12UE,Huntingdonshire District Council,201011,CENTENNIAL PROPERTY LTD,68133,01/08/2022,CP-HDC134,TA- 01-31.07.22,04/08/2022,27,135,162,Homelessness,B&B Accommodation,64401
http://statistics.data.gov.uk/id/local-authority/12UE,Huntingdonshire District Council,201011,CENTENNIAL PROPERTY LTD,68133,01/08/2022,CP-HDC134,TA- 01-31.07.22,04/08/2022,53.2,266,319.2,Homelessness,B&B Accommodation,64401
http://statistics.data.gov.uk/id/local-authority/12UE,Huntingdonshire District Council,201011,CENTENNIAL PROPERTY LTD,69542,01/09/2022,CP-HDC135,TA - 01-31.08.22,12/09/2022,99,495,594,Homelessness,B&B Accommodation,64401
http://statistics.data.gov.uk/id/local-authority/12UE,Huntingdonshire District Council,201011,CENTENNIAL PROPERTY LTD,69542,01/09/2022,CP-HDC135,TA - 01-31.08.22,12/09/2022,135,675,810,Homelessness,B&B Accommodation,64401
http://statistics.data.gov.uk/id/local-authority/12UE,Huntingdonshire District Council,201011,CENTENNIAL PROPERTY LTD,69542,01/09/2022,CP-HDC135,TA - 01-31.08.22,12/09/2022,341,1705,2046,Homelessness,B&B Accommodation,64401
http://statistics.data.gov.uk/id/local-authority/12UE,Huntingdonshire District Council,201011,CENTENNIAL PROPERTY LTD,69542,01/09/2022,CP-HDC135,TA - 01-31.08.22,12/09/2022,235.6,1178,1413.6,Homelessness,B&B Accommodation,64401
http://statistics.data.gov.uk/id/local-authority/12UE,Huntingdonshire District Council,201011,CENTENNIAL PROPERTY LTD,69542,01/09/2022,CP-HDC135,TA - 01-31.08.22,12/09/2022,279,1395,1674,Homelessness,B&B Accommodation,64401
http://statistics.data.gov.uk/id/local-authority/12UE,Huntingdonshire District Council,201011,CENTENNIAL PROPERTY LTD,69542,01/09/2022,CP-HDC135,TA - 01-31.08.22,12/09/2022,372,1860,2232,Homelessness,B&B Accommodation,64401
http://statistics.data.gov.uk/id/local-authority/12UE,Huntingdonshire District Council,201011,CENTENNIAL PROPERTY LTD,69542,01/09/2022,CP-HDC135,TA - 01-31.08.22,12/09/2022,18,90,108,Homelessness,B&B Accommodation,64401
http://statistics.data.gov.uk/id/local-authority/12UE,Huntingdonshire District Council,201011,CENTENNIAL PROPERTY LTD,69542,01/09/2022,CP-HDC135,TA - 01-31.08.22,12/09/2022,174.8,874,1048.8,Homelessness,B&B Accommodation,64401
http://statistics.data.gov.uk/id/local-authority/12UE,Huntingdonshire District Council,201011,CENTENNIAL PROPERTY LTD,69542,01/09/2022,CP-HDC135,TA - 01-31.08.22,12/09/2022,136.8,684,820.8,Homelessness,B&B Accommodation,64401
http://statistics.data.gov.uk/id/local-authority/12UE,Huntingdonshire District Council,201011,CENTENNIAL PROPERTY LTD,69542,01/09/2022,CP-HDC135,TA - 01-31.08.22,12/09/2022,153,765,918,Homelessness,B&B Accommodation,64401
http://statistics.data.gov.uk/id/local-authority/12UE,Huntingdonshire District Council,201011,CENTENNIAL PROPERTY LTD,69542,01/09/2022,CP-HDC135,TA - 01-31.08.22,12/09/2022,189,945,1134,Homelessness,B&B Accommodation,64401
http://statistics.data.gov.uk/id/local-authority/12UE,Huntingdonshire District Council,201432,CENTRE FOR PUBLIC SCRUTINY LTD CfPS,67214,07/07/2022,41004315,REDACTED,04/08/2022,120,600,720,Member Allowances & Support,Member Training,60123
http://statistics.data.gov.uk/id/local-authority/12UE,Huntingdonshire District Council,200178,CENTRE THEATRE PLAYERS CENTRE THEATRE PLAYERS,69094,31/08/2022,PANTO EXPENSES 2022- ALADDIN,Reimburse Panto Expenses  22,01/09/2022,0,926,926,OLSI - Burgess Hall,Materials,61709
http://statistics.data.gov.uk/id/local-authority/12UE,Huntingdonshire District Council,201486,CENTRICA BUSINESS SOLUTIONS UK LTD,67744,24/07/2022,22502156,OLH Repair Gas Pressure,04/08/2022,2387.44,11937.2,14324.64,Leisure Cents - Future Improve,Maintenance - Building,60201
http://statistics.data.gov.uk/id/local-authority/12UE,Huntingdonshire District Council,200179,CERTAS ENERGY T/A PACE FUELCARE CERTAS ENERGY T/A PACE FUELCARE,66948,25/05/2022,7871210,092 Diesel BS EN 590,07/07/2022,8273.45,41367.24,49640.69,Operations Diesel Stock,General Stock Account,11601
http://statistics.data.gov.uk/id/local-authority/12UE,Huntingdonshire District Council,200179,CERTAS ENERGY T/A PACE FUELCARE CERTAS ENERGY T/A PACE FUELCARE,66950,15/06/2022,7352312,092 Diesel BS EN 590,07/07/2022,9407.37,47036.86,56444.23,Operations Diesel Stock,General Stock Account,11601
http://statistics.data.gov.uk/id/local-authority/12UE,Huntingdonshire District Council,200179,CERTAS ENERGY T/A PACE FUELCARE CERTAS ENERGY T/A PACE FUELCARE,67793,06/07/2022,7432105,"30,000L Road Diesel",01/08/2022,9223.51,46117.54,55341.05,Operations Diesel Stock,General Stock Account,11601
http://statistics.data.gov.uk/id/local-authority/12UE,Huntingdonshire District Council,200179,CERTAS ENERGY T/A PACE FUELCARE CERTAS ENERGY T/A PACE FUELCARE,69090,27/07/2022,7494275,"Transport Fuel 30,000L",01/09/2022,8764.82,43824.07,52588.89,Operations Diesel Stock,General Stock Account,11601
http://statistics.data.gov.uk/id/local-authority/12UE,Huntingdonshire District Council,200179,CERTAS ENERGY T/A PACE FUELCARE CERTAS ENERGY T/A PACE FUELCARE,69136,17/08/2022,7542702,"Transport Fuel 30,000L",08/09/2022,8340.56,41702.78,50043.34,Operations Diesel Stock,General Stock Account,11601
http://statistics.data.gov.uk/id/local-authority/12UE,Huntingdonshire District Council,200179,CERTAS ENERGY T/A PACE FUELCARE CERTAS ENERGY T/A PACE FUELCARE,69908,07/09/2022,7637249,"Transport Fuel 30,000L",29/09/2022,8539.83,42699.15,51238.98,Operations Diesel Stock,General Stock Account,11601
http://statistics.data.gov.uk/id/local-authority/12UE,Huntingdonshire District Council,200179,CERTAS ENERGY T/A PACE FUELCARE CERTAS ENERGY T/A PACE FUELCARE,69090,27/07/2022,7494275,"Transport Fuel 30,000L",01/09/2022,0.01,0,0.01,Finance,Over/Under VAT Rounding,68350
http://statistics.data.gov.uk/id/local-authority/12UE,Huntingdonshire District Council,200181,CFL ESTATE SERVICES CFL ESTATE SERVICES,67415,15/07/2022,HDC138,CFL Bridge Place Fees Jun22,11/08/2022,0,272,272,Bridge Place Car Park Const,Agency Staff,60011
http://statistics.data.gov.uk/id/local-authority/12UE,Huntingdonshire District Council,202611,CHAMPION PLUMBING & HEATING SERVICES LTD,69668,18/07/2022,CPHS-2584,REDACTED,15/09/2022,0,5217.6,5217.6,Disables Facilities Grants,Mandatory Grants,64601
http://statistics.data.gov.uk/id/local-authority/12UE,Huntingdonshire District Council,200190,CHIPSIDE CHIPSIDE,67247,30/04/2022,S22361,carpark permit,14/07/2022,363.92,1819.58,2183.5,Car Park Management,Contract Charges ,61800
http://statistics.data.gov.uk/id/local-authority/12UE,Huntingdonshire District Council,200190,CHIPSIDE CHIPSIDE,67264,30/04/2022,S223440,OPS THIRD PARTY CHANGES,14/07/2022,91.3,456.49,547.79,Car Park Management,Contract Charges ,61800
http://statistics.data.gov.uk/id/local-authority/12UE,Huntingdonshire District Council,200190,CHIPSIDE CHIPSIDE,67264,30/04/2022,S223440,OPS THIRD PARTY CHANGES,14/07/2022,0.21,1.02,1.23,Car Park Management,Contract Charges ,61800
http://statistics.data.gov.uk/id/local-authority/12UE,Huntingdonshire District Council,200190,CHIPSIDE CHIPSIDE,67265,31/05/2022,S223793,CARPARK,14/07/2022,361.33,1806.67,2168,Car Park Management,Contract Charges ,61800
http://statistics.data.gov.uk/id/local-authority/12UE,Huntingdonshire District Council,200190,CHIPSIDE CHIPSIDE,67266,30/06/2022,S224101,CARPARKING,28/07/2022,359.03,1795.17,2154.2,Car Park Management,Contract Charges ,61800
http://statistics.data.gov.uk/id/local-authority/12UE,Huntingdonshire District Council,200190,CHIPSIDE CHIPSIDE,67267,30/06/2022,S224185,CARPARK JUNE 22,28/07/2022,81.24,406.21,487.45,Car Park Management,Contract Charges ,61800
http://statistics.data.gov.uk/id/local-authority/12UE,Huntingdonshire District Council,200190,CHIPSIDE CHIPSIDE,67267,30/06/2022,S224185,CARPARK JUNE 22,28/07/2022,0.21,1.03,1.24,Car Park Management,Contract Charges ,61800
http://statistics.data.gov.uk/id/local-authority/12UE,Huntingdonshire District Council,200190,CHIPSIDE CHIPSIDE,67267,30/06/2022,S224185,CARPARK JUNE 22,28/07/2022,0.04,0.21,0.25,Car Park Management,Contract Charges ,61800
http://statistics.data.gov.uk/id/local-authority/12UE,Huntingdonshire District Council,200190,CHIPSIDE CHIPSIDE,67269,31/05/2022,S223875,carparking,14/07/2022,83.56,417.79,501.35,Car Park Management,Contract Charges ,61800
http://statistics.data.gov.uk/id/local-authority/12UE,Huntingdonshire District Council,200190,CHIPSIDE CHIPSIDE,67269,31/05/2022,S223875,carparking,14/07/2022,0.2,1.02,1.22,Car Park Management,Contract Charges ,61800
http://statistics.data.gov.uk/id/local-authority/12UE,Huntingdonshire District Council,200190,CHIPSIDE CHIPSIDE,67269,31/05/2022,S223875,carparking,14/07/2022,0.01,0,0.01,Car Park Management,Contract Charges ,61800
http://statistics.data.gov.uk/id/local-authority/12UE,Huntingdonshire District Council,200190,CHIPSIDE CHIPSIDE,68533,31/07/2022,S224807,MiPermit Charge Jul22,25/08/2022,89.46,447.28,536.74,Car Park Management,Contract Charges ,61800
http://statistics.data.gov.uk/id/local-authority/12UE,Huntingdonshire District Council,200190,CHIPSIDE CHIPSIDE,68533,31/07/2022,S224807,MiPermit Charge Jul22,25/08/2022,0.2,0.99,1.19,Car Park Management,Contract Charges ,61800
http://statistics.data.gov.uk/id/local-authority/12UE,Huntingdonshire District Council,200190,CHIPSIDE CHIPSIDE,68538,31/07/2022,S224725,MiPermit Fee Jul22,25/08/2022,381.75,1908.75,2290.5,Car Park Management,Contract Charges ,61800
http://statistics.data.gov.uk/id/local-authority/12UE,Huntingdonshire District Council,200190,CHIPSIDE CHIPSIDE,68538,31/07/2022,S224725,MiPermit Fee Jul22,25/08/2022,1.96,9.8,11.76,Car Park Management,Contract Charges ,61800
http://statistics.data.gov.uk/id/local-authority/12UE,Huntingdonshire District Council,200190,CHIPSIDE CHIPSIDE,69839,31/08/2022,S225185,MiPermit Charge Aug22,22/09/2022,95.02,475.12,570.14,Car Park Management,Contract Charges ,61800
http://statistics.data.gov.uk/id/local-authority/12UE,Huntingdonshire District Council,200190,CHIPSIDE CHIPSIDE,69841,31/08/2022,S225102,MiPermit Fee Aug22,22/09/2022,398.61,1993.05,2391.66,Car Park Management,Contract Charges ,61800
http://statistics.data.gov.uk/id/local-authority/12UE,Huntingdonshire District Council,200190,CHIPSIDE CHIPSIDE,69855,25/07/2022,S224587,Software Tech Support Jul22-Jul23,22/09/2022,380,1900,2280,Car Park Management,Equipment,61713
http://statistics.data.gov.uk/id/local-authority/12UE,Huntingdonshire District Council,200190,CHIPSIDE CHIPSIDE,69857,25/07/2022,S224586,Hardware Tech Support Jul22-Jul23,22/09/2022,252.87,1264.34,1517.21,Car Park Management,Equipment,61713
http://statistics.data.gov.uk/id/local-authority/12UE,Huntingdonshire District Council,200190,CHIPSIDE CHIPSIDE,68533,31/07/2022,S224807,MiPermit Charge Jul22,25/08/2022,-0.01,0,-0.01,Finance,Over/Under VAT Rounding,68350
http://statistics.data.gov.uk/id/local-authority/12UE,Huntingdonshire District Council,202708,CINOS LIMITED,67072,20/05/2022,UK9909,3CICT LICENCE FEES,11/07/2022,2006.4,10032,12038.4,3CICT NON STAFF HOLDING ACCOUNT,Ict Software,64071
http://statistics.data.gov.uk/id/local-authority/12UE,Huntingdonshire District Council,202708,CINOS LIMITED,67073,20/05/2022,UK9908,3CICT LICENCES,11/07/2022,16260.07,81300.36,97560.43,Cambridge City Business Case ,Ict Software,64071
http://statistics.data.gov.uk/id/local-authority/12UE,Huntingdonshire District Council,202708,CINOS LIMITED,67074,20/05/2022,UK9910,3CICT LICENCES,11/07/2022,16143.82,80719.08,96862.9,HDC Business Case ,Ict Software,64071
http://statistics.data.gov.uk/id/local-authority/12UE,Huntingdonshire District Council,202781,CITY OF PETERBOROUGH & HUNTINGDON ATC MATTHEW NEWTON,67126,11/07/2022,PRF REFUND OF INCORRECT MONEY,PRF REFUND OF INCORRECT MONEY,21/07/2022,0,4490,4490,OLSI - Site & Centre Management,Maintenance - Building,60201
http://statistics.data.gov.uk/id/local-authority/12UE,Huntingdonshire District Council,200197,CIVICA UK LTD CIVICA UK LTD,68415,12/07/2022,C/MG247850,HDC ModGov Database Migration,11/08/2022,148,740,888,HDC Business Case ,Consultancy Fees,62400
http://statistics.data.gov.uk/id/local-authority/12UE,Huntingdonshire District Council,200197,CIVICA UK LTD CIVICA UK LTD,68704,12/08/2022,C/MG250125,Database Move SCDC,08/09/2022,148,740,888,SCDC Business Case ,Consultancy Fees,62400
http://statistics.data.gov.uk/id/local-authority/12UE,Huntingdonshire District Council,200197,CIVICA UK LTD CIVICA UK LTD,67662,19/07/2022,M/MG103265,IT Software,11/08/2022,1703.73,8518.67,10222.4,HDC Business Case ,Ict Software,64071
http://statistics.data.gov.uk/id/local-authority/12UE,Huntingdonshire District Council,203037,CIWEM Services Limited,68713,12/08/2022,REDACTED,REDACTED,08/09/2022,118,590,708,Business & Enterprise Support,Staff Development And Training,60115
http://statistics.data.gov.uk/id/local-authority/12UE,Huntingdonshire District Council,201445,CMS SUPATRAK LTD,69259,01/09/2022,101861,Driver ID Key Fob,29/09/2022,50,250,300,Domestic Waste Collection,Equipment,61713
http://statistics.data.gov.uk/id/local-authority/12UE,Huntingdonshire District Council,201445,CMS SUPATRAK LTD,69259,01/09/2022,101861,Driver ID Key Fob,29/09/2022,3,15,18,Domestic Waste Collection,Postage And Courier Services,64100
http://statistics.data.gov.uk/id/local-authority/12UE,Huntingdonshire District Council,201012,COACH & HORSES,66850,03/07/2022,547,TA - 27.06-03.07.22,07/07/2022,70,350,420,Homelessness,B&B Accommodation,64401
http://statistics.data.gov.uk/id/local-authority/12UE,Huntingdonshire District Council,201012,COACH & HORSES,66850,03/07/2022,547,TA - 27.06-03.07.22,07/07/2022,63,315,378,Homelessness,B&B Accommodation,64401
http://statistics.data.gov.uk/id/local-authority/12UE,Huntingdonshire District Council,201012,COACH & HORSES,66850,03/07/2022,547,TA - 27.06-03.07.22,07/07/2022,70,350,420,Homelessness,B&B Accommodation,64401
http://statistics.data.gov.uk/id/local-authority/12UE,Huntingdonshire District Council,201012,COACH & HORSES,66850,03/07/2022,547,TA - 27.06-03.07.22,07/07/2022,70,350,420,Homelessness,B&B Accommodation,64401
http://statistics.data.gov.uk/id/local-authority/12UE,Huntingdonshire District Council,201012,COACH & HORSES,66850,03/07/2022,547,TA - 27.06-03.07.22,07/07/2022,70,350,420,Homelessness,B&B Accommodation,64401
http://statistics.data.gov.uk/id/local-authority/12UE,Huntingdonshire District Council,201012,COACH & HORSES,66850,03/07/2022,547,TA - 27.06-03.07.22,07/07/2022,10,50,60,Homelessness,B&B Accommodation,64401
http://statistics.data.gov.uk/id/local-authority/12UE,Huntingdonshire District Council,201012,COACH & HORSES,67230,10/07/2022,548,TA WE 070722,14/07/2022,70,350,420,Homelessness,B&B Accommodation,64401
http://statistics.data.gov.uk/id/local-authority/12UE,Huntingdonshire District Council,201012,COACH & HORSES,67230,10/07/2022,548,TA WE 070722,14/07/2022,36,180,216,Homelessness,B&B Accommodation,64401
http://statistics.data.gov.uk/id/local-authority/12UE,Huntingdonshire District Council,201012,COACH & HORSES,67230,10/07/2022,548,TA WE 070722,14/07/2022,30,150,180,Homelessness,B&B Accommodation,64401
http://statistics.data.gov.uk/id/local-authority/12UE,Huntingdonshire District Council,201012,COACH & HORSES,67230,10/07/2022,548,TA WE 070722,14/07/2022,70,350,420,Homelessness,B&B Accommodation,64401
http://statistics.data.gov.uk/id/local-authority/12UE,Huntingdonshire District Council,201012,COACH & HORSES,67230,10/07/2022,548,TA WE 070722,14/07/2022,20,100,120,Homelessness,B&B Accommodation,64401
http://statistics.data.gov.uk/id/local-authority/12UE,Huntingdonshire District Council,201012,COACH & HORSES,67540,17/07/2022,549,TA -11- 17.07.22,21/07/2022,40,200,240,Homelessness,B&B Accommodation,64401
http://statistics.data.gov.uk/id/local-authority/12UE,Huntingdonshire District Council,201012,COACH & HORSES,67540,17/07/2022,549,TA -11- 17.07.22,21/07/2022,70,350,420,Homelessness,B&B Accommodation,64401
http://statistics.data.gov.uk/id/local-authority/12UE,Huntingdonshire District Council,201012,COACH & HORSES,67540,17/07/2022,549,TA -11- 17.07.22,21/07/2022,70,350,420,Homelessness,B&B Accommodation,64401
http://statistics.data.gov.uk/id/local-authority/12UE,Huntingdonshire District Council,201012,COACH & HORSES,67540,17/07/2022,549,TA -11- 17.07.22,21/07/2022,40,200,240,Homelessness,B&B Accommodation,64401
http://statistics.data.gov.uk/id/local-authority/12UE,Huntingdonshire District Council,201012,COACH & HORSES,67540,17/07/2022,549,TA -11- 17.07.22,21/07/2022,50,250,300,Homelessness,B&B Accommodation,64401
http://statistics.data.gov.uk/id/local-authority/12UE,Huntingdonshire District Council,201012,COACH & HORSES,67540,17/07/2022,549,TA -11- 17.07.22,21/07/2022,20,100,120,Homelessness,B&B Accommodation,64401
http://statistics.data.gov.uk/id/local-authority/12UE,Huntingdonshire District Council,201012,COACH & HORSES,67540,17/07/2022,549,TA -11- 17.07.22,21/07/2022,50,250,300,Homelessness,B&B Accommodation,64401
http://statistics.data.gov.uk/id/local-authority/12UE,Huntingdonshire District Council,201012,COACH & HORSES,67677,24/07/2022,550,TA- 11-24.07.22,04/08/2022,70,350,420,Homelessness,B&B Accommodation,64401
http://statistics.data.gov.uk/id/local-authority/12UE,Huntingdonshire District Council,201012,COACH & HORSES,67677,24/07/2022,550,TA- 11-24.07.22,04/08/2022,70,350,420,Homelessness,B&B Accommodation,64401
http://statistics.data.gov.uk/id/local-authority/12UE,Huntingdonshire District Council,201012,COACH & HORSES,67677,24/07/2022,550,TA- 11-24.07.22,04/08/2022,70,350,420,Homelessness,B&B Accommodation,64401
http://statistics.data.gov.uk/id/local-authority/12UE,Huntingdonshire District Council,201012,COACH & HORSES,67677,24/07/2022,550,TA- 11-24.07.22,04/08/2022,30,150,180,Homelessness,B&B Accommodation,64401
http://statistics.data.gov.uk/id/local-authority/12UE,Huntingdonshire District Council,201012,COACH & HORSES,67677,24/07/2022,550,TA- 11-24.07.22,04/08/2022,20,100,120,Homelessness,B&B Accommodation,64401
http://statistics.data.gov.uk/id/local-authority/12UE,Huntingdonshire District Council,201012,COACH & HORSES,67677,24/07/2022,550,TA- 11-24.07.22,04/08/2022,70,350,420,Homelessness,B&B Accommodation,64401
http://statistics.data.gov.uk/id/local-authority/12UE,Huntingdonshire District Council,201012,COACH & HORSES,67903,29/07/2022,CNH1,TA- 11-24.07.22,04/08/2022,-70,-350,-420,Homelessness,B&B Accommodation,64401
http://statistics.data.gov.uk/id/local-authority/12UE,Huntingdonshire District Council,201012,COACH & HORSES,67903,29/07/2022,CNH1,TA- 11-24.07.22,04/08/2022,-70,-350,-420,Homelessness,B&B Accommodation,64401
http://statistics.data.gov.uk/id/local-authority/12UE,Huntingdonshire District Council,201012,COACH & HORSES,67903,29/07/2022,CNH1,TA- 11-24.07.22,04/08/2022,-70,-350,-420,Homelessness,B&B Accommodation,64401
http://statistics.data.gov.uk/id/local-authority/12UE,Huntingdonshire District Council,201012,COACH & HORSES,67903,29/07/2022,CNH1,TA- 11-24.07.22,04/08/2022,-30,-150,-180,Homelessness,B&B Accommodation,64401
http://statistics.data.gov.uk/id/local-authority/12UE,Huntingdonshire District Council,201012,COACH & HORSES,67903,29/07/2022,CNH1,TA- 11-24.07.22,04/08/2022,-20,-100,-120,Homelessness,B&B Accommodation,64401
http://statistics.data.gov.uk/id/local-authority/12UE,Huntingdonshire District Council,201012,COACH & HORSES,67903,29/07/2022,CNH1,TA- 11-24.07.22,04/08/2022,-70,-350,-420,Homelessness,B&B Accommodation,64401
http://statistics.data.gov.uk/id/local-authority/12UE,Huntingdonshire District Council,201012,COACH & HORSES,68079,31/07/2022,551,TA - 25-31.07.22,04/08/2022,70,350,420,Homelessness,B&B Accommodation,64401
http://statistics.data.gov.uk/id/local-authority/12UE,Huntingdonshire District Council,201012,COACH & HORSES,68079,31/07/2022,551,TA - 25-31.07.22,04/08/2022,70,350,420,Homelessness,B&B Accommodation,64401
http://statistics.data.gov.uk/id/local-authority/12UE,Huntingdonshire District Council,201012,COACH & HORSES,68079,31/07/2022,551,TA - 25-31.07.22,04/08/2022,20,100,120,Homelessness,B&B Accommodation,64401
http://statistics.data.gov.uk/id/local-authority/12UE,Huntingdonshire District Council,201012,COACH & HORSES,68079,31/07/2022,551,TA - 25-31.07.22,04/08/2022,110,550,660,Homelessness,B&B Accommodation,64401
http://statistics.data.gov.uk/id/local-authority/12UE,Huntingdonshire District Council,201012,COACH & HORSES,68079,31/07/2022,551,TA - 25-31.07.22,04/08/2022,40,200,240,Homelessness,B&B Accommodation,64401
http://statistics.data.gov.uk/id/local-authority/12UE,Huntingdonshire District Council,201012,COACH & HORSES,68098,24/07/2022,550.2,TA- 18.07.22,04/08/2022,70,350,420,Homelessness,B&B Accommodation,64401
http://statistics.data.gov.uk/id/local-authority/12UE,Huntingdonshire District Council,201012,COACH & HORSES,68098,24/07/2022,550.2,TA- 18.07.22,04/08/2022,70,350,420,Homelessness,B&B Accommodation,64401
http://statistics.data.gov.uk/id/local-authority/12UE,Huntingdonshire District Council,201012,COACH & HORSES,68098,24/07/2022,550.2,TA- 18.07.22,04/08/2022,20,100,120,Homelessness,B&B Accommodation,64401
http://statistics.data.gov.uk/id/local-authority/12UE,Huntingdonshire District Council,201012,COACH & HORSES,68098,24/07/2022,550.2,TA- 18.07.22,04/08/2022,30,150,180,Homelessness,B&B Accommodation,64401
http://statistics.data.gov.uk/id/local-authority/12UE,Huntingdonshire District Council,201012,COACH & HORSES,68098,24/07/2022,550.2,TA- 18.07.22,04/08/2022,20,100,120,Homelessness,B&B Accommodation,64401
http://statistics.data.gov.uk/id/local-authority/12UE,Huntingdonshire District Council,201012,COACH & HORSES,68098,24/07/2022,550.2,TA- 18.07.22,04/08/2022,70,350,420,Homelessness,B&B Accommodation,64401
http://statistics.data.gov.uk/id/local-authority/12UE,Huntingdonshire District Council,201012,COACH & HORSES,68375,01/08/2022,552,TA- 01-07.08.22,11/08/2022,70,350,420,Homelessness,B&B Accommodation,64401
http://statistics.data.gov.uk/id/local-authority/12UE,Huntingdonshire District Council,201012,COACH & HORSES,68375,01/08/2022,552,TA- 01-07.08.22,11/08/2022,70,350,420,Homelessness,B&B Accommodation,64401
http://statistics.data.gov.uk/id/local-authority/12UE,Huntingdonshire District Council,201012,COACH & HORSES,68375,01/08/2022,552,TA- 01-07.08.22,11/08/2022,77,385,462,Homelessness,B&B Accommodation,64401
http://statistics.data.gov.uk/id/local-authority/12UE,Huntingdonshire District Council,201012,COACH & HORSES,68375,01/08/2022,552,TA- 01-07.08.22,11/08/2022,70,350,420,Homelessness,B&B Accommodation,64401
http://statistics.data.gov.uk/id/local-authority/12UE,Huntingdonshire District Council,201012,COACH & HORSES,68375,01/08/2022,552,TA- 01-07.08.22,11/08/2022,70,350,420,Homelessness,B&B Accommodation,64401
http://statistics.data.gov.uk/id/local-authority/12UE,Huntingdonshire District Council,201012,COACH & HORSES,68688,14/08/2022,553,ta we 140822,22/08/2022,70,350,420,Homelessness,B&B Accommodation,64401
http://statistics.data.gov.uk/id/local-authority/12UE,Huntingdonshire District Council,201012,COACH & HORSES,68688,14/08/2022,553,ta we 140822,22/08/2022,40,200,240,Homelessness,B&B Accommodation,64401
http://statistics.data.gov.uk/id/local-authority/12UE,Huntingdonshire District Council,201012,COACH & HORSES,68688,14/08/2022,553,ta we 140822,22/08/2022,44,220,264,Homelessness,B&B Accommodation,64401
http://statistics.data.gov.uk/id/local-authority/12UE,Huntingdonshire District Council,201012,COACH & HORSES,68688,14/08/2022,553,ta we 140822,22/08/2022,70,350,420,Homelessness,B&B Accommodation,64401
http://statistics.data.gov.uk/id/local-authority/12UE,Huntingdonshire District Council,201012,COACH & HORSES,68688,14/08/2022,553,ta we 140822,22/08/2022,10,50,60,Homelessness,B&B Accommodation,64401
http://statistics.data.gov.uk/id/local-authority/12UE,Huntingdonshire District Council,201012,COACH & HORSES,68688,14/08/2022,553,ta we 140822,22/08/2022,77,385,462,Homelessness,B&B Accommodation,64401
http://statistics.data.gov.uk/id/local-authority/12UE,Huntingdonshire District Council,201012,COACH & HORSES,68688,14/08/2022,553,ta we 140822,22/08/2022,70,350,420,Homelessness,B&B Accommodation,64401
http://statistics.data.gov.uk/id/local-authority/12UE,Huntingdonshire District Council,201012,COACH & HORSES,68688,14/08/2022,553,ta we 140822,22/08/2022,70,350,420,Homelessness,B&B Accommodation,64401
http://statistics.data.gov.uk/id/local-authority/12UE,Huntingdonshire District Council,201012,COACH & HORSES,68688,14/08/2022,553,ta we 140822,22/08/2022,44,220,264,Homelessness,B&B Accommodation,64401
http://statistics.data.gov.uk/id/local-authority/12UE,Huntingdonshire District Council,201012,COACH & HORSES,68688,14/08/2022,553,ta we 140822,22/08/2022,60,300,360,Homelessness,B&B Accommodation,64401
http://statistics.data.gov.uk/id/local-authority/12UE,Huntingdonshire District Council,201012,COACH & HORSES,68688,14/08/2022,553,ta we 140822,22/08/2022,40,200,240,Homelessness,B&B Accommodation,64401
http://statistics.data.gov.uk/id/local-authority/12UE,Huntingdonshire District Council,201012,COACH & HORSES,68688,14/08/2022,553,ta we 140822,22/08/2022,40,200,240,Homelessness,B&B Accommodation,64401
http://statistics.data.gov.uk/id/local-authority/12UE,Huntingdonshire District Council,201012,COACH & HORSES,69074,28/08/2022,555,TA- 22-28.08.22,01/09/2022,70,350,420,Homelessness,B&B Accommodation,64401
http://statistics.data.gov.uk/id/local-authority/12UE,Huntingdonshire District Council,201012,COACH & HORSES,69074,28/08/2022,555,TA- 22-28.08.22,01/09/2022,77,385,462,Homelessness,B&B Accommodation,64401
http://statistics.data.gov.uk/id/local-authority/12UE,Huntingdonshire District Council,201012,COACH & HORSES,69315,04/09/2022,556,TA- 29.08-04.09.22,08/09/2022,70,350,420,Homelessness,B&B Accommodation,64401
http://statistics.data.gov.uk/id/local-authority/12UE,Huntingdonshire District Council,201012,COACH & HORSES,69315,04/09/2022,556,TA- 29.08-04.09.22,08/09/2022,77,385,462,Homelessness,B&B Accommodation,64401
http://statistics.data.gov.uk/id/local-authority/12UE,Huntingdonshire District Council,201012,COACH & HORSES,69315,04/09/2022,556,TA- 29.08-04.09.22,08/09/2022,60,300,360,Homelessness,B&B Accommodation,64401
http://statistics.data.gov.uk/id/local-authority/12UE,Huntingdonshire District Council,201012,COACH & HORSES,69669,11/09/2022,557,TA - 05-11.09.22,15/09/2022,70,350,420,Homelessness,B&B Accommodation,64401
http://statistics.data.gov.uk/id/local-authority/12UE,Huntingdonshire District Council,201012,COACH & HORSES,69669,11/09/2022,557,TA - 05-11.09.22,15/09/2022,22,110,132,Homelessness,B&B Accommodation,64401
http://statistics.data.gov.uk/id/local-authority/12UE,Huntingdonshire District Council,201012,COACH & HORSES,69669,11/09/2022,557,TA - 05-11.09.22,15/09/2022,70,350,420,Homelessness,B&B Accommodation,64401
http://statistics.data.gov.uk/id/local-authority/12UE,Huntingdonshire District Council,201012,COACH & HORSES,69952,18/09/2022,558,TA - 12-18.09.22,22/09/2022,70,350,420,Homelessness,B&B Accommodation,64401
http://statistics.data.gov.uk/id/local-authority/12UE,Huntingdonshire District Council,201012,COACH & HORSES,69952,18/09/2022,558,TA - 12-18.09.22,22/09/2022,30,150,180,Homelessness,B&B Accommodation,64401
http://statistics.data.gov.uk/id/local-authority/12UE,Huntingdonshire District Council,201012,COACH & HORSES,69952,18/09/2022,558,TA - 12-18.09.22,22/09/2022,70,350,420,Homelessness,B&B Accommodation,64401
http://statistics.data.gov.uk/id/local-authority/12UE,Huntingdonshire District Council,201012,COACH & HORSES,69952,18/09/2022,558,TA - 12-18.09.22,22/09/2022,60,300,360,Homelessness,B&B Accommodation,64401
http://statistics.data.gov.uk/id/local-authority/12UE,Huntingdonshire District Council,202749,COMPLETE POOL CONTROLS LTD,66995,06/07/2022,INV076222,OLSN Pool Chemicals,28/07/2022,65.73,328.63,394.36,OLSN - Swimming,Chemicals,64000
http://statistics.data.gov.uk/id/local-authority/12UE,Huntingdonshire District Council,202749,COMPLETE POOL CONTROLS LTD,67212,06/07/2022,INV076218,OLSTI TABLETS,28/07/2022,205.3,1026.5,1231.8,OLSI - Swimming,Chemicals,64000
http://statistics.data.gov.uk/id/local-authority/12UE,Huntingdonshire District Council,202749,COMPLETE POOL CONTROLS LTD,67213,06/07/2022,INV076221,OLSTI GRANULES,28/07/2022,65.73,328.63,394.36,OLR - Swimming,Chemicals,64000
http://statistics.data.gov.uk/id/local-authority/12UE,Huntingdonshire District Council,202749,COMPLETE POOL CONTROLS LTD,68328,03/08/2022,INV077527,OLSI Pool Chemicals,25/08/2022,134.18,670.9,805.08,OLSI - Swimming,Chemicals,64000
http://statistics.data.gov.uk/id/local-authority/12UE,Huntingdonshire District Council,202749,COMPLETE POOL CONTROLS LTD,68329,03/08/2022,INV077529,OLR Pool Chemicals,25/08/2022,105.39,526.93,632.32,OLR - Swimming,Chemicals,64000
http://statistics.data.gov.uk/id/local-authority/12UE,Huntingdonshire District Council,202749,COMPLETE POOL CONTROLS LTD,68331,03/08/2022,INV077530,OLSN Pool Chemicals,25/08/2022,95.4,476.99,572.39,OLSN - Swimming,Chemicals,64000
http://statistics.data.gov.uk/id/local-authority/12UE,Huntingdonshire District Council,202749,COMPLETE POOL CONTROLS LTD,69145,31/08/2022,INV078778,OLSI Pool Chemicals,22/09/2022,136.05,680.24,816.29,OLSI - Swimming,Chemicals,64000
http://statistics.data.gov.uk/id/local-authority/12UE,Huntingdonshire District Council,202749,COMPLETE POOL CONTROLS LTD,69225,31/08/2022,INV078780,OLSN Pool Chemicals,22/09/2022,89.22,446.11,535.33,OLSN - Swimming,Chemicals,64000
http://statistics.data.gov.uk/id/local-authority/12UE,Huntingdonshire District Council,202749,COMPLETE POOL CONTROLS LTD,69772,06/07/2022,INV076220,OLH Pool Chemicals,22/09/2022,128.42,642.08,770.5,OLH - Swimming,Chemicals,64000
http://statistics.data.gov.uk/id/local-authority/12UE,Huntingdonshire District Council,202749,COMPLETE POOL CONTROLS LTD,69774,31/08/2022,INV078779,OLH Pool Chemicals,22/09/2022,136.05,680.24,816.29,OLH - Swimming,Chemicals,64000
http://statistics.data.gov.uk/id/local-authority/12UE,Huntingdonshire District Council,202749,COMPLETE POOL CONTROLS LTD,69775,03/08/2022,INV077528,OLH Pool Chemicals,22/09/2022,128.42,642.08,770.5,OLH - Swimming,Chemicals,64000
http://statistics.data.gov.uk/id/local-authority/12UE,Huntingdonshire District Council,202749,COMPLETE POOL CONTROLS LTD,66995,06/07/2022,INV076222,OLSN Pool Chemicals,28/07/2022,-0.01,0,-0.01,Finance,Over/Under VAT Rounding,68350
http://statistics.data.gov.uk/id/local-authority/12UE,Huntingdonshire District Council,202749,COMPLETE POOL CONTROLS LTD,67213,06/07/2022,INV076221,OLSTI GRANULES,28/07/2022,-0.01,0,-0.01,Finance,Over/Under VAT Rounding,68350
http://statistics.data.gov.uk/id/local-authority/12UE,Huntingdonshire District Council,200210,COMPUTERSHARE VOUCHERS LTD COMPUTERSHARE VOUCHERS LTD,67742,26/07/2022,C-0003341874,ChildCare Admin Voucher,28/07/2022,0,1536,1536,Child Care Vouchers - Payroll,Childcare Admin Vouchers,60106
http://statistics.data.gov.uk/id/local-authority/12UE,Huntingdonshire District Council,200210,COMPUTERSHARE VOUCHERS LTD COMPUTERSHARE VOUCHERS LTD,67742,26/07/2022,C-0003341874,ChildCare Admin Voucher,28/07/2022,7.68,38.4,46.08,Payroll Services,Childcare Admin Vouchers,60106
http://statistics.data.gov.uk/id/local-authority/12UE,Huntingdonshire District Council,200210,COMPUTERSHARE VOUCHERS LTD COMPUTERSHARE VOUCHERS LTD,68880,24/08/2022,C-0003350582,ChildCare Admin Voucher,25/08/2022,6.28,31.4,37.68,Payroll Services,Childcare Admin Vouchers,60106
http://statistics.data.gov.uk/id/local-authority/12UE,Huntingdonshire District Council,200210,COMPUTERSHARE VOUCHERS LTD COMPUTERSHARE VOUCHERS LTD,68880,24/08/2022,C-0003350582,ChildCare Admin Voucher,25/08/2022,0,1256,1256,Payroll Services,Childcare Admin Vouchers,60106
http://statistics.data.gov.uk/id/local-authority/12UE,Huntingdonshire District Council,200210,COMPUTERSHARE VOUCHERS LTD COMPUTERSHARE VOUCHERS LTD,70192,27/09/2022,C-0003359360,ChildCare Admin Voucher,29/09/2022,0,1256,1256,Child Care Vouchers - Payroll,Childcare Admin Vouchers,60106
http://statistics.data.gov.uk/id/local-authority/12UE,Huntingdonshire District Council,200210,COMPUTERSHARE VOUCHERS LTD COMPUTERSHARE VOUCHERS LTD,70192,27/09/2022,C-0003359360,ChildCare Admin Voucher,29/09/2022,6.28,31.4,37.68,Payroll Services,Childcare Admin Vouchers,60106
http://statistics.data.gov.uk/id/local-authority/12UE,Huntingdonshire District Council,201061,CONINGTON & HOLME IDB,67497,13/07/2022,IDB SPECIAL LEVY 22/23,IDB Levy 22/32,04/08/2022,0,6542,6542,Connington & Holme,Levies Paid,69110
http://statistics.data.gov.uk/id/local-authority/12UE,Huntingdonshire District Council,203031,COPE ( Cambridgeshire Older People's Enterprise ),68110,02/08/2022,COMMUNITY CHEST GRANT 02.08.22,Community Chest Grant,04/08/2022,0,1000,1000,Voluntary Sector Grants,Grants And Contributions,64600
http://statistics.data.gov.uk/id/local-authority/12UE,Huntingdonshire District Council,200215,CORNERSTONE BARRISTERS CORNERSTONE BARRISTERS,68107,15/07/2022,155390 15/07/22,Fee Note,11/08/2022,350,1750,2100,Development Management,Consultancy Fees,62400
http://statistics.data.gov.uk/id/local-authority/12UE,Huntingdonshire District Council,200215,CORNERSTONE BARRISTERS CORNERSTONE BARRISTERS,69038,11/08/2022,157473,Barrister Fees 157473,08/09/2022,300,1500,1800,Dm Appeals,Consultancy Fees,62400
http://statistics.data.gov.uk/id/local-authority/12UE,Huntingdonshire District Council,202972,REDACTED,67249,08/07/2022,1,MARKETS RESEARCH,04/08/2022,0,1688.75,1688.75,Markets Management,Events,62900
http://statistics.data.gov.uk/id/local-authority/12UE,Huntingdonshire District Council,201322,COVENTRY SILVERCRAFT COMPANY LTD,68399,28/07/2022,65798,Alderman Badges,18/08/2022,126.98,634.9,761.88,Member Allowances & Support,"Purchase - Equipment, Furniture And Materials",61703
http://statistics.data.gov.uk/id/local-authority/12UE,Huntingdonshire District Council,202191,CPS MANUFACTURING CO LLP,66182,20/06/2022,96595,OLSI Tiered Seating Service,14/07/2022,349.8,1749,2098.8,OLSI - Site & Centre Management,Maintenance - Mechanical And Electrical,60203
http://statistics.data.gov.uk/id/local-authority/12UE,Huntingdonshire District Council,200900,CRAEMER UK LTD,69332,05/09/2022,3046223,1100 Plastic Bins Trade Refuse,29/09/2022,1548,7740,9288,Wheeled Bins,Recycling Bins,61201
http://statistics.data.gov.uk/id/local-authority/12UE,Huntingdonshire District Council,200900,CRAEMER UK LTD,69332,05/09/2022,3046223,1100 Plastic Bins Trade Refuse,29/09/2022,80,400,480,Wheeled Bins,Recycling Bins,61201
http://statistics.data.gov.uk/id/local-authority/12UE,Huntingdonshire District Council,200900,CRAEMER UK LTD,66626,28/06/2022,3044744,Refuse Containers,21/07/2022,2170,10850,13020,Wheeled Bins,Refuse Containers/Litter Bins,61200
http://statistics.data.gov.uk/id/local-authority/12UE,Huntingdonshire District Council,200900,CRAEMER UK LTD,66626,28/06/2022,3044744,Refuse Containers,21/07/2022,282.4,1412,1694.4,Wheeled Bins,Refuse Containers/Litter Bins,61200
http://statistics.data.gov.uk/id/local-authority/12UE,Huntingdonshire District Council,200900,CRAEMER UK LTD,68853,12/08/2022,3045729,Refuse Containers,08/09/2022,319.2,1596,1915.2,Wheeled Bins,Refuse Containers/Litter Bins,61200
http://statistics.data.gov.uk/id/local-authority/12UE,Huntingdonshire District Council,202337,CRANBROOK PLANTS,66511,14/06/2022,1047,Hanging Basket Ramsey,07/07/2022,133,665,798,Grounds Maintenance,Gardening Supplies,60506
http://statistics.data.gov.uk/id/local-authority/12UE,Huntingdonshire District Council,201341,CROSS KEYS HOMES LTD,66785,01/07/2022,REDACTED,REDACTED,04/07/2022,0,260.06,260.06,Homelessness,Homeless Prevention Payments,64403
http://statistics.data.gov.uk/id/local-authority/12UE,Huntingdonshire District Council,201341,CROSS KEYS HOMES LTD,67279,08/07/2022,REDACTED,REDACTED,14/07/2022,0,313,313,Homelessness,Homeless Prevention Payments,64403
http://statistics.data.gov.uk/id/local-authority/12UE,Huntingdonshire District Council,202821,CVSS LIMITED,67805,07/07/2022,13934,RD CCTV Parkers Piece - Jesus Green,04/08/2022,75,375,450,Cctv Huntingdonshire,Installation Fees,64073
http://statistics.data.gov.uk/id/local-authority/12UE,Huntingdonshire District Council,202821,CVSS LIMITED,67805,07/07/2022,13934,RD CCTV Parkers Piece - Jesus Green,04/08/2022,75,375,450,Cctv Huntingdonshire,Installation Fees,64073
http://statistics.data.gov.uk/id/local-authority/12UE,Huntingdonshire District Council,202821,CVSS LIMITED,68740,15/08/2022,13962,call out and repairs,08/09/2022,75,375,450,Cctv Shared Service Hosting,Installation Fees,64073
http://statistics.data.gov.uk/id/local-authority/12UE,Huntingdonshire District Council,202821,CVSS LIMITED,69381,19/08/2022,33502,CCTV Project - Burmuda House,15/09/2022,1809.2,9046,10855.2,Cctv Shared Service - HDC,Installation Fees,64073
http://statistics.data.gov.uk/id/local-authority/12UE,Huntingdonshire District Council,202821,CVSS LIMITED,69843,05/09/2022,33813,Additional RD CCTV Camera - Q7615,29/09/2022,549.4,2747,3296.4,Cctv Huntingdonshire,Installation Fees,64073
http://statistics.data.gov.uk/id/local-authority/12UE,Huntingdonshire District Council,202821,CVSS LIMITED,66557,24/06/2022,13898,CCTV - Cambs Park & Ride Project,21/07/2022,4685.8,23429,28114.8,Cctv Huntingdonshire,"Purchase - Equipment, Furniture And Materials",61703
http://statistics.data.gov.uk/id/local-authority/12UE,Huntingdonshire District Council,202821,CVSS LIMITED,66560,24/06/2022,13897,Park & Ride Project - Madingley,21/07/2022,1285,6425,7710,Cctv Huntingdonshire,"Purchase - Equipment, Furniture And Materials",61703
http://statistics.data.gov.uk/id/local-authority/12UE,Huntingdonshire District Council,202821,CVSS LIMITED,66562,21/06/2022,13894,ReDeployable CCTV Cameras,14/07/2022,514.8,2574,3088.8,Cctv Huntingdonshire,"Purchase - Equipment, Furniture And Materials",61703
http://statistics.data.gov.uk/id/local-authority/12UE,Huntingdonshire District Council,202821,CVSS LIMITED,66627,29/06/2022,13906,Park & Ride Project - Milton,21/07/2022,1128.2,5641,6769.2,Cctv Huntingdonshire,"Purchase - Equipment, Furniture And Materials",61703
http://statistics.data.gov.uk/id/local-authority/12UE,Huntingdonshire District Council,202821,CVSS LIMITED,66835,30/06/2022,13910,Park & Ride Project - Milton,28/07/2022,3137.4,15687,18824.4,Cctv Huntingdonshire,"Purchase - Equipment, Furniture And Materials",61703
http://statistics.data.gov.uk/id/local-authority/12UE,Huntingdonshire District Council,202821,CVSS LIMITED,66836,30/06/2022,13913,Park & Ride Project - Trumpington,28/07/2022,3168.2,15841,19009.2,Cctv Huntingdonshire,"Purchase - Equipment, Furniture And Materials",61703
http://statistics.data.gov.uk/id/local-authority/12UE,Huntingdonshire District Council,202821,CVSS LIMITED,66841,30/06/2022,13912,Park & Ride Project - Trumpington,28/07/2022,1391.6,6958,8349.6,Cctv Huntingdonshire,"Purchase - Equipment, Furniture And Materials",61703
http://statistics.data.gov.uk/id/local-authority/12UE,Huntingdonshire District Council,202821,CVSS LIMITED,66842,30/06/2022,13911,Relocate Cameras,28/07/2022,75,375,450,Cctv Huntingdonshire,"Purchase - Equipment, Furniture And Materials",61703
http://statistics.data.gov.uk/id/local-authority/12UE,Huntingdonshire District Council,202821,CVSS LIMITED,67798,21/07/2022,13928,Park & Ride Project - Newmarket Rd,11/08/2022,1471.8,7359,8830.8,Cctv Huntingdonshire,"Purchase - Equipment, Furniture And Materials",61703
http://statistics.data.gov.uk/id/local-authority/12UE,Huntingdonshire District Council,202821,CVSS LIMITED,67800,21/07/2022,13933,CCTV Park & Ride Newmarket Road,11/08/2022,4661,23305,27966,Cctv Huntingdonshire,"Purchase - Equipment, Furniture And Materials",61703
http://statistics.data.gov.uk/id/local-authority/12UE,Huntingdonshire District Council,202702,D J SAYWELL LTD,66539,13/06/2022,51217,Pax Pits Materials,07/07/2022,1388.8,6944,8332.8,Paxton Pits,Materials,61709
http://statistics.data.gov.uk/id/local-authority/12UE,Huntingdonshire District Council,200226,DAL-ROD (CAMRIDGESHIRE) DAL-ROD (CAMRIDGESHIRE),65701,09/06/2022,60494,work time 220522,07/07/2022,74,370,444,OLH - Site & Centre Management,Maintenance - Building,60201
http://statistics.data.gov.uk/id/local-authority/12UE,Huntingdonshire District Council,200226,DAL-ROD (CAMRIDGESHIRE) DAL-ROD (CAMRIDGESHIRE),67032,06/07/2022,60877,SIBS Toilet Blockage,28/07/2022,84,420,504,Market Rd Pc Bus Stn - St Ives,Maintenance - Building,60201
http://statistics.data.gov.uk/id/local-authority/12UE,Huntingdonshire District Council,200226,DAL-ROD (CAMRIDGESHIRE) DAL-ROD (CAMRIDGESHIRE),67039,06/07/2022,60861,OLH Blocked Pipeline,28/07/2022,112,560,672,OLH - Site & Centre Management,Maintenance - Building,60201
http://statistics.data.gov.uk/id/local-authority/12UE,Huntingdonshire District Council,200226,DAL-ROD (CAMRIDGESHIRE) DAL-ROD (CAMRIDGESHIRE),68805,17/08/2022,61291,facilities 040822 work,08/09/2022,75,375,450,OLR - Site & Centre Management,Maintenance - Building,60201
http://statistics.data.gov.uk/id/local-authority/12UE,Huntingdonshire District Council,200226,DAL-ROD (CAMRIDGESHIRE) DAL-ROD (CAMRIDGESHIRE),69469,07/09/2022,61500,OLH Various Works,29/09/2022,255.81,1279.03,1534.84,OLH - Swimming,Maintenance - Building,60201
http://statistics.data.gov.uk/id/local-authority/12UE,Huntingdonshire District Council,203050,REDACTED,69961,11/08/2022,1001,REDACTED,22/09/2022,0,700,700,Cctv Shared Service - HDC,Staff Development And Training,60115
http://statistics.data.gov.uk/id/local-authority/12UE,Huntingdonshire District Council,201715,DATASHREDDERS LTD,68458,31/07/2022,104855,PFH/EFH Shredding,25/08/2022,1.73,8.67,10.4,Eastfield House,Shredding,64055
http://statistics.data.gov.uk/id/local-authority/12UE,Huntingdonshire District Council,201715,DATASHREDDERS LTD,68458,31/07/2022,104855,PFH/EFH Shredding,25/08/2022,21.6,108,129.6,Eastfield House,Shredding,64055
http://statistics.data.gov.uk/id/local-authority/12UE,Huntingdonshire District Council,201715,DATASHREDDERS LTD,68458,31/07/2022,104855,PFH/EFH Shredding,25/08/2022,33.47,167.33,200.8,Pathfinder House,Shredding,64055
http://statistics.data.gov.uk/id/local-authority/12UE,Huntingdonshire District Council,201715,DATASHREDDERS LTD,68458,31/07/2022,104855,PFH/EFH Shredding,25/08/2022,10.8,54,64.8,Pathfinder House,Shredding,64055
http://statistics.data.gov.uk/id/local-authority/12UE,Huntingdonshire District Council,201715,DATASHREDDERS LTD,68488,30/06/2022,104115,Shredding,15/08/2022,85,425,510,Pathfinder House,Shredding,64055
http://statistics.data.gov.uk/id/local-authority/12UE,Huntingdonshire District Council,201715,DATASHREDDERS LTD,69869,31/08/2022,105456,PFH Shredding Aug22,22/09/2022,88.8,444,532.8,Pathfinder House,Shredding,64055
http://statistics.data.gov.uk/id/local-authority/12UE,Huntingdonshire District Council,200230,REDACTED,66010,12/06/2022,168,Fleet Valet Jun22,07/07/2022,0,37,37,Grounds Maintenance,Vehicle Cleaning,60923
http://statistics.data.gov.uk/id/local-authority/12UE,Huntingdonshire District Council,200230,REDACTED,66010,12/06/2022,168,Fleet Valet Jun22,07/07/2022,0,32,32,Pool Cars,Vehicle Cleaning,60923
http://statistics.data.gov.uk/id/local-authority/12UE,Huntingdonshire District Council,200230,REDACTED,66010,12/06/2022,168,Fleet Valet Jun22,07/07/2022,0,32,32,Pool Cars,Vehicle Cleaning,60923
http://statistics.data.gov.uk/id/local-authority/12UE,Huntingdonshire District Council,200230,REDACTED,66010,12/06/2022,168,Fleet Valet Jun22,07/07/2022,0,32,32,Pool Cars,Vehicle Cleaning,60923
http://statistics.data.gov.uk/id/local-authority/12UE,Huntingdonshire District Council,200230,REDACTED,66010,12/06/2022,168,Fleet Valet Jun22,07/07/2022,0,32,32,Pool Cars,Vehicle Cleaning,60923
http://statistics.data.gov.uk/id/local-authority/12UE,Huntingdonshire District Council,200230,REDACTED,66010,12/06/2022,168,Fleet Valet Jun22,07/07/2022,0,32,32,Pool Cars,Vehicle Cleaning,60923
http://statistics.data.gov.uk/id/local-authority/12UE,Huntingdonshire District Council,200230,REDACTED,66010,12/06/2022,168,Fleet Valet Jun22,07/07/2022,0,32,32,Pool Cars,Vehicle Cleaning,60923
http://statistics.data.gov.uk/id/local-authority/12UE,Huntingdonshire District Council,200230,REDACTED,66010,12/06/2022,168,Fleet Valet Jun22,07/07/2022,0,37,37,Street Cleansing,Vehicle Cleaning,60923
http://statistics.data.gov.uk/id/local-authority/12UE,Huntingdonshire District Council,200230,REDACTED,66010,12/06/2022,168,Fleet Valet Jun22,07/07/2022,0,37,37,Vehicle Maintenance,Vehicle Cleaning,60923
http://statistics.data.gov.uk/id/local-authority/12UE,Huntingdonshire District Council,200230,REDACTED,69673,04/09/2022,184,Full Fleet Valet,29/09/2022,0,35,35,Pool Cars,Vehicle Cleaning,60923
http://statistics.data.gov.uk/id/local-authority/12UE,Huntingdonshire District Council,200230,REDACTED,69673,04/09/2022,184,Full Fleet Valet,29/09/2022,0,35,35,Pool Cars,Vehicle Cleaning,60923
http://statistics.data.gov.uk/id/local-authority/12UE,Huntingdonshire District Council,200230,REDACTED,69673,04/09/2022,184,Full Fleet Valet,29/09/2022,0,35,35,Pool Cars,Vehicle Cleaning,60923
http://statistics.data.gov.uk/id/local-authority/12UE,Huntingdonshire District Council,200230,REDACTED,69673,04/09/2022,184,Full Fleet Valet,29/09/2022,0,35,35,Pool Cars,Vehicle Cleaning,60923
http://statistics.data.gov.uk/id/local-authority/12UE,Huntingdonshire District Council,200230,REDACTED,69673,04/09/2022,184,Full Fleet Valet,29/09/2022,0,35,35,Pool Cars,Vehicle Cleaning,60923
http://statistics.data.gov.uk/id/local-authority/12UE,Huntingdonshire District Council,200230,REDACTED,69673,04/09/2022,184,Full Fleet Valet,29/09/2022,0,35,35,Pool Cars,Vehicle Cleaning,60923
http://statistics.data.gov.uk/id/local-authority/12UE,Huntingdonshire District Council,200230,REDACTED,69673,04/09/2022,184,Full Fleet Valet,29/09/2022,0,35,35,Pool Cars,Vehicle Cleaning,60923
http://statistics.data.gov.uk/id/local-authority/12UE,Huntingdonshire District Council,200230,REDACTED,69673,04/09/2022,184,Full Fleet Valet,29/09/2022,0,35,35,Pool Cars,Vehicle Cleaning,60923
http://statistics.data.gov.uk/id/local-authority/12UE,Huntingdonshire District Council,200230,REDACTED,69673,04/09/2022,184,Full Fleet Valet,29/09/2022,0,40,40,Street Cleansing,Vehicle Cleaning,60923
http://statistics.data.gov.uk/id/local-authority/12UE,Huntingdonshire District Council,202479,DAVID OGILVIE ENGINEERING LTD,65838,09/06/2022,188181,Bespoke Lancaster Seat,07/07/2022,499,2495,2994,Parks & Open Spaces,Facilities Management,60200
http://statistics.data.gov.uk/id/local-authority/12UE,Huntingdonshire District Council,202479,DAVID OGILVIE ENGINEERING LTD,69625,16/02/2022,187635,Butterfly & Bee Seat/Feet,15/09/2022,120,600,720,Welcome Back Fund,Postage And Courier Services,64100
http://statistics.data.gov.uk/id/local-authority/12UE,Huntingdonshire District Council,202479,DAVID OGILVIE ENGINEERING LTD,69625,16/02/2022,187635,Butterfly & Bee Seat/Feet,15/09/2022,1992,9960,11952,Welcome Back Fund,"Purchase - Equipment, Furniture And Materials",61703
http://statistics.data.gov.uk/id/local-authority/12UE,Huntingdonshire District Council,202479,DAVID OGILVIE ENGINEERING LTD,69625,16/02/2022,187635,Butterfly & Bee Seat/Feet,15/09/2022,26,130,156,Welcome Back Fund,"Purchase - Equipment, Furniture And Materials",61703
http://statistics.data.gov.uk/id/local-authority/12UE,Huntingdonshire District Council,200232,DCRS LTD DCRS LTD,67746,22/07/2022,254807,OLSI Radios,18/08/2022,252,1260,1512,OLSI - Site & Centre Management,Equipment,61713
http://statistics.data.gov.uk/id/local-authority/12UE,Huntingdonshire District Council,200232,DCRS LTD DCRS LTD,67746,22/07/2022,254807,OLSI Radios,18/08/2022,30,150,180,OLSI - Site & Centre Management,Equipment,61713
http://statistics.data.gov.uk/id/local-authority/12UE,Huntingdonshire District Council,200232,DCRS LTD DCRS LTD,67746,22/07/2022,254807,OLSI Radios,18/08/2022,28,140,168,OLSI - Site & Centre Management,Equipment,61713
http://statistics.data.gov.uk/id/local-authority/12UE,Huntingdonshire District Council,200232,DCRS LTD DCRS LTD,67746,22/07/2022,254807,OLSI Radios,18/08/2022,4.54,22.7,27.24,OLSI - Site & Centre Management,Equipment,61713
http://statistics.data.gov.uk/id/local-authority/12UE,Huntingdonshire District Council,200236,DENNIS EAGLE LTD DENNIS EAGLE LTD,68200,02/08/2022,30851-30854,HGV Road Fund Licence,25/08/2022,0,220,220,Vehicles & Plant,"Acquisition - Vehicles, Plant And Equipment",60801
http://statistics.data.gov.uk/id/local-authority/12UE,Huntingdonshire District Council,200236,DENNIS EAGLE LTD DENNIS EAGLE LTD,68589,28/06/2022,445709,ops van de connect,18/08/2022,2.5,12.5,15,Domestic Waste Collection,Land Line Rental,64077
http://statistics.data.gov.uk/id/local-authority/12UE,Huntingdonshire District Council,200236,DENNIS EAGLE LTD DENNIS EAGLE LTD,68589,28/06/2022,445709,ops van de connect,18/08/2022,2.5,12.5,15,Domestic Waste Collection,Land Line Rental,64077
http://statistics.data.gov.uk/id/local-authority/12UE,Huntingdonshire District Council,200236,DENNIS EAGLE LTD DENNIS EAGLE LTD,68589,28/06/2022,445709,ops van de connect,18/08/2022,2.5,12.5,15,Recycling Collections,Land Line Rental,64077
http://statistics.data.gov.uk/id/local-authority/12UE,Huntingdonshire District Council,200236,DENNIS EAGLE LTD DENNIS EAGLE LTD,68589,28/06/2022,445709,ops van de connect,18/08/2022,31,155,186,Recycling Collections,Land Line Rental,64077
http://statistics.data.gov.uk/id/local-authority/12UE,Huntingdonshire District Council,200236,DENNIS EAGLE LTD DENNIS EAGLE LTD,68589,28/06/2022,445709,ops van de connect,18/08/2022,2.5,12.5,15,Recycling Collections,Land Line Rental,64077
http://statistics.data.gov.uk/id/local-authority/12UE,Huntingdonshire District Council,200236,DENNIS EAGLE LTD DENNIS EAGLE LTD,68589,28/06/2022,445709,ops van de connect,18/08/2022,31,155,186,Recycling Collections,Land Line Rental,64077
http://statistics.data.gov.uk/id/local-authority/12UE,Huntingdonshire District Council,200236,DENNIS EAGLE LTD DENNIS EAGLE LTD,66109,14/06/2022,DE11502311,VU67HXX Door Casing,07/07/2022,-0.01,0,-0.01,Finance,Over/Under VAT Rounding,68350
http://statistics.data.gov.uk/id/local-authority/12UE,Huntingdonshire District Council,200236,DENNIS EAGLE LTD DENNIS EAGLE LTD,67261,27/06/2022,DE11505492,OPS DOOR CASING,21/07/2022,-0.01,0,-0.01,Finance,Over/Under VAT Rounding,68350
http://statistics.data.gov.uk/id/local-authority/12UE,Huntingdonshire District Council,200236,DENNIS EAGLE LTD DENNIS EAGLE LTD,68200,02/08/2022,30851-30854,HGV Road Fund Licence,25/08/2022,0,311,311,Green Waste Collection,Vehicle Licensing,60905
http://statistics.data.gov.uk/id/local-authority/12UE,Huntingdonshire District Council,200236,DENNIS EAGLE LTD DENNIS EAGLE LTD,68200,02/08/2022,30851-30854,HGV Road Fund Licence,25/08/2022,0,311,311,Green Waste Collection,Vehicle Licensing,60905
http://statistics.data.gov.uk/id/local-authority/12UE,Huntingdonshire District Council,200236,DENNIS EAGLE LTD DENNIS EAGLE LTD,68200,02/08/2022,30851-30854,HGV Road Fund Licence,25/08/2022,0,311,311,Green Waste Collection,Vehicle Licensing,60905
http://statistics.data.gov.uk/id/local-authority/12UE,Huntingdonshire District Council,200236,DENNIS EAGLE LTD DENNIS EAGLE LTD,68200,02/08/2022,30851-30854,HGV Road Fund Licence,25/08/2022,0,311,311,Green Waste Collection,Vehicle Licensing,60905
http://statistics.data.gov.uk/id/local-authority/12UE,Huntingdonshire District Council,200236,DENNIS EAGLE LTD DENNIS EAGLE LTD,69559,22/08/2022,450236,VU67HXZ Repair Sweeper Plate,15/09/2022,1382.55,6912.73,8295.28,Recycling Collections,Vehicle Maintenance - External,60921
http://statistics.data.gov.uk/id/local-authority/12UE,Huntingdonshire District Council,200236,DENNIS EAGLE LTD DENNIS EAGLE LTD,66109,14/06/2022,DE11502311,VU67HXX Door Casing,07/07/2022,60.76,303.78,364.54,Trade Refuse,Vehicle Repairs And Maintenance,60904
http://statistics.data.gov.uk/id/local-authority/12UE,Huntingdonshire District Council,200236,DENNIS EAGLE LTD DENNIS EAGLE LTD,66671,21/06/2022,DE11504094,VK22BYA Wheel Rim,14/07/2022,54.34,271.72,326.06,Green Waste Collection,Vehicle Repairs And Maintenance,60904
http://statistics.data.gov.uk/id/local-authority/12UE,Huntingdonshire District Council,200236,DENNIS EAGLE LTD DENNIS EAGLE LTD,67261,27/06/2022,DE11505492,OPS DOOR CASING,21/07/2022,60.76,303.78,364.54,Domestic Waste Collection,Vehicle Repairs And Maintenance,60904
http://statistics.data.gov.uk/id/local-authority/12UE,Huntingdonshire District Council,200236,DENNIS EAGLE LTD DENNIS EAGLE LTD,67373,22/06/2022,DE11504500,VE18JWF Window Reg/Vent,18/07/2022,70.57,352.84,423.41,Green Waste Collection,Vehicle Repairs And Maintenance,60904
http://statistics.data.gov.uk/id/local-authority/12UE,Huntingdonshire District Council,200236,DENNIS EAGLE LTD DENNIS EAGLE LTD,67471,12/07/2022,DE11509250,VU66NUK Filter/Rivet,04/08/2022,50.67,253.37,304.04,Green Waste Collection,Vehicle Repairs And Maintenance,60904
http://statistics.data.gov.uk/id/local-authority/12UE,Huntingdonshire District Council,200236,DENNIS EAGLE LTD DENNIS EAGLE LTD,67472,11/07/2022,DE11508832,VU66NUK Various,04/08/2022,67.03,335.16,402.19,Green Waste Collection,Vehicle Repairs And Maintenance,60904
http://statistics.data.gov.uk/id/local-authority/12UE,Huntingdonshire District Council,200236,DENNIS EAGLE LTD DENNIS EAGLE LTD,67473,08/07/2022,DE11508508,VU66NUH Brakes/Mudwing/Bolt,04/08/2022,60.54,302.69,363.23,Green Waste Collection,Vehicle Repairs And Maintenance,60904
http://statistics.data.gov.uk/id/local-authority/12UE,Huntingdonshire District Council,200236,DENNIS EAGLE LTD DENNIS EAGLE LTD,67474,30/06/2022,DE11506458,VE18JWF Filter/Valve,28/07/2022,82.46,412.29,494.75,Green Waste Collection,Vehicle Repairs And Maintenance,60904
http://statistics.data.gov.uk/id/local-authority/12UE,Huntingdonshire District Council,200236,DENNIS EAGLE LTD DENNIS EAGLE LTD,67641,18/07/2022,DE11510660,,11/08/2022,229.02,1145.08,1374.1,Domestic Waste Collection,Vehicle Repairs And Maintenance,60904
http://statistics.data.gov.uk/id/local-authority/12UE,Huntingdonshire District Council,200236,DENNIS EAGLE LTD DENNIS EAGLE LTD,67767,08/06/2022,DE11500932,VA21ZGO MOT Parts,28/07/2022,164.84,824.21,989.05,Recycling Collections,Vehicle Repairs And Maintenance,60904
http://statistics.data.gov.uk/id/local-authority/12UE,Huntingdonshire District Council,200236,DENNIS EAGLE LTD DENNIS EAGLE LTD,67788,17/06/2022,DE11503363,VU67HXY Ram/Pin Bearing,28/07/2022,190.5,952.51,1143.01,Domestic Waste Collection,Vehicle Repairs And Maintenance,60904
http://statistics.data.gov.uk/id/local-authority/12UE,Huntingdonshire District Council,200236,DENNIS EAGLE LTD DENNIS EAGLE LTD,67791,17/06/2022,DE11503364,VU67HXZ Window/Knob/Brush,28/07/2022,63.33,316.65,379.98,Recycling Collections,Vehicle Repairs And Maintenance,60904
http://statistics.data.gov.uk/id/local-authority/12UE,Huntingdonshire District Council,200236,DENNIS EAGLE LTD DENNIS EAGLE LTD,67875,21/07/2022,DE11511747,VN66CBX Various,18/08/2022,156.8,784.02,940.82,Domestic Waste Collection,Vehicle Repairs And Maintenance,60904
http://statistics.data.gov.uk/id/local-authority/12UE,Huntingdonshire District Council,200236,DENNIS EAGLE LTD DENNIS EAGLE LTD,67879,08/07/2022,DE11508507,VE18JXA Various,04/08/2022,66.51,332.54,399.05,Domestic Waste Collection,Vehicle Repairs And Maintenance,60904
http://statistics.data.gov.uk/id/local-authority/12UE,Huntingdonshire District Council,200236,DENNIS EAGLE LTD DENNIS EAGLE LTD,68238,22/07/2022,DE11512096,VK20NTN Gear Pad,18/08/2022,128.31,641.53,769.84,Domestic Waste Collection,Vehicle Repairs And Maintenance,60904
http://statistics.data.gov.uk/id/local-authority/12UE,Huntingdonshire District Council,200236,DENNIS EAGLE LTD DENNIS EAGLE LTD,68407,02/08/2022,DE11514640,MOT Parts VK20XWJ,25/08/2022,232.39,1161.95,1394.34,Recycling Collections,Vehicle Repairs And Maintenance,60904
http://statistics.data.gov.uk/id/local-authority/12UE,Huntingdonshire District Council,200236,DENNIS EAGLE LTD DENNIS EAGLE LTD,69457,15/08/2022,DE11517656,VN66CBX Gearbox Pad,12/09/2022,128.31,641.53,769.84,Domestic Waste Collection,Vehicle Repairs And Maintenance,60904
http://statistics.data.gov.uk/id/local-authority/12UE,Huntingdonshire District Council,200236,DENNIS EAGLE LTD DENNIS EAGLE LTD,69460,15/08/2022,DE11517655,VK22BXZ MOT Parts,12/09/2022,59.27,296.36,355.63,Green Waste Collection,Vehicle Repairs And Maintenance,60904
http://statistics.data.gov.uk/id/local-authority/12UE,Huntingdonshire District Council,200236,DENNIS EAGLE LTD DENNIS EAGLE LTD,69512,23/08/2022,DE11519701,VE18JWF Seat Cover/Bracket,15/09/2022,58.62,293.11,351.73,Green Waste Collection,Vehicle Repairs And Maintenance,60904
http://statistics.data.gov.uk/id/local-authority/12UE,Huntingdonshire District Council,200236,DENNIS EAGLE LTD DENNIS EAGLE LTD,69555,30/08/2022,DE11521044,VA21ZGP Various Parts,22/09/2022,169.59,847.97,1017.56,Domestic Waste Collection,Vehicle Repairs And Maintenance,60904
http://statistics.data.gov.uk/id/local-authority/12UE,Huntingdonshire District Council,200236,DENNIS EAGLE LTD DENNIS EAGLE LTD,69556,30/08/2022,DE11521045,VE18JWD Latch Kit,22/09/2022,67.62,338.09,405.71,Domestic Waste Collection,Vehicle Repairs And Maintenance,60904
http://statistics.data.gov.uk/id/local-authority/12UE,Huntingdonshire District Council,202489,DIRECT HEALTHCARE GROUP LTD,67562,30/06/2022,GB02CSI010508,,28/07/2022,0,5491.72,5491.72,Disables Facilities Grants,Mandatory Grants,64601
http://statistics.data.gov.uk/id/local-authority/12UE,Huntingdonshire District Council,202489,DIRECT HEALTHCARE GROUP LTD,67723,25/07/2022,GB02CSI012080,REDACTED,18/08/2022,0,1989,1989,Disables Facilities Grants,Mandatory Grants,64601
http://statistics.data.gov.uk/id/local-authority/12UE,Huntingdonshire District Council,202489,DIRECT HEALTHCARE GROUP LTD,67837,27/07/2022,GB02CSI012257,REDACTED,18/08/2022,0,1989,1989,Disables Facilities Grants,Mandatory Grants,64601
http://statistics.data.gov.uk/id/local-authority/12UE,Huntingdonshire District Council,202489,DIRECT HEALTHCARE GROUP LTD,68104,25/07/2022,GB02CSI012078,REDACTED,18/08/2022,0,2169,2169,Disables Facilities Grants,Mandatory Grants,64601
http://statistics.data.gov.uk/id/local-authority/12UE,Huntingdonshire District Council,202489,DIRECT HEALTHCARE GROUP LTD,68169,07/06/2022,GB02CSI008804,REDACTED,04/08/2022,0,5348,5348,Disables Facilities Grants,Mandatory Grants,64601
http://statistics.data.gov.uk/id/local-authority/12UE,Huntingdonshire District Council,201679,DISTRICT COUNCILS NETWORK,68229,28/04/2022,DCN/DI/2223/080,Annual Membership Fees 22/23,08/08/2022,948.6,4743,5691.6,Managing Directors Team,Membership And Subscriptions,64800
http://statistics.data.gov.uk/id/local-authority/12UE,Huntingdonshire District Council,200242,DOBSON UK LLP DOBSON UK LLP,68135,30/06/2022,8003,Weed Spray 2,04/08/2022,868.34,4341.7,5210.04,Vehicle Maintenance,Subcontractors,62401
http://statistics.data.gov.uk/id/local-authority/12UE,Huntingdonshire District Council,200363,Drax Energy Solutions Limited Drax Energy Solutions Limited,66949,05/07/2022,1001407197,OLSIO Credit IN1106101232,07/07/2022,-326.24,-1631.21,-1957.45,OLSIO - Site & Centre Management,Electricity,60303
http://statistics.data.gov.uk/id/local-authority/12UE,Huntingdonshire District Council,200363,Drax Energy Solutions Limited Drax Energy Solutions Limited,66954,04/07/2022,IN1106155625,OLR Jun22,14/07/2022,1451.7,7258.49,8710.19,OLR - Site & Centre Management,Electricity,60303
http://statistics.data.gov.uk/id/local-authority/12UE,Huntingdonshire District Council,200363,Drax Energy Solutions Limited Drax Energy Solutions Limited,66955,05/07/2022,IN1106156839,OLSN Jun22,14/07/2022,1099.11,5495.56,6594.67,OLSN - Swimming,Electricity,60303
http://statistics.data.gov.uk/id/local-authority/12UE,Huntingdonshire District Council,200363,Drax Energy Solutions Limited Drax Energy Solutions Limited,66957,05/07/2022,IN1106156845,OLSI Jun22,14/07/2022,1016.34,5081.71,6098.05,OLSI - Site & Centre Management,Electricity,60303
http://statistics.data.gov.uk/id/local-authority/12UE,Huntingdonshire District Council,200363,Drax Energy Solutions Limited Drax Energy Solutions Limited,66958,05/07/2022,IN1106156844,OLSIO Jun22,14/07/2022,302.99,1514.97,1817.96,OLSIO - Site & Centre Management,Electricity,60303
http://statistics.data.gov.uk/id/local-authority/12UE,Huntingdonshire District Council,200363,Drax Energy Solutions Limited Drax Energy Solutions Limited,66974,05/07/2022,IN1106156840,OLH Jun22,14/07/2022,336.01,1680.06,2016.07,OLH - Site & Centre Management,Electricity,60303
http://statistics.data.gov.uk/id/local-authority/12UE,Huntingdonshire District Council,200363,Drax Energy Solutions Limited Drax Energy Solutions Limited,66976,05/07/2022,IN1106156843,OLSIO May22,14/07/2022,314.64,1573.2,1887.84,OLSIO - Site & Centre Management,Electricity,60303
http://statistics.data.gov.uk/id/local-authority/12UE,Huntingdonshire District Council,200363,Drax Energy Solutions Limited Drax Energy Solutions Limited,66996,09/06/2022,IN1106101225,OLR Apr22,07/07/2022,891.87,4459.33,5351.2,OLR - Site & Centre Management,Electricity,60303
http://statistics.data.gov.uk/id/local-authority/12UE,Huntingdonshire District Council,200363,Drax Energy Solutions Limited Drax Energy Solutions Limited,66997,09/06/2022,IN1106101226,OLR May22,07/07/2022,1069.27,5346.37,6415.64,OLR - Site & Centre Management,Electricity,60303
http://statistics.data.gov.uk/id/local-authority/12UE,Huntingdonshire District Council,200363,Drax Energy Solutions Limited Drax Energy Solutions Limited,67179,05/07/2022,IN110615841,FACILITIES JUNE 22,14/07/2022,275.73,1378.64,1654.37,Eastfield House,Electricity,60303
http://statistics.data.gov.uk/id/local-authority/12UE,Huntingdonshire District Council,200363,Drax Energy Solutions Limited Drax Energy Solutions Limited,67184,05/07/2022,IN1106156842,FACILITIES PFH JUNE,14/07/2022,1618.21,8091.06,9709.27,Pathfinder House,Electricity,60303
http://statistics.data.gov.uk/id/local-authority/12UE,Huntingdonshire District Council,200363,Drax Energy Solutions Limited Drax Energy Solutions Limited,68312,10/08/2022,PRF REBILL,prf sept/dec rebiled,11/08/2022,-82.89,-414.46,-497.35,Pathfinder House,Electricity,60303
http://statistics.data.gov.uk/id/local-authority/12UE,Huntingdonshire District Council,200363,Drax Energy Solutions Limited Drax Energy Solutions Limited,68315,03/08/2022,1001418470,OLSN Dec22,11/08/2022,-1001.72,-5008.57,-6010.29,OLSN - Swimming,Electricity,60303
http://statistics.data.gov.uk/id/local-authority/12UE,Huntingdonshire District Council,200363,Drax Energy Solutions Limited Drax Energy Solutions Limited,68316,03/08/2022,1001418471,OLSN Jun22,11/08/2022,-1099.11,-5495.54,-6594.65,OLSN - Swimming,Electricity,60303
http://statistics.data.gov.uk/id/local-authority/12UE,Huntingdonshire District Council,200363,Drax Energy Solutions Limited Drax Energy Solutions Limited,68317,03/08/2022,1001418473,OLSIO Dec22,11/08/2022,-574.62,-2873.11,-3447.73,OLSIO - Site & Centre Management,Electricity,60303
http://statistics.data.gov.uk/id/local-authority/12UE,Huntingdonshire District Council,200363,Drax Energy Solutions Limited Drax Energy Solutions Limited,68323,03/08/2022,1001418474,OLSI Dec22,11/08/2022,0,-181.77,-181.77,OLSI - Site & Centre Management,Electricity,60303
http://statistics.data.gov.uk/id/local-authority/12UE,Huntingdonshire District Council,200363,Drax Energy Solutions Limited Drax Energy Solutions Limited,68323,03/08/2022,1001418474,OLSI Dec22,11/08/2022,-1028.35,-5141.76,-6170.11,OLSI - Site & Centre Management,Electricity,60303
http://statistics.data.gov.uk/id/local-authority/12UE,Huntingdonshire District Council,200363,Drax Energy Solutions Limited Drax Energy Solutions Limited,68325,09/08/2022,PRF PFH 22,jan 22 credit rebill PFH,11/08/2022,-57.53,-287.62,-345.15,Pathfinder House,Electricity,60303
http://statistics.data.gov.uk/id/local-authority/12UE,Huntingdonshire District Council,200363,Drax Energy Solutions Limited Drax Energy Solutions Limited,68346,03/08/2022,IN1106252031,OLSIO Dec22,11/08/2022,575.35,2876.75,3452.1,OLSIO - Site & Centre Management,Electricity,60303
http://statistics.data.gov.uk/id/local-authority/12UE,Huntingdonshire District Council,200363,Drax Energy Solutions Limited Drax Energy Solutions Limited,68348,03/08/2022,IN1106252027,OLH Jul22,11/08/2022,431.62,2158.11,2589.73,OLH - Site & Centre Management,Electricity,60303
http://statistics.data.gov.uk/id/local-authority/12UE,Huntingdonshire District Council,200363,Drax Energy Solutions Limited Drax Energy Solutions Limited,68349,03/08/2022,IN1106252026,OLSN Jul22,11/08/2022,1215.91,6079.53,7295.44,OLSN - Swimming,Electricity,60303
http://statistics.data.gov.uk/id/local-authority/12UE,Huntingdonshire District Council,200363,Drax Energy Solutions Limited Drax Energy Solutions Limited,68350,03/08/2022,IN1106252034,OLSI Jul22,11/08/2022,1304.76,6523.81,7828.57,OLSI - Site & Centre Management,Electricity,60303
http://statistics.data.gov.uk/id/local-authority/12UE,Huntingdonshire District Council,200363,Drax Energy Solutions Limited Drax Energy Solutions Limited,68351,03/08/2022,IN1106252032,OLSIO Jul22,11/08/2022,313.36,1566.81,1880.17,OLSIO - Site & Centre Management,Electricity,60303
http://statistics.data.gov.uk/id/local-authority/12UE,Huntingdonshire District Council,200363,Drax Energy Solutions Limited Drax Energy Solutions Limited,68356,03/08/2022,IN1106241019,OLR Jul22,11/08/2022,1608.34,8041.68,9650.02,OLR - Site & Centre Management,Electricity,60303
http://statistics.data.gov.uk/id/local-authority/12UE,Huntingdonshire District Council,200363,Drax Energy Solutions Limited Drax Energy Solutions Limited,68357,03/08/2022,IN1106252025,OLSN Jun22,11/08/2022,1132.99,5664.96,6797.95,OLSN - Swimming,Electricity,60303
http://statistics.data.gov.uk/id/local-authority/12UE,Huntingdonshire District Council,200363,Drax Energy Solutions Limited Drax Energy Solutions Limited,68358,03/08/2022,IN1106252024,OLSN Dec22,11/08/2022,1006.2,5031,6037.2,OLSN - Swimming,Electricity,60303
http://statistics.data.gov.uk/id/local-authority/12UE,Huntingdonshire District Council,200363,Drax Energy Solutions Limited Drax Energy Solutions Limited,68359,03/08/2022,IN1106252033,OLSI Dec22,11/08/2022,1032.68,5163.4,6196.08,OLSI - Site & Centre Management,Electricity,60303
http://statistics.data.gov.uk/id/local-authority/12UE,Huntingdonshire District Council,200363,Drax Energy Solutions Limited Drax Energy Solutions Limited,68359,03/08/2022,IN1106252033,OLSI Dec22,11/08/2022,0,181.76,181.76,OLSI - Site & Centre Management,Electricity,60303
http://statistics.data.gov.uk/id/local-authority/12UE,Huntingdonshire District Council,200363,Drax Energy Solutions Limited Drax Energy Solutions Limited,68382,03/08/2022,1106252028,EFH Jul22,11/08/2022,327.74,1638.7,1966.44,Eastfield House,Electricity,60303
http://statistics.data.gov.uk/id/local-authority/12UE,Huntingdonshire District Council,200363,Drax Energy Solutions Limited Drax Energy Solutions Limited,68383,03/08/2022,IN1106252030,PFH Jul22,11/08/2022,1803.31,9016.57,10819.88,Pathfinder House,Electricity,60303
http://statistics.data.gov.uk/id/local-authority/12UE,Huntingdonshire District Council,200363,Drax Energy Solutions Limited Drax Energy Solutions Limited,70175,07/09/2022,C100143662,OLSIO Reduced Charge Jul22,29/09/2022,-313.36,-1566.82,-1880.18,OLSIO - Site & Centre Management,Electricity,60303
http://statistics.data.gov.uk/id/local-authority/12UE,Huntingdonshire District Council,200363,Drax Energy Solutions Limited Drax Energy Solutions Limited,70176,07/09/2022,1001436663,OLSI Reduced Charge Jul22,29/09/2022,-1304.76,-6523.82,-7828.58,OLSI - Site & Centre Management,Electricity,60303
http://statistics.data.gov.uk/id/local-authority/12UE,Huntingdonshire District Council,200363,Drax Energy Solutions Limited Drax Energy Solutions Limited,70177,07/09/2022,1001436661,OLSN Reduced Charge Jul22,29/09/2022,-1215.9,-6079.51,-7295.41,OLSN - Swimming,Electricity,60303
http://statistics.data.gov.uk/id/local-authority/12UE,Huntingdonshire District Council,200363,Drax Energy Solutions Limited Drax Energy Solutions Limited,70200,07/09/2022,IN1106348834,PFH Aug22,29/09/2022,1884.8,9424.01,11308.81,Pathfinder House,Electricity,60303
http://statistics.data.gov.uk/id/local-authority/12UE,Huntingdonshire District Council,200363,Drax Energy Solutions Limited Drax Energy Solutions Limited,70201,07/09/2022,IN1106348833,EFH Ops Aug22,29/09/2022,375.11,1875.54,2250.65,Eastfield House,Electricity,60303
http://statistics.data.gov.uk/id/local-authority/12UE,Huntingdonshire District Council,200363,Drax Energy Solutions Limited Drax Energy Solutions Limited,70202,07/09/2022,IN1106348830,OLSN Jul22,29/09/2022,1261.99,6309.93,7571.92,OLSN - Swimming,Electricity,60303
http://statistics.data.gov.uk/id/local-authority/12UE,Huntingdonshire District Council,200363,Drax Energy Solutions Limited Drax Energy Solutions Limited,70203,07/09/2022,IN1106348835,OLSIO Jul22,29/09/2022,327.5,1637.49,1964.99,OLSIO - Site & Centre Management,Electricity,60303
http://statistics.data.gov.uk/id/local-authority/12UE,Huntingdonshire District Council,200363,Drax Energy Solutions Limited Drax Energy Solutions Limited,70204,07/09/2022,IN1106348837,OLSI Jul22,29/09/2022,1329.96,6649.78,7979.74,OLSI - Site & Centre Management,Electricity,60303
http://statistics.data.gov.uk/id/local-authority/12UE,Huntingdonshire District Council,200363,Drax Energy Solutions Limited Drax Energy Solutions Limited,70205,07/09/2022,IN1106348832,OLH Aug22,29/09/2022,456.75,2283.74,2740.49,OLH - Site & Centre Management,Electricity,60303
http://statistics.data.gov.uk/id/local-authority/12UE,Huntingdonshire District Council,200363,Drax Energy Solutions Limited Drax Energy Solutions Limited,70206,07/09/2022,IN1106348836,OLSIO Aug22,29/09/2022,352.17,1760.84,2113.01,OLSIO - Site & Centre Management,Electricity,60303
http://statistics.data.gov.uk/id/local-authority/12UE,Huntingdonshire District Council,200363,Drax Energy Solutions Limited Drax Energy Solutions Limited,70207,07/09/2022,IN1106348838,OLSI Aug22,29/09/2022,1226.17,6130.86,7357.03,OLSI - Site & Centre Management,Electricity,60303
http://statistics.data.gov.uk/id/local-authority/12UE,Huntingdonshire District Council,200363,Drax Energy Solutions Limited Drax Energy Solutions Limited,70208,05/09/2022,IN1106322634,OLR Aug22,29/09/2022,1546.53,7732.65,9279.18,OLR - Site & Centre Management,Electricity,60303
http://statistics.data.gov.uk/id/local-authority/12UE,Huntingdonshire District Council,200363,Drax Energy Solutions Limited Drax Energy Solutions Limited,70209,07/09/2022,IN1106348831,OLSN Aug22,29/09/2022,1266.34,6331.72,7598.06,OLSN - Swimming,Electricity,60303
http://statistics.data.gov.uk/id/local-authority/12UE,Huntingdonshire District Council,200363,Drax Energy Solutions Limited Drax Energy Solutions Limited,66949,05/07/2022,1001407197,OLSIO Credit IN1106101232,07/07/2022,0.01,-0.01,0,Finance,Over/Under VAT Rounding,68350
http://statistics.data.gov.uk/id/local-authority/12UE,Huntingdonshire District Council,200363,Drax Energy Solutions Limited Drax Energy Solutions Limited,66955,05/07/2022,IN1106156839,OLSN Jun22,14/07/2022,-0.02,0,-0.02,Finance,Over/Under VAT Rounding,68350
http://statistics.data.gov.uk/id/local-authority/12UE,Huntingdonshire District Council,200363,Drax Energy Solutions Limited Drax Energy Solutions Limited,66957,05/07/2022,IN1106156845,OLSI Jun22,14/07/2022,-0.01,0,-0.01,Finance,Over/Under VAT Rounding,68350
http://statistics.data.gov.uk/id/local-authority/12UE,Huntingdonshire District Council,200363,Drax Energy Solutions Limited Drax Energy Solutions Limited,66958,05/07/2022,IN1106156844,OLSIO Jun22,14/07/2022,0.01,0,0.01,Finance,Over/Under VAT Rounding,68350
http://statistics.data.gov.uk/id/local-authority/12UE,Huntingdonshire District Council,200363,Drax Energy Solutions Limited Drax Energy Solutions Limited,66974,05/07/2022,IN1106156840,OLH Jun22,14/07/2022,-0.02,0,-0.02,Finance,Over/Under VAT Rounding,68350
http://statistics.data.gov.uk/id/local-authority/12UE,Huntingdonshire District Council,200363,Drax Energy Solutions Limited Drax Energy Solutions Limited,66976,05/07/2022,IN1106156843,OLSIO May22,14/07/2022,-0.01,0,-0.01,Finance,Over/Under VAT Rounding,68350
http://statistics.data.gov.uk/id/local-authority/12UE,Huntingdonshire District Council,200363,Drax Energy Solutions Limited Drax Energy Solutions Limited,67184,05/07/2022,IN1106156842,FACILITIES PFH JUNE,14/07/2022,-0.01,0,-0.01,Finance,Over/Under VAT Rounding,68350
http://statistics.data.gov.uk/id/local-authority/12UE,Huntingdonshire District Council,200363,Drax Energy Solutions Limited Drax Energy Solutions Limited,68316,03/08/2022,1001418471,OLSN Jun22,11/08/2022,0.02,-0.02,0,Finance,Over/Under VAT Rounding,68350
http://statistics.data.gov.uk/id/local-authority/12UE,Huntingdonshire District Council,200363,Drax Energy Solutions Limited Drax Energy Solutions Limited,68317,03/08/2022,1001418473,OLSIO Dec22,11/08/2022,0.02,-0.02,0,Finance,Over/Under VAT Rounding,68350
http://statistics.data.gov.uk/id/local-authority/12UE,Huntingdonshire District Council,200363,Drax Energy Solutions Limited Drax Energy Solutions Limited,68323,03/08/2022,1001418474,OLSI Dec22,11/08/2022,-0.01,0.01,0,Finance,Over/Under VAT Rounding,68350
http://statistics.data.gov.uk/id/local-authority/12UE,Huntingdonshire District Council,200363,Drax Energy Solutions Limited Drax Energy Solutions Limited,68346,03/08/2022,IN1106252031,OLSIO Dec22,11/08/2022,-0.02,0,-0.02,Finance,Over/Under VAT Rounding,68350
http://statistics.data.gov.uk/id/local-authority/12UE,Huntingdonshire District Council,200363,Drax Energy Solutions Limited Drax Energy Solutions Limited,68348,03/08/2022,IN1106252027,OLH Jul22,11/08/2022,-0.02,0,-0.02,Finance,Over/Under VAT Rounding,68350
http://statistics.data.gov.uk/id/local-authority/12UE,Huntingdonshire District Council,200363,Drax Energy Solutions Limited Drax Energy Solutions Limited,68349,03/08/2022,IN1106252026,OLSN Jul22,11/08/2022,-0.03,0,-0.03,Finance,Over/Under VAT Rounding,68350
http://statistics.data.gov.uk/id/local-authority/12UE,Huntingdonshire District Council,200363,Drax Energy Solutions Limited Drax Energy Solutions Limited,68350,03/08/2022,IN1106252034,OLSI Jul22,11/08/2022,0.01,0,0.01,Finance,Over/Under VAT Rounding,68350
http://statistics.data.gov.uk/id/local-authority/12UE,Huntingdonshire District Council,200363,Drax Energy Solutions Limited Drax Energy Solutions Limited,68351,03/08/2022,IN1106252032,OLSIO Jul22,11/08/2022,0.01,0,0.01,Finance,Over/Under VAT Rounding,68350
http://statistics.data.gov.uk/id/local-authority/12UE,Huntingdonshire District Council,200363,Drax Energy Solutions Limited Drax Energy Solutions Limited,68356,03/08/2022,IN1106241019,OLR Jul22,11/08/2022,-0.01,0,-0.01,Finance,Over/Under VAT Rounding,68350
http://statistics.data.gov.uk/id/local-authority/12UE,Huntingdonshire District Council,200363,Drax Energy Solutions Limited Drax Energy Solutions Limited,68358,03/08/2022,IN1106252024,OLSN Dec22,11/08/2022,0.01,0,0.01,Finance,Over/Under VAT Rounding,68350
http://statistics.data.gov.uk/id/local-authority/12UE,Huntingdonshire District Council,200363,Drax Energy Solutions Limited Drax Energy Solutions Limited,68383,03/08/2022,IN1106252030,PFH Jul22,11/08/2022,0.02,0,0.02,Finance,Over/Under VAT Rounding,68350
http://statistics.data.gov.uk/id/local-authority/12UE,Huntingdonshire District Council,200363,Drax Energy Solutions Limited Drax Energy Solutions Limited,70175,07/09/2022,C100143662,OLSIO Reduced Charge Jul22,29/09/2022,-0.01,0.01,0,Finance,Over/Under VAT Rounding,68350
http://statistics.data.gov.uk/id/local-authority/12UE,Huntingdonshire District Council,200363,Drax Energy Solutions Limited Drax Energy Solutions Limited,70176,07/09/2022,1001436663,OLSI Reduced Charge Jul22,29/09/2022,-0.01,0.01,0,Finance,Over/Under VAT Rounding,68350
http://statistics.data.gov.uk/id/local-authority/12UE,Huntingdonshire District Council,200363,Drax Energy Solutions Limited Drax Energy Solutions Limited,70177,07/09/2022,1001436661,OLSN Reduced Charge Jul22,29/09/2022,0.02,-0.02,0,Finance,Over/Under VAT Rounding,68350
http://statistics.data.gov.uk/id/local-authority/12UE,Huntingdonshire District Council,200363,Drax Energy Solutions Limited Drax Energy Solutions Limited,70200,07/09/2022,IN1106348834,PFH Aug22,29/09/2022,-0.01,0,-0.01,Finance,Over/Under VAT Rounding,68350
http://statistics.data.gov.uk/id/local-authority/12UE,Huntingdonshire District Council,200363,Drax Energy Solutions Limited Drax Energy Solutions Limited,70201,07/09/2022,IN1106348833,EFH Ops Aug22,29/09/2022,-0.02,0,-0.02,Finance,Over/Under VAT Rounding,68350
http://statistics.data.gov.uk/id/local-authority/12UE,Huntingdonshire District Council,200363,Drax Energy Solutions Limited Drax Energy Solutions Limited,70202,07/09/2022,IN1106348830,OLSN Jul22,29/09/2022,-0.01,0,-0.01,Finance,Over/Under VAT Rounding,68350
http://statistics.data.gov.uk/id/local-authority/12UE,Huntingdonshire District Council,200363,Drax Energy Solutions Limited Drax Energy Solutions Limited,70203,07/09/2022,IN1106348835,OLSIO Jul22,29/09/2022,0.01,0,0.01,Finance,Over/Under VAT Rounding,68350
http://statistics.data.gov.uk/id/local-authority/12UE,Huntingdonshire District Council,200363,Drax Energy Solutions Limited Drax Energy Solutions Limited,70206,07/09/2022,IN1106348836,OLSIO Aug22,29/09/2022,-0.02,0,-0.02,Finance,Over/Under VAT Rounding,68350
http://statistics.data.gov.uk/id/local-authority/12UE,Huntingdonshire District Council,200363,Drax Energy Solutions Limited Drax Energy Solutions Limited,70207,07/09/2022,IN1106348838,OLSI Aug22,29/09/2022,-0.01,0,-0.01,Finance,Over/Under VAT Rounding,68350
http://statistics.data.gov.uk/id/local-authority/12UE,Huntingdonshire District Council,200363,Drax Energy Solutions Limited Drax Energy Solutions Limited,70209,07/09/2022,IN1106348831,OLSN Aug22,29/09/2022,-0.01,0,-0.01,Finance,Over/Under VAT Rounding,68350
http://statistics.data.gov.uk/id/local-authority/12UE,Huntingdonshire District Council,200250,DTS SOLUTIONS (UK) LTD DTS SOLUTIONS (UK) LTD,69154,30/08/2022,S009807,Pax Pits Radio License,22/09/2022,128.8,644,772.8,Paxton Pits,Licences,60410
http://statistics.data.gov.uk/id/local-authority/12UE,Huntingdonshire District Council,201453,E RAND AND SONS,69526,30/06/2022,57579,PFH Generator Load Test & Service,29/09/2022,78,390,468,3CICT NON STAFF HOLDING ACCOUNT,Maintenance - Building,60201
http://statistics.data.gov.uk/id/local-authority/12UE,Huntingdonshire District Council,201453,E RAND AND SONS,70093,26/09/2022,748391,Returned BACS Payment,12/09/2022,0,468,468,Paymaster Account,Paymaster Account,10082
http://statistics.data.gov.uk/id/local-authority/12UE,Huntingdonshire District Council,201218,Earith Parish Council,69732,15/09/2022,PARISH PRECEPT SEP 22,Parish Precept - September 2022,22/09/2022,0,31500,31500,P C Precept Earith,Precepts,66301
http://statistics.data.gov.uk/id/local-authority/12UE,Huntingdonshire District Council,200255,EAST OF ENGLAND LGA EAST OF ENGLAND LGA,66754,13/06/2022,1002475,EELGA Subscription 22/23,07/07/2022,2001.41,10007.03,12008.44,Committee Management,Membership And Subscriptions,64800
http://statistics.data.gov.uk/id/local-authority/12UE,Huntingdonshire District Council,200255,EAST OF ENGLAND LGA EAST OF ENGLAND LGA,69441,30/08/2022,1002672,Pension Liability - 22/23 Contribution,22/09/2022,0,2000,2000,Managing Directors Team,Membership And Subscriptions,64800
http://statistics.data.gov.uk/id/local-authority/12UE,Huntingdonshire District Council,200255,EAST OF ENGLAND LGA EAST OF ENGLAND LGA,65846,13/06/2022,1002514,Staff Recruitment Cost,07/07/2022,225,1125,1350,Corporate Director (Services),Staff Recruitment Costs,60116
http://statistics.data.gov.uk/id/local-authority/12UE,Huntingdonshire District Council,202236,EASTFIELD GUESTHOUSE LTD,67046,04/07/2022,HUN0195,TA - 27.06-03.07.22,11/07/2022,98,490,588,Homelessness,B&B Accommodation,64401
http://statistics.data.gov.uk/id/local-authority/12UE,Huntingdonshire District Council,202236,EASTFIELD GUESTHOUSE LTD,67046,04/07/2022,HUN0195,TA - 27.06-03.07.22,11/07/2022,98,490,588,Homelessness,B&B Accommodation,64401
http://statistics.data.gov.uk/id/local-authority/12UE,Huntingdonshire District Council,202236,EASTFIELD GUESTHOUSE LTD,67046,04/07/2022,HUN0195,TA - 27.06-03.07.22,11/07/2022,28,140,168,Homelessness,B&B Accommodation,64401
http://statistics.data.gov.uk/id/local-authority/12UE,Huntingdonshire District Council,202236,EASTFIELD GUESTHOUSE LTD,67046,04/07/2022,HUN0195,TA - 27.06-03.07.22,11/07/2022,42,210,252,Homelessness,B&B Accommodation,64401
http://statistics.data.gov.uk/id/local-authority/12UE,Huntingdonshire District Council,202236,EASTFIELD GUESTHOUSE LTD,67050,20/06/2022,HUN0191,TA- 13-19.06.22,11/07/2022,98,490,588,Homelessness,B&B Accommodation,64401
http://statistics.data.gov.uk/id/local-authority/12UE,Huntingdonshire District Council,202236,EASTFIELD GUESTHOUSE LTD,67050,20/06/2022,HUN0191,TA- 13-19.06.22,11/07/2022,28,140,168,Homelessness,B&B Accommodation,64401
http://statistics.data.gov.uk/id/local-authority/12UE,Huntingdonshire District Council,202236,EASTFIELD GUESTHOUSE LTD,67050,20/06/2022,HUN0191,TA- 13-19.06.22,11/07/2022,98,490,588,Homelessness,B&B Accommodation,64401
http://statistics.data.gov.uk/id/local-authority/12UE,Huntingdonshire District Council,202236,EASTFIELD GUESTHOUSE LTD,67152,04/07/2022,HUN0194,TA WE 030722,14/07/2022,117,585,702,Homelessness,B&B Accommodation,64401
http://statistics.data.gov.uk/id/local-authority/12UE,Huntingdonshire District Council,202236,EASTFIELD GUESTHOUSE LTD,67152,04/07/2022,HUN0194,TA WE 030722,14/07/2022,91,455,546,Homelessness,B&B Accommodation,64401
http://statistics.data.gov.uk/id/local-authority/12UE,Huntingdonshire District Council,202236,EASTFIELD GUESTHOUSE LTD,67152,04/07/2022,HUN0194,TA WE 030722,14/07/2022,91,455,546,Homelessness,B&B Accommodation,64401
http://statistics.data.gov.uk/id/local-authority/12UE,Huntingdonshire District Council,202236,EASTFIELD GUESTHOUSE LTD,67152,04/07/2022,HUN0194,TA WE 030722,14/07/2022,91,455,546,Homelessness,B&B Accommodation,64401
http://statistics.data.gov.uk/id/local-authority/12UE,Huntingdonshire District Council,202236,EASTFIELD GUESTHOUSE LTD,67152,04/07/2022,HUN0194,TA WE 030722,14/07/2022,91,455,546,Homelessness,B&B Accommodation,64401
http://statistics.data.gov.uk/id/local-authority/12UE,Huntingdonshire District Council,202236,EASTFIELD GUESTHOUSE LTD,67152,04/07/2022,HUN0194,TA WE 030722,14/07/2022,91,455,546,Homelessness,B&B Accommodation,64401
http://statistics.data.gov.uk/id/local-authority/12UE,Huntingdonshire District Council,202236,EASTFIELD GUESTHOUSE LTD,67152,04/07/2022,HUN0194,TA WE 030722,14/07/2022,91,455,546,Homelessness,B&B Accommodation,64401
http://statistics.data.gov.uk/id/local-authority/12UE,Huntingdonshire District Council,202236,EASTFIELD GUESTHOUSE LTD,67152,04/07/2022,HUN0194,TA WE 030722,14/07/2022,91,455,546,Homelessness,B&B Accommodation,64401
http://statistics.data.gov.uk/id/local-authority/12UE,Huntingdonshire District Council,202236,EASTFIELD GUESTHOUSE LTD,67152,04/07/2022,HUN0194,TA WE 030722,14/07/2022,91,455,546,Homelessness,B&B Accommodation,64401
http://statistics.data.gov.uk/id/local-authority/12UE,Huntingdonshire District Council,202236,EASTFIELD GUESTHOUSE LTD,67152,04/07/2022,HUN0194,TA WE 030722,14/07/2022,91,455,546,Homelessness,B&B Accommodation,64401
http://statistics.data.gov.uk/id/local-authority/12UE,Huntingdonshire District Council,202236,EASTFIELD GUESTHOUSE LTD,67152,04/07/2022,HUN0194,TA WE 030722,14/07/2022,91,455,546,Homelessness,B&B Accommodation,64401
http://statistics.data.gov.uk/id/local-authority/12UE,Huntingdonshire District Council,202236,EASTFIELD GUESTHOUSE LTD,67152,04/07/2022,HUN0194,TA WE 030722,14/07/2022,91,455,546,Homelessness,B&B Accommodation,64401
http://statistics.data.gov.uk/id/local-authority/12UE,Huntingdonshire District Council,202236,EASTFIELD GUESTHOUSE LTD,67152,04/07/2022,HUN0194,TA WE 030722,14/07/2022,52,260,312,Homelessness,B&B Accommodation,64401
http://statistics.data.gov.uk/id/local-authority/12UE,Huntingdonshire District Council,202236,EASTFIELD GUESTHOUSE LTD,67152,04/07/2022,HUN0194,TA WE 030722,14/07/2022,13,65,78,Homelessness,B&B Accommodation,64401
http://statistics.data.gov.uk/id/local-authority/12UE,Huntingdonshire District Council,202236,EASTFIELD GUESTHOUSE LTD,67390,11/07/2022,HUN0197,TA - 04-10.07.22,18/07/2022,98,490,588,Homelessness,B&B Accommodation,64401
http://statistics.data.gov.uk/id/local-authority/12UE,Huntingdonshire District Council,202236,EASTFIELD GUESTHOUSE LTD,67390,11/07/2022,HUN0197,TA - 04-10.07.22,18/07/2022,98,490,588,Homelessness,B&B Accommodation,64401
http://statistics.data.gov.uk/id/local-authority/12UE,Huntingdonshire District Council,202236,EASTFIELD GUESTHOUSE LTD,67729,18/07/2022,HUN0199,TA - 11-17.07.22,28/07/2022,42,210,252,Homelessness,B&B Accommodation,64401
http://statistics.data.gov.uk/id/local-authority/12UE,Huntingdonshire District Council,202236,EASTFIELD GUESTHOUSE LTD,67729,18/07/2022,HUN0199,TA - 11-17.07.22,28/07/2022,98,490,588,Homelessness,B&B Accommodation,64401
http://statistics.data.gov.uk/id/local-authority/12UE,Huntingdonshire District Council,202236,EASTFIELD GUESTHOUSE LTD,67729,18/07/2022,HUN0199,TA - 11-17.07.22,28/07/2022,56,280,336,Homelessness,B&B Accommodation,64401
http://statistics.data.gov.uk/id/local-authority/12UE,Huntingdonshire District Council,202236,EASTFIELD GUESTHOUSE LTD,67854,25/07/2022,HUN0201,TA - 18-24.07.22,01/08/2022,28,140,168,Homelessness,B&B Accommodation,64401
http://statistics.data.gov.uk/id/local-authority/12UE,Huntingdonshire District Council,202236,EASTFIELD GUESTHOUSE LTD,67854,25/07/2022,HUN0201,TA - 18-24.07.22,01/08/2022,98,490,588,Homelessness,B&B Accommodation,64401
http://statistics.data.gov.uk/id/local-authority/12UE,Huntingdonshire District Council,202236,EASTFIELD GUESTHOUSE LTD,67854,25/07/2022,HUN0201,TA - 18-24.07.22,01/08/2022,14,70,84,Homelessness,B&B Accommodation,64401
http://statistics.data.gov.uk/id/local-authority/12UE,Huntingdonshire District Council,202236,EASTFIELD GUESTHOUSE LTD,67860,18/07/2022,HUN0198,Nags Head TA- 11-17.07.22,01/08/2022,169,845,1014,Homelessness,B&B Accommodation,64401
http://statistics.data.gov.uk/id/local-authority/12UE,Huntingdonshire District Council,202236,EASTFIELD GUESTHOUSE LTD,67860,18/07/2022,HUN0198,Nags Head TA- 11-17.07.22,01/08/2022,91,455,546,Homelessness,B&B Accommodation,64401
http://statistics.data.gov.uk/id/local-authority/12UE,Huntingdonshire District Council,202236,EASTFIELD GUESTHOUSE LTD,67860,18/07/2022,HUN0198,Nags Head TA- 11-17.07.22,01/08/2022,91,455,546,Homelessness,B&B Accommodation,64401
http://statistics.data.gov.uk/id/local-authority/12UE,Huntingdonshire District Council,202236,EASTFIELD GUESTHOUSE LTD,67860,18/07/2022,HUN0198,Nags Head TA- 11-17.07.22,01/08/2022,39,195,234,Homelessness,B&B Accommodation,64401
http://statistics.data.gov.uk/id/local-authority/12UE,Huntingdonshire District Council,202236,EASTFIELD GUESTHOUSE LTD,67860,18/07/2022,HUN0198,Nags Head TA- 11-17.07.22,01/08/2022,91,455,546,Homelessness,B&B Accommodation,64401
http://statistics.data.gov.uk/id/local-authority/12UE,Huntingdonshire District Council,202236,EASTFIELD GUESTHOUSE LTD,67860,18/07/2022,HUN0198,Nags Head TA- 11-17.07.22,01/08/2022,52,260,312,Homelessness,B&B Accommodation,64401
http://statistics.data.gov.uk/id/local-authority/12UE,Huntingdonshire District Council,202236,EASTFIELD GUESTHOUSE LTD,67860,18/07/2022,HUN0198,Nags Head TA- 11-17.07.22,01/08/2022,91,455,546,Homelessness,B&B Accommodation,64401
http://statistics.data.gov.uk/id/local-authority/12UE,Huntingdonshire District Council,202236,EASTFIELD GUESTHOUSE LTD,67860,18/07/2022,HUN0198,Nags Head TA- 11-17.07.22,01/08/2022,91,455,546,Homelessness,B&B Accommodation,64401
http://statistics.data.gov.uk/id/local-authority/12UE,Huntingdonshire District Council,202236,EASTFIELD GUESTHOUSE LTD,67860,18/07/2022,HUN0198,Nags Head TA- 11-17.07.22,01/08/2022,91,455,546,Homelessness,B&B Accommodation,64401
http://statistics.data.gov.uk/id/local-authority/12UE,Huntingdonshire District Council,202236,EASTFIELD GUESTHOUSE LTD,67860,18/07/2022,HUN0198,Nags Head TA- 11-17.07.22,01/08/2022,91,455,546,Homelessness,B&B Accommodation,64401
http://statistics.data.gov.uk/id/local-authority/12UE,Huntingdonshire District Council,202236,EASTFIELD GUESTHOUSE LTD,67860,18/07/2022,HUN0198,Nags Head TA- 11-17.07.22,01/08/2022,91,455,546,Homelessness,B&B Accommodation,64401
http://statistics.data.gov.uk/id/local-authority/12UE,Huntingdonshire District Council,202236,EASTFIELD GUESTHOUSE LTD,67860,18/07/2022,HUN0198,Nags Head TA- 11-17.07.22,01/08/2022,13,65,78,Homelessness,B&B Accommodation,64401
http://statistics.data.gov.uk/id/local-authority/12UE,Huntingdonshire District Council,202236,EASTFIELD GUESTHOUSE LTD,67860,18/07/2022,HUN0198,Nags Head TA- 11-17.07.22,01/08/2022,91,455,546,Homelessness,B&B Accommodation,64401
http://statistics.data.gov.uk/id/local-authority/12UE,Huntingdonshire District Council,202236,EASTFIELD GUESTHOUSE LTD,67860,18/07/2022,HUN0198,Nags Head TA- 11-17.07.22,01/08/2022,91,455,546,Homelessness,B&B Accommodation,64401
http://statistics.data.gov.uk/id/local-authority/12UE,Huntingdonshire District Council,202236,EASTFIELD GUESTHOUSE LTD,67920,25/07/2022,HUN0200,Nags Head TA- 18-24.07.22,01/08/2022,182,910,1092,Homelessness,B&B Accommodation,64401
http://statistics.data.gov.uk/id/local-authority/12UE,Huntingdonshire District Council,202236,EASTFIELD GUESTHOUSE LTD,67920,25/07/2022,HUN0200,Nags Head TA- 18-24.07.22,01/08/2022,91,455,546,Homelessness,B&B Accommodation,64401
http://statistics.data.gov.uk/id/local-authority/12UE,Huntingdonshire District Council,202236,EASTFIELD GUESTHOUSE LTD,67920,25/07/2022,HUN0200,Nags Head TA- 18-24.07.22,01/08/2022,91,455,546,Homelessness,B&B Accommodation,64401
http://statistics.data.gov.uk/id/local-authority/12UE,Huntingdonshire District Council,202236,EASTFIELD GUESTHOUSE LTD,67920,25/07/2022,HUN0200,Nags Head TA- 18-24.07.22,01/08/2022,91,455,546,Homelessness,B&B Accommodation,64401
http://statistics.data.gov.uk/id/local-authority/12UE,Huntingdonshire District Council,202236,EASTFIELD GUESTHOUSE LTD,67920,25/07/2022,HUN0200,Nags Head TA- 18-24.07.22,01/08/2022,91,455,546,Homelessness,B&B Accommodation,64401
http://statistics.data.gov.uk/id/local-authority/12UE,Huntingdonshire District Council,202236,EASTFIELD GUESTHOUSE LTD,67920,25/07/2022,HUN0200,Nags Head TA- 18-24.07.22,01/08/2022,91,455,546,Homelessness,B&B Accommodation,64401
http://statistics.data.gov.uk/id/local-authority/12UE,Huntingdonshire District Council,202236,EASTFIELD GUESTHOUSE LTD,67920,25/07/2022,HUN0200,Nags Head TA- 18-24.07.22,01/08/2022,13,65,78,Homelessness,B&B Accommodation,64401
http://statistics.data.gov.uk/id/local-authority/12UE,Huntingdonshire District Council,202236,EASTFIELD GUESTHOUSE LTD,67920,25/07/2022,HUN0200,Nags Head TA- 18-24.07.22,01/08/2022,91,455,546,Homelessness,B&B Accommodation,64401
http://statistics.data.gov.uk/id/local-authority/12UE,Huntingdonshire District Council,202236,EASTFIELD GUESTHOUSE LTD,67920,25/07/2022,HUN0200,Nags Head TA- 18-24.07.22,01/08/2022,91,455,546,Homelessness,B&B Accommodation,64401
http://statistics.data.gov.uk/id/local-authority/12UE,Huntingdonshire District Council,202236,EASTFIELD GUESTHOUSE LTD,67920,25/07/2022,HUN0200,Nags Head TA- 18-24.07.22,01/08/2022,26,130,156,Homelessness,B&B Accommodation,64401
http://statistics.data.gov.uk/id/local-authority/12UE,Huntingdonshire District Council,202236,EASTFIELD GUESTHOUSE LTD,67920,25/07/2022,HUN0200,Nags Head TA- 18-24.07.22,01/08/2022,91,455,546,Homelessness,B&B Accommodation,64401
http://statistics.data.gov.uk/id/local-authority/12UE,Huntingdonshire District Council,202236,EASTFIELD GUESTHOUSE LTD,67920,25/07/2022,HUN0200,Nags Head TA- 18-24.07.22,01/08/2022,91,455,546,Homelessness,B&B Accommodation,64401
http://statistics.data.gov.uk/id/local-authority/12UE,Huntingdonshire District Council,202236,EASTFIELD GUESTHOUSE LTD,67920,25/07/2022,HUN0200,Nags Head TA- 18-24.07.22,01/08/2022,39,195,234,Homelessness,B&B Accommodation,64401
http://statistics.data.gov.uk/id/local-authority/12UE,Huntingdonshire District Council,202236,EASTFIELD GUESTHOUSE LTD,67920,25/07/2022,HUN0200,Nags Head TA- 18-24.07.22,01/08/2022,78,390,468,Homelessness,B&B Accommodation,64401
http://statistics.data.gov.uk/id/local-authority/12UE,Huntingdonshire District Council,202236,EASTFIELD GUESTHOUSE LTD,67920,25/07/2022,HUN0200,Nags Head TA- 18-24.07.22,01/08/2022,26,130,156,Homelessness,B&B Accommodation,64401
http://statistics.data.gov.uk/id/local-authority/12UE,Huntingdonshire District Council,202236,EASTFIELD GUESTHOUSE LTD,67969,11/07/2022,HUN0196,Nags Head TA- 04-10.07.22,01/08/2022,104,520,624,Homelessness,B&B Accommodation,64401
http://statistics.data.gov.uk/id/local-authority/12UE,Huntingdonshire District Council,202236,EASTFIELD GUESTHOUSE LTD,67969,11/07/2022,HUN0196,Nags Head TA- 04-10.07.22,01/08/2022,91,455,546,Homelessness,B&B Accommodation,64401
http://statistics.data.gov.uk/id/local-authority/12UE,Huntingdonshire District Council,202236,EASTFIELD GUESTHOUSE LTD,67969,11/07/2022,HUN0196,Nags Head TA- 04-10.07.22,01/08/2022,91,455,546,Homelessness,B&B Accommodation,64401
http://statistics.data.gov.uk/id/local-authority/12UE,Huntingdonshire District Council,202236,EASTFIELD GUESTHOUSE LTD,67969,11/07/2022,HUN0196,Nags Head TA- 04-10.07.22,01/08/2022,91,455,546,Homelessness,B&B Accommodation,64401
http://statistics.data.gov.uk/id/local-authority/12UE,Huntingdonshire District Council,202236,EASTFIELD GUESTHOUSE LTD,67969,11/07/2022,HUN0196,Nags Head TA- 04-10.07.22,01/08/2022,91,455,546,Homelessness,B&B Accommodation,64401
http://statistics.data.gov.uk/id/local-authority/12UE,Huntingdonshire District Council,202236,EASTFIELD GUESTHOUSE LTD,67969,11/07/2022,HUN0196,Nags Head TA- 04-10.07.22,01/08/2022,91,455,546,Homelessness,B&B Accommodation,64401
http://statistics.data.gov.uk/id/local-authority/12UE,Huntingdonshire District Council,202236,EASTFIELD GUESTHOUSE LTD,67969,11/07/2022,HUN0196,Nags Head TA- 04-10.07.22,01/08/2022,91,455,546,Homelessness,B&B Accommodation,64401
http://statistics.data.gov.uk/id/local-authority/12UE,Huntingdonshire District Council,202236,EASTFIELD GUESTHOUSE LTD,67969,11/07/2022,HUN0196,Nags Head TA- 04-10.07.22,01/08/2022,91,455,546,Homelessness,B&B Accommodation,64401
http://statistics.data.gov.uk/id/local-authority/12UE,Huntingdonshire District Council,202236,EASTFIELD GUESTHOUSE LTD,67969,11/07/2022,HUN0196,Nags Head TA- 04-10.07.22,01/08/2022,91,455,546,Homelessness,B&B Accommodation,64401
http://statistics.data.gov.uk/id/local-authority/12UE,Huntingdonshire District Council,202236,EASTFIELD GUESTHOUSE LTD,67969,11/07/2022,HUN0196,Nags Head TA- 04-10.07.22,01/08/2022,91,455,546,Homelessness,B&B Accommodation,64401
http://statistics.data.gov.uk/id/local-authority/12UE,Huntingdonshire District Council,202236,EASTFIELD GUESTHOUSE LTD,67969,11/07/2022,HUN0196,Nags Head TA- 04-10.07.22,01/08/2022,91,455,546,Homelessness,B&B Accommodation,64401
http://statistics.data.gov.uk/id/local-authority/12UE,Huntingdonshire District Council,202236,EASTFIELD GUESTHOUSE LTD,67969,11/07/2022,HUN0196,Nags Head TA- 04-10.07.22,01/08/2022,13,65,78,Homelessness,B&B Accommodation,64401
http://statistics.data.gov.uk/id/local-authority/12UE,Huntingdonshire District Council,202236,EASTFIELD GUESTHOUSE LTD,67969,11/07/2022,HUN0196,Nags Head TA- 04-10.07.22,01/08/2022,52,260,312,Homelessness,B&B Accommodation,64401
http://statistics.data.gov.uk/id/local-authority/12UE,Huntingdonshire District Council,202236,EASTFIELD GUESTHOUSE LTD,67969,11/07/2022,HUN0196,Nags Head TA- 04-10.07.22,01/08/2022,39,195,234,Homelessness,B&B Accommodation,64401
http://statistics.data.gov.uk/id/local-authority/12UE,Huntingdonshire District Council,202236,EASTFIELD GUESTHOUSE LTD,67969,11/07/2022,HUN0196,Nags Head TA- 04-10.07.22,01/08/2022,65,325,390,Homelessness,B&B Accommodation,64401
http://statistics.data.gov.uk/id/local-authority/12UE,Huntingdonshire District Council,202236,EASTFIELD GUESTHOUSE LTD,68184,01/08/2022,HUN0202,Nags Head TA- 25-31.07.22,04/08/2022,143,715,858,Homelessness,B&B Accommodation,64401
http://statistics.data.gov.uk/id/local-authority/12UE,Huntingdonshire District Council,202236,EASTFIELD GUESTHOUSE LTD,68184,01/08/2022,HUN0202,Nags Head TA- 25-31.07.22,04/08/2022,91,455,546,Homelessness,B&B Accommodation,64401
http://statistics.data.gov.uk/id/local-authority/12UE,Huntingdonshire District Council,202236,EASTFIELD GUESTHOUSE LTD,68184,01/08/2022,HUN0202,Nags Head TA- 25-31.07.22,04/08/2022,91,455,546,Homelessness,B&B Accommodation,64401
http://statistics.data.gov.uk/id/local-authority/12UE,Huntingdonshire District Council,202236,EASTFIELD GUESTHOUSE LTD,68184,01/08/2022,HUN0202,Nags Head TA- 25-31.07.22,04/08/2022,91,455,546,Homelessness,B&B Accommodation,64401
http://statistics.data.gov.uk/id/local-authority/12UE,Huntingdonshire District Council,202236,EASTFIELD GUESTHOUSE LTD,68184,01/08/2022,HUN0202,Nags Head TA- 25-31.07.22,04/08/2022,91,455,546,Homelessness,B&B Accommodation,64401
http://statistics.data.gov.uk/id/local-authority/12UE,Huntingdonshire District Council,202236,EASTFIELD GUESTHOUSE LTD,68184,01/08/2022,HUN0202,Nags Head TA- 25-31.07.22,04/08/2022,52,260,312,Homelessness,B&B Accommodation,64401
http://statistics.data.gov.uk/id/local-authority/12UE,Huntingdonshire District Council,202236,EASTFIELD GUESTHOUSE LTD,68184,01/08/2022,HUN0202,Nags Head TA- 25-31.07.22,04/08/2022,91,455,546,Homelessness,B&B Accommodation,64401
http://statistics.data.gov.uk/id/local-authority/12UE,Huntingdonshire District Council,202236,EASTFIELD GUESTHOUSE LTD,68184,01/08/2022,HUN0202,Nags Head TA- 25-31.07.22,04/08/2022,91,455,546,Homelessness,B&B Accommodation,64401
http://statistics.data.gov.uk/id/local-authority/12UE,Huntingdonshire District Council,202236,EASTFIELD GUESTHOUSE LTD,68184,01/08/2022,HUN0202,Nags Head TA- 25-31.07.22,04/08/2022,91,455,546,Homelessness,B&B Accommodation,64401
http://statistics.data.gov.uk/id/local-authority/12UE,Huntingdonshire District Council,202236,EASTFIELD GUESTHOUSE LTD,68184,01/08/2022,HUN0202,Nags Head TA- 25-31.07.22,04/08/2022,91,455,546,Homelessness,B&B Accommodation,64401
http://statistics.data.gov.uk/id/local-authority/12UE,Huntingdonshire District Council,202236,EASTFIELD GUESTHOUSE LTD,68184,01/08/2022,HUN0202,Nags Head TA- 25-31.07.22,04/08/2022,91,455,546,Homelessness,B&B Accommodation,64401
http://statistics.data.gov.uk/id/local-authority/12UE,Huntingdonshire District Council,202236,EASTFIELD GUESTHOUSE LTD,68184,01/08/2022,HUN0202,Nags Head TA- 25-31.07.22,04/08/2022,52,260,312,Homelessness,B&B Accommodation,64401
http://statistics.data.gov.uk/id/local-authority/12UE,Huntingdonshire District Council,202236,EASTFIELD GUESTHOUSE LTD,68184,01/08/2022,HUN0202,Nags Head TA- 25-31.07.22,04/08/2022,78,390,468,Homelessness,B&B Accommodation,64401
http://statistics.data.gov.uk/id/local-authority/12UE,Huntingdonshire District Council,202236,EASTFIELD GUESTHOUSE LTD,68184,01/08/2022,HUN0202,Nags Head TA- 25-31.07.22,04/08/2022,39,195,234,Homelessness,B&B Accommodation,64401
http://statistics.data.gov.uk/id/local-authority/12UE,Huntingdonshire District Council,202236,EASTFIELD GUESTHOUSE LTD,68390,08/08/2022,HUN0205,TA- 01-07.08.22,11/08/2022,98,490,588,Homelessness,B&B Accommodation,64401
http://statistics.data.gov.uk/id/local-authority/12UE,Huntingdonshire District Council,202236,EASTFIELD GUESTHOUSE LTD,68390,08/08/2022,HUN0205,TA- 01-07.08.22,11/08/2022,84,420,504,Homelessness,B&B Accommodation,64401
http://statistics.data.gov.uk/id/local-authority/12UE,Huntingdonshire District Council,202236,EASTFIELD GUESTHOUSE LTD,68410,08/08/2022,HUN0204,Nags Head TA- 01-07.08.22,11/08/2022,182,910,1092,Homelessness,B&B Accommodation,64401
http://statistics.data.gov.uk/id/local-authority/12UE,Huntingdonshire District Council,202236,EASTFIELD GUESTHOUSE LTD,68410,08/08/2022,HUN0204,Nags Head TA- 01-07.08.22,11/08/2022,91,455,546,Homelessness,B&B Accommodation,64401
http://statistics.data.gov.uk/id/local-authority/12UE,Huntingdonshire District Council,202236,EASTFIELD GUESTHOUSE LTD,68410,08/08/2022,HUN0204,Nags Head TA- 01-07.08.22,11/08/2022,91,455,546,Homelessness,B&B Accommodation,64401
http://statistics.data.gov.uk/id/local-authority/12UE,Huntingdonshire District Council,202236,EASTFIELD GUESTHOUSE LTD,68410,08/08/2022,HUN0204,Nags Head TA- 01-07.08.22,11/08/2022,91,455,546,Homelessness,B&B Accommodation,64401
http://statistics.data.gov.uk/id/local-authority/12UE,Huntingdonshire District Council,202236,EASTFIELD GUESTHOUSE LTD,68410,08/08/2022,HUN0204,Nags Head TA- 01-07.08.22,11/08/2022,91,455,546,Homelessness,B&B Accommodation,64401
http://statistics.data.gov.uk/id/local-authority/12UE,Huntingdonshire District Council,202236,EASTFIELD GUESTHOUSE LTD,68410,08/08/2022,HUN0204,Nags Head TA- 01-07.08.22,11/08/2022,91,455,546,Homelessness,B&B Accommodation,64401
http://statistics.data.gov.uk/id/local-authority/12UE,Huntingdonshire District Council,202236,EASTFIELD GUESTHOUSE LTD,68410,08/08/2022,HUN0204,Nags Head TA- 01-07.08.22,11/08/2022,91,455,546,Homelessness,B&B Accommodation,64401
http://statistics.data.gov.uk/id/local-authority/12UE,Huntingdonshire District Council,202236,EASTFIELD GUESTHOUSE LTD,68410,08/08/2022,HUN0204,Nags Head TA- 01-07.08.22,11/08/2022,91,455,546,Homelessness,B&B Accommodation,64401
http://statistics.data.gov.uk/id/local-authority/12UE,Huntingdonshire District Council,202236,EASTFIELD GUESTHOUSE LTD,68410,08/08/2022,HUN0204,Nags Head TA- 01-07.08.22,11/08/2022,91,455,546,Homelessness,B&B Accommodation,64401
http://statistics.data.gov.uk/id/local-authority/12UE,Huntingdonshire District Council,202236,EASTFIELD GUESTHOUSE LTD,68410,08/08/2022,HUN0204,Nags Head TA- 01-07.08.22,11/08/2022,91,455,546,Homelessness,B&B Accommodation,64401
http://statistics.data.gov.uk/id/local-authority/12UE,Huntingdonshire District Council,202236,EASTFIELD GUESTHOUSE LTD,68410,08/08/2022,HUN0204,Nags Head TA- 01-07.08.22,11/08/2022,91,455,546,Homelessness,B&B Accommodation,64401
http://statistics.data.gov.uk/id/local-authority/12UE,Huntingdonshire District Council,202236,EASTFIELD GUESTHOUSE LTD,68410,08/08/2022,HUN0204,Nags Head TA- 01-07.08.22,11/08/2022,91,455,546,Homelessness,B&B Accommodation,64401
http://statistics.data.gov.uk/id/local-authority/12UE,Huntingdonshire District Council,202236,EASTFIELD GUESTHOUSE LTD,68693,15/08/2022,HUN0207,TA WE 140822,22/08/2022,98,490,588,Homelessness,B&B Accommodation,64401
http://statistics.data.gov.uk/id/local-authority/12UE,Huntingdonshire District Council,202236,EASTFIELD GUESTHOUSE LTD,69022,01/08/2022,HUN0203,TA- 25-31.07.22,01/09/2022,98,490,588,Homelessness,B&B Accommodation,64401
http://statistics.data.gov.uk/id/local-authority/12UE,Huntingdonshire District Council,202236,EASTFIELD GUESTHOUSE LTD,69022,01/08/2022,HUN0203,TA- 25-31.07.22,01/09/2022,98,490,588,Homelessness,B&B Accommodation,64401
http://statistics.data.gov.uk/id/local-authority/12UE,Huntingdonshire District Council,202236,EASTFIELD GUESTHOUSE LTD,69063,29/08/2022,HUN0210,Nags Head TA- 22-28.08.22,01/09/2022,286,1430,1716,Homelessness,B&B Accommodation,64401
http://statistics.data.gov.uk/id/local-authority/12UE,Huntingdonshire District Council,202236,EASTFIELD GUESTHOUSE LTD,69063,29/08/2022,HUN0210,Nags Head TA- 22-28.08.22,01/09/2022,91,455,546,Homelessness,B&B Accommodation,64401
http://statistics.data.gov.uk/id/local-authority/12UE,Huntingdonshire District Council,202236,EASTFIELD GUESTHOUSE LTD,69063,29/08/2022,HUN0210,Nags Head TA- 22-28.08.22,01/09/2022,91,455,546,Homelessness,B&B Accommodation,64401
http://statistics.data.gov.uk/id/local-authority/12UE,Huntingdonshire District Council,202236,EASTFIELD GUESTHOUSE LTD,69063,29/08/2022,HUN0210,Nags Head TA- 22-28.08.22,01/09/2022,91,455,546,Homelessness,B&B Accommodation,64401
http://statistics.data.gov.uk/id/local-authority/12UE,Huntingdonshire District Council,202236,EASTFIELD GUESTHOUSE LTD,69063,29/08/2022,HUN0210,Nags Head TA- 22-28.08.22,01/09/2022,91,455,546,Homelessness,B&B Accommodation,64401
http://statistics.data.gov.uk/id/local-authority/12UE,Huntingdonshire District Council,202236,EASTFIELD GUESTHOUSE LTD,69063,29/08/2022,HUN0210,Nags Head TA- 22-28.08.22,01/09/2022,91,455,546,Homelessness,B&B Accommodation,64401
http://statistics.data.gov.uk/id/local-authority/12UE,Huntingdonshire District Council,202236,EASTFIELD GUESTHOUSE LTD,69063,29/08/2022,HUN0210,Nags Head TA- 22-28.08.22,01/09/2022,91,455,546,Homelessness,B&B Accommodation,64401
http://statistics.data.gov.uk/id/local-authority/12UE,Huntingdonshire District Council,202236,EASTFIELD GUESTHOUSE LTD,69063,29/08/2022,HUN0210,Nags Head TA- 22-28.08.22,01/09/2022,13,65,78,Homelessness,B&B Accommodation,64401
http://statistics.data.gov.uk/id/local-authority/12UE,Huntingdonshire District Council,202236,EASTFIELD GUESTHOUSE LTD,69063,29/08/2022,HUN0210,Nags Head TA- 22-28.08.22,01/09/2022,91,455,546,Homelessness,B&B Accommodation,64401
http://statistics.data.gov.uk/id/local-authority/12UE,Huntingdonshire District Council,202236,EASTFIELD GUESTHOUSE LTD,69063,29/08/2022,HUN0210,Nags Head TA- 22-28.08.22,01/09/2022,91,455,546,Homelessness,B&B Accommodation,64401
http://statistics.data.gov.uk/id/local-authority/12UE,Huntingdonshire District Council,202236,EASTFIELD GUESTHOUSE LTD,69063,29/08/2022,HUN0210,Nags Head TA- 22-28.08.22,01/09/2022,91,455,546,Homelessness,B&B Accommodation,64401
http://statistics.data.gov.uk/id/local-authority/12UE,Huntingdonshire District Council,202236,EASTFIELD GUESTHOUSE LTD,69063,29/08/2022,HUN0210,Nags Head TA- 22-28.08.22,01/09/2022,65,325,390,Homelessness,B&B Accommodation,64401
http://statistics.data.gov.uk/id/local-authority/12UE,Huntingdonshire District Council,202236,EASTFIELD GUESTHOUSE LTD,69353,04/09/2022,HUN0212,Nags Head TA - 29.08-04.09.22,08/09/2022,273,1365,1638,Homelessness,B&B Accommodation,64401
http://statistics.data.gov.uk/id/local-authority/12UE,Huntingdonshire District Council,202236,EASTFIELD GUESTHOUSE LTD,69353,04/09/2022,HUN0212,Nags Head TA - 29.08-04.09.22,08/09/2022,91,455,546,Homelessness,B&B Accommodation,64401
http://statistics.data.gov.uk/id/local-authority/12UE,Huntingdonshire District Council,202236,EASTFIELD GUESTHOUSE LTD,69353,04/09/2022,HUN0212,Nags Head TA - 29.08-04.09.22,08/09/2022,91,455,546,Homelessness,B&B Accommodation,64401
http://statistics.data.gov.uk/id/local-authority/12UE,Huntingdonshire District Council,202236,EASTFIELD GUESTHOUSE LTD,69353,04/09/2022,HUN0212,Nags Head TA - 29.08-04.09.22,08/09/2022,91,455,546,Homelessness,B&B Accommodation,64401
http://statistics.data.gov.uk/id/local-authority/12UE,Huntingdonshire District Council,202236,EASTFIELD GUESTHOUSE LTD,69353,04/09/2022,HUN0212,Nags Head TA - 29.08-04.09.22,08/09/2022,91,455,546,Homelessness,B&B Accommodation,64401
http://statistics.data.gov.uk/id/local-authority/12UE,Huntingdonshire District Council,202236,EASTFIELD GUESTHOUSE LTD,69353,04/09/2022,HUN0212,Nags Head TA - 29.08-04.09.22,08/09/2022,91,455,546,Homelessness,B&B Accommodation,64401
http://statistics.data.gov.uk/id/local-authority/12UE,Huntingdonshire District Council,202236,EASTFIELD GUESTHOUSE LTD,69353,04/09/2022,HUN0212,Nags Head TA - 29.08-04.09.22,08/09/2022,91,455,546,Homelessness,B&B Accommodation,64401
http://statistics.data.gov.uk/id/local-authority/12UE,Huntingdonshire District Council,202236,EASTFIELD GUESTHOUSE LTD,69353,04/09/2022,HUN0212,Nags Head TA - 29.08-04.09.22,08/09/2022,91,455,546,Homelessness,B&B Accommodation,64401
http://statistics.data.gov.uk/id/local-authority/12UE,Huntingdonshire District Council,202236,EASTFIELD GUESTHOUSE LTD,69353,04/09/2022,HUN0212,Nags Head TA - 29.08-04.09.22,08/09/2022,91,455,546,Homelessness,B&B Accommodation,64401
http://statistics.data.gov.uk/id/local-authority/12UE,Huntingdonshire District Council,202236,EASTFIELD GUESTHOUSE LTD,69353,04/09/2022,HUN0212,Nags Head TA - 29.08-04.09.22,08/09/2022,91,455,546,Homelessness,B&B Accommodation,64401
http://statistics.data.gov.uk/id/local-authority/12UE,Huntingdonshire District Council,202236,EASTFIELD GUESTHOUSE LTD,69353,04/09/2022,HUN0212,Nags Head TA - 29.08-04.09.22,08/09/2022,91,455,546,Homelessness,B&B Accommodation,64401
http://statistics.data.gov.uk/id/local-authority/12UE,Huntingdonshire District Council,202236,EASTFIELD GUESTHOUSE LTD,69893,12/09/2022,HUN0214,Nags Head TA - 05-11.09.22,22/09/2022,351,1755,2106,Homelessness,B&B Accommodation,64401
http://statistics.data.gov.uk/id/local-authority/12UE,Huntingdonshire District Council,202236,EASTFIELD GUESTHOUSE LTD,69893,12/09/2022,HUN0214,Nags Head TA - 05-11.09.22,22/09/2022,13,65,78,Homelessness,B&B Accommodation,64401
http://statistics.data.gov.uk/id/local-authority/12UE,Huntingdonshire District Council,202236,EASTFIELD GUESTHOUSE LTD,69893,12/09/2022,HUN0214,Nags Head TA - 05-11.09.22,22/09/2022,39,195,234,Homelessness,B&B Accommodation,64401
http://statistics.data.gov.uk/id/local-authority/12UE,Huntingdonshire District Council,202236,EASTFIELD GUESTHOUSE LTD,69893,12/09/2022,HUN0214,Nags Head TA - 05-11.09.22,22/09/2022,91,455,546,Homelessness,B&B Accommodation,64401
http://statistics.data.gov.uk/id/local-authority/12UE,Huntingdonshire District Council,202236,EASTFIELD GUESTHOUSE LTD,69893,12/09/2022,HUN0214,Nags Head TA - 05-11.09.22,22/09/2022,91,455,546,Homelessness,B&B Accommodation,64401
http://statistics.data.gov.uk/id/local-authority/12UE,Huntingdonshire District Council,202236,EASTFIELD GUESTHOUSE LTD,69893,12/09/2022,HUN0214,Nags Head TA - 05-11.09.22,22/09/2022,91,455,546,Homelessness,B&B Accommodation,64401
http://statistics.data.gov.uk/id/local-authority/12UE,Huntingdonshire District Council,202236,EASTFIELD GUESTHOUSE LTD,69893,12/09/2022,HUN0214,Nags Head TA - 05-11.09.22,22/09/2022,39,195,234,Homelessness,B&B Accommodation,64401
http://statistics.data.gov.uk/id/local-authority/12UE,Huntingdonshire District Council,202236,EASTFIELD GUESTHOUSE LTD,69893,12/09/2022,HUN0214,Nags Head TA - 05-11.09.22,22/09/2022,39,195,234,Homelessness,B&B Accommodation,64401
http://statistics.data.gov.uk/id/local-authority/12UE,Huntingdonshire District Council,202236,EASTFIELD GUESTHOUSE LTD,69893,12/09/2022,HUN0214,Nags Head TA - 05-11.09.22,22/09/2022,65,325,390,Homelessness,B&B Accommodation,64401
http://statistics.data.gov.uk/id/local-authority/12UE,Huntingdonshire District Council,202236,EASTFIELD GUESTHOUSE LTD,69893,12/09/2022,HUN0214,Nags Head TA - 05-11.09.22,22/09/2022,91,455,546,Homelessness,B&B Accommodation,64401
http://statistics.data.gov.uk/id/local-authority/12UE,Huntingdonshire District Council,202236,EASTFIELD GUESTHOUSE LTD,69893,12/09/2022,HUN0214,Nags Head TA - 05-11.09.22,22/09/2022,91,455,546,Homelessness,B&B Accommodation,64401
http://statistics.data.gov.uk/id/local-authority/12UE,Huntingdonshire District Council,202236,EASTFIELD GUESTHOUSE LTD,69893,12/09/2022,HUN0214,Nags Head TA - 05-11.09.22,22/09/2022,91,455,546,Homelessness,B&B Accommodation,64401
http://statistics.data.gov.uk/id/local-authority/12UE,Huntingdonshire District Council,202236,EASTFIELD GUESTHOUSE LTD,69893,12/09/2022,HUN0214,Nags Head TA - 05-11.09.22,22/09/2022,91,455,546,Homelessness,B&B Accommodation,64401
http://statistics.data.gov.uk/id/local-authority/12UE,Huntingdonshire District Council,202256,EASY CLEAN CONTRACTORS LTD,66871,30/06/2022,20081,Cleaning Contract Jun22,28/07/2022,289.81,1449.04,1738.85,Eastfield House,Cleaning Contract,60502
http://statistics.data.gov.uk/id/local-authority/12UE,Huntingdonshire District Council,202256,EASY CLEAN CONTRACTORS LTD,66871,30/06/2022,20081,Cleaning Contract Jun22,28/07/2022,114.48,572.38,686.86,H'Brooke Countryside Centre,Cleaning Contract,60502
http://statistics.data.gov.uk/id/local-authority/12UE,Huntingdonshire District Council,202256,EASY CLEAN CONTRACTORS LTD,66871,30/06/2022,20081,Cleaning Contract Jun22,28/07/2022,169.62,848.11,1017.73,Huntingdon Bus Station,Cleaning Contract,60502
http://statistics.data.gov.uk/id/local-authority/12UE,Huntingdonshire District Council,202256,EASY CLEAN CONTRACTORS LTD,66871,30/06/2022,20081,Cleaning Contract Jun22,28/07/2022,76.43,382.16,458.59,Parks & Open Spaces,Cleaning Contract,60502
http://statistics.data.gov.uk/id/local-authority/12UE,Huntingdonshire District Council,202256,EASY CLEAN CONTRACTORS LTD,66871,30/06/2022,20081,Cleaning Contract Jun22,28/07/2022,775.57,3877.84,4653.41,Pathfinder House,Cleaning Contract,60502
http://statistics.data.gov.uk/id/local-authority/12UE,Huntingdonshire District Council,202256,EASY CLEAN CONTRACTORS LTD,66871,30/06/2022,20081,Cleaning Contract Jun22,28/07/2022,25.07,125.36,150.43,St Ives Enterprise Centre,Cleaning Contract,60502
http://statistics.data.gov.uk/id/local-authority/12UE,Huntingdonshire District Council,202256,EASY CLEAN CONTRACTORS LTD,68060,31/07/2022,20208,Cleaning Various Sites Jul22,25/08/2022,289.81,1449.04,1738.85,Eastfield House,Cleaning Contract,60502
http://statistics.data.gov.uk/id/local-authority/12UE,Huntingdonshire District Council,202256,EASY CLEAN CONTRACTORS LTD,68060,31/07/2022,20208,Cleaning Various Sites Jul22,25/08/2022,114.48,572.38,686.86,H'Brooke Countryside Centre,Cleaning Contract,60502
http://statistics.data.gov.uk/id/local-authority/12UE,Huntingdonshire District Council,202256,EASY CLEAN CONTRACTORS LTD,68060,31/07/2022,20208,Cleaning Various Sites Jul22,25/08/2022,169.62,848.11,1017.73,Huntingdon Bus Station,Cleaning Contract,60502
http://statistics.data.gov.uk/id/local-authority/12UE,Huntingdonshire District Council,202256,EASY CLEAN CONTRACTORS LTD,68060,31/07/2022,20208,Cleaning Various Sites Jul22,25/08/2022,76.43,382.16,458.59,Parks & Open Spaces,Cleaning Contract,60502
http://statistics.data.gov.uk/id/local-authority/12UE,Huntingdonshire District Council,202256,EASY CLEAN CONTRACTORS LTD,68060,31/07/2022,20208,Cleaning Various Sites Jul22,25/08/2022,775.57,3877.84,4653.41,Pathfinder House,Cleaning Contract,60502
http://statistics.data.gov.uk/id/local-authority/12UE,Huntingdonshire District Council,202256,EASY CLEAN CONTRACTORS LTD,68060,31/07/2022,20208,Cleaning Various Sites Jul22,25/08/2022,25.07,125.36,150.43,St Ives Enterprise Centre,Cleaning Contract,60502
http://statistics.data.gov.uk/id/local-authority/12UE,Huntingdonshire District Council,202256,EASY CLEAN CONTRACTORS LTD,69184,31/08/2022,20348,Various Sites Cleaning 31.08.22,22/09/2022,289.81,1449.04,1738.85,Eastfield House,Cleaning Contract,60502
http://statistics.data.gov.uk/id/local-authority/12UE,Huntingdonshire District Council,202256,EASY CLEAN CONTRACTORS LTD,69184,31/08/2022,20348,Various Sites Cleaning 31.08.22,22/09/2022,114.48,572.38,686.86,H'Brooke Countryside Centre,Cleaning Contract,60502
http://statistics.data.gov.uk/id/local-authority/12UE,Huntingdonshire District Council,202256,EASY CLEAN CONTRACTORS LTD,69184,31/08/2022,20348,Various Sites Cleaning 31.08.22,22/09/2022,169.62,848.11,1017.73,Huntingdon Bus Station,Cleaning Contract,60502
http://statistics.data.gov.uk/id/local-authority/12UE,Huntingdonshire District Council,202256,EASY CLEAN CONTRACTORS LTD,69184,31/08/2022,20348,Various Sites Cleaning 31.08.22,22/09/2022,76.43,382.16,458.59,Parks & Open Spaces,Cleaning Contract,60502
http://statistics.data.gov.uk/id/local-authority/12UE,Huntingdonshire District Council,202256,EASY CLEAN CONTRACTORS LTD,69184,31/08/2022,20348,Various Sites Cleaning 31.08.22,22/09/2022,775.57,3877.84,4653.41,Pathfinder House,Cleaning Contract,60502
http://statistics.data.gov.uk/id/local-authority/12UE,Huntingdonshire District Council,202256,EASY CLEAN CONTRACTORS LTD,69184,31/08/2022,20348,Various Sites Cleaning 31.08.22,22/09/2022,25.07,125.36,150.43,St Ives Enterprise Centre,Cleaning Contract,60502
http://statistics.data.gov.uk/id/local-authority/12UE,Huntingdonshire District Council,202256,EASY CLEAN CONTRACTORS LTD,66872,30/06/2022,20082,PFH Cleaning Jun22,28/07/2022,495,2475,2970,Pathfinder House,Cleaning Services,60501
http://statistics.data.gov.uk/id/local-authority/12UE,Huntingdonshire District Council,202256,EASY CLEAN CONTRACTORS LTD,69186,31/08/2022,20349,PFH Additional Cleaning 31.08.22,22/09/2022,517.5,2587.5,3105,Pathfinder House,Cleaning Services,60501
http://statistics.data.gov.uk/id/local-authority/12UE,Huntingdonshire District Council,202256,EASY CLEAN CONTRACTORS LTD,69623,31/07/2022,20209,PFH Additional Cleaning 31.07.22,15/09/2022,472.5,2362.5,2835,Pathfinder House,Cleaning Services,60501
http://statistics.data.gov.uk/id/local-authority/12UE,Huntingdonshire District Council,201922,EDDISONS COMMERCIAL LTD,66081,15/06/2022,602021288,Resilience Planning Works 08.06.22,07/07/2022,200,1000,1200,Development Management,Agency Staff,60011
http://statistics.data.gov.uk/id/local-authority/12UE,Huntingdonshire District Council,201922,EDDISONS COMMERCIAL LTD,66774,24/06/2022,602052014,Resilience Planning Works 27.06.22,21/07/2022,200,1000,1200,Development Management,Agency Staff,60011
http://statistics.data.gov.uk/id/local-authority/12UE,Huntingdonshire District Council,201922,EDDISONS COMMERCIAL LTD,67411,12/07/2022,602052465,Resilience Planning Works 06.07.22,04/08/2022,200,1000,1200,Development Management,Agency Staff,60011
http://statistics.data.gov.uk/id/local-authority/12UE,Huntingdonshire District Council,201922,EDDISONS COMMERCIAL LTD,68327,29/07/2022,602053300,Resilience Planning Works 29.07.22,18/08/2022,180,900,1080,Development Management,Agency Staff,60011
http://statistics.data.gov.uk/id/local-authority/12UE,Huntingdonshire District Council,201922,EDDISONS COMMERCIAL LTD,69033,24/08/2022,602054101,Resilience Planning Works 17.08.22,15/09/2022,180,900,1080,Development Management,Agency Staff,60011
